Ref No,Department Family,Entity,Date of Payment,Expense Type,Expense Area,Supplier,Voluntary & Community Sector,SME Class,Sole Trader,D-U-N-S Number,Transaction number,PSPES Level 2,Narrative,Postal Code,Amount in Sterling,Grant?
2,Communities & Local Government,DCLG,01/09/2014,Accommodation Service Charges,Neighbourhoods,GVA GRIMLEY LTD,,Large,,210158990,5106206232,Business Support,ERDF YH LDU Valuation Services to Dec 13,B1 2JB,"3,540.00",
3,Communities & Local Government,DCLG,01/09/2014,Accommodation Service Charges,Neighbourhoods,GVA GRIMLEY LTD,,Large,,210158990,5106206233,Business Support,ERDF YH LDU Valuation Services to Dec 13,B1 2JB,"3,540.00",
4,Communities & Local Government,DCLG,01/09/2014,Advertising,"Strategy, Communications and Private Office",ENTER HERE LLP,,Medium,,672098311,5106206285,Advertising,Fire Kills extension 14/15,EC1R 0JH,"11,084.25",
5,Communities & Local Government,DCLG,01/09/2014,Advertising,"Strategy, Communications and Private Office",ENTER HERE LLP,,Medium,,672098311,5106206286,Advertising,Fire Kills extension 14/15,EC1R 0JH,"9,000.00",
6,Communities & Local Government,DCLG,01/09/2014,Agency Staff,Finance & Corporate Services,MANPOWER UK LTD,,Large,,238500362,5106205929,Contingent Labour,Support worker for staff interim measure,UB8 1AB,342.38,
7,Communities & Local Government,DCLG,01/09/2014,"IT - PC, Network & Hardware",Finance & Corporate Services,FUJITSU SERVICES LTD,,Large,,423375062,5106206276,ICT Hardware,2 x RX Servers Ref: 1-TG2P4B Revision 1,WA3 9BD,"7,366.44",
8,Communities & Local Government,DCLG,01/09/2014,IT - Service Contracts,Finance & Corporate Services,FUJITSU SERVICES LTD,,Large,,423375062,5106206275,IT Managed / Outsourced Services,Port Replicators for Marsham St,WA3 9BD,"23,940.00",
9,Communities & Local Government,DCLG,01/09/2014,Legal Fees,Finance & Corporate Services,DAVITT JONES BOULD LTD,,Medium,,,5106206282,Legal,Legal Advice,TA1 4EB,3.00,
10,Communities & Local Government,DCLG,01/09/2014,Legal Fees,Finance & Corporate Services,DAVITT JONES BOULD LTD,,Medium,,,5106206282,Legal,Legal Advice,TA1 4EB,"1,120.08",
11,Communities & Local Government,DCLG,01/09/2014,Legal Fees,Localism,FIELD FISHER WATERHOUSE LLP,,Large,,349487996,5106206222,Legal,Legal Advice,EC3N 2AA,"1,770.20",
12,Communities & Local Government,DCLG,01/09/2014,Professional services,Finance & Corporate Services,E C HARRIS LLP,,Large,,,5106206278,Construction Service Providers,PAMU Com 112 2MS Relocation Works,N1 9AB,"28,350.00",
13,Communities & Local Government,DCLG,01/09/2014,Professional services,Finance & Corporate Services,E C HARRIS LLP,,Large,,,5106206279,Construction Service Providers,PAMU Com 112 2MS Relocation Works,N1 9AB,"8,640.00",
16,Communities & Local Government,DCLG,01/09/2014,Work In Progress Pre-Cert 40373 Spend,Neighbourhoods,COVENTRY UNIVERSITY ENTERPRISES LTD,,Medium,,,7600009511,,Revenue Grant Clawback Offset,CV1 2TT,-817.50,Yes
17,Communities & Local Government,DCLG,01/09/2014,Work In Progress Pre-Cert 40373 Spend,Neighbourhoods,COVENTRY UNIVERSITY ENTERPRISES LTD,,Medium,,,7600009511,,Revenue Grant To Be Paid,CV1 2TT,"59,972.56",Yes
18,Communities & Local Government,DCLG,01/09/2014,Work In Progress Pre-Cert 40373 Spend,Neighbourhoods,GO GLOBAL NORTHEAST,,Small,,,7600009514,,Revenue Grant Clawback Offset,SR5 3HD,-562.74,Yes
19,Communities & Local Government,DCLG,01/09/2014,Work In Progress Pre-Cert 40373 Spend,Neighbourhoods,GO GLOBAL NORTHEAST,,Small,,,7600009514,,Revenue Grant To Be Paid,SR5 3HD,"237,631.36",Yes
20,Communities & Local Government,DCLG,01/09/2014,Work In Progress Pre-Cert 40373 Spend,Neighbourhoods,MARKETING BIRMINGHAM LIMITED,,Medium,,,7600009516,,Revenue Grant To Be Paid,B1 2ND,"548,453.10",Yes
21,Communities & Local Government,DCLG,01/09/2014,Work In Progress Pre-Cert 40373 Spend,Neighbourhoods,PLYMOUTH CITY COUNCIL,,,,,7600009518,,Revenue Grant To Be Paid,PL1 2AA,"6,268.51",Yes
22,Communities & Local Government,DCLG,01/09/2014,Work In Progress Pre-Cert 40373 Spend,Neighbourhoods,SHROPSHIRE COUNCIL,,Public Bodies,,,7600009513,,Revenue Grant To Be Paid,SY2 6ND,"6,953.51",Yes
23,Communities & Local Government,DCLG,01/09/2014,Work In Progress Pre-Cert 40373 Spend,Neighbourhoods,SOMERSET COLLEGE OF ARTS & TECH,,,,,2300002171,,Recovery of irregular payment,TA1 5AX,"-1,479.75",Yes
24,Communities & Local Government,DCLG,01/09/2014,Work In Progress Pre-Cert 40373 Spend,Neighbourhoods,WEST MIDS MANUFACTURING CONSORTIUM,,Small,,,7600009515,,Revenue Grant To Be Paid,WV10 9TG,"157,228.30",Yes
25,Communities & Local Government,DCLG,01/09/2014,Work In Progress Pre-Cert 40373 Spend,Neighbourhoods,WOLVERHAMPTON CITY COUNCIL,,Large,,,7600009517,,Revenue Grant To Be Paid,WV1 1RL,"14,348.71",Yes
26,Communities & Local Government,DCLG,01/09/2014,Work In Progress Pre-Cert 40467 Spend,Neighbourhoods,MARKETING BIRMINGHAM LIMITED,,Medium,,,7600009516,,Capital Grant To Be Paid,B1 2ND,"47,004.11",Yes
27,Communities & Local Government,DCLG,01/09/2014,Work In Progress Pre-Cert 40467 Spend,Neighbourhoods,ST AGNES ISLAND HALL,,Micro,,,7600009512,,Capital Grant To Be Paid,TR22 0PL,"95,553.30",Yes
28,Communities & Local Government,DCLG,02/09/2014,Agency Staff,Neighbourhoods,MACLAY MURRAY & SPENS LLP,,Large,,,5106206254,Contingent Labour,ERDF Legal Auditors (May - Nov),G2 1AL,"27,849.96",
29,Communities & Local Government,DCLG,02/09/2014,Agency Staff,Neighbourhoods,MACLAY MURRAY & SPENS LLP,,Large,,,5106206254,Contingent Labour,ERDF Legal Auditors Expenses (May-Nov),G2 1AL,66.24,
30,Communities & Local Government,DCLG,02/09/2014,Conferences and Meeting Facilities,Localism,ASAN MANAGEMENT SERVICES LTD,Yes,Small,,,5106206288,Business Travel Accommodation,Community assets workshops,WV2 1EL,354.00,
31,Communities & Local Government,DCLG,02/09/2014,IT - Service Contracts,Finance & Corporate Services,FUJITSU SERVICES LTD,,Large,,423375062,5106206298,IT Managed / Outsourced Services,FSQ013 Support for DCLG PSN WAN Implemen,WA3 9BD,"4,410.00",
32,Communities & Local Government,DCLG,02/09/2014,IT - Service Contracts,Neighbourhoods,DEXTROUS WEB LTD,,Micro,,211267270,5106206306,IT Managed / Outsourced Services,Hosting support and RAMP,N1 7NG,868.80,
33,Communities & Local Government,DCLG,02/09/2014,IT - Software Maintenance,Finance & Corporate Services,KAIZEN ASSOCIATES LTD,,Micro,,217482430,5106206128,IT Managed / Outsourced Services,SAP Application Support,SE1 6SW,671.95,
34,Communities & Local Government,DCLG,02/09/2014,IT - Software Maintenance,Localism,ESRI (UK) LIMITED,,Large,,226271518,5106206293,IT Managed / Outsourced Services,GB Accelerator AL2 version,HP21 7QG,"1,542.00",
35,Communities & Local Government,DCLG,02/09/2014,IT - Software Maintenance,Localism,ESRI (UK) LIMITED,,Large,,226271518,5106206293,IT Managed / Outsourced Services,GB Accelerator Codepoint version,HP21 7QG,"1,165.99",
36,Communities & Local Government,DCLG,02/09/2014,Licence Fees/Levies,Finance & Corporate Services,COMPUTACENTER (UK) LTD,,Large,,226023463,5106206291,Software,Adobe Acrobat XI Pro - ( v. 11 ) - licen,AL10 9TW,565.70,
37,Communities & Local Government,DCLG,02/09/2014,Mobile phone costs,Finance & Corporate Services,ORANGE (AIRTIME/LINE RENTAL),,Large,,210707540,2100245892,Telecoms,Monthly Consolidated Telephone Costs Aug 14,S98 1DX,391.80,
38,Communities & Local Government,DCLG,02/09/2014,Steady State Service Provision,Finance & Corporate Services,CROWN COMMERCIAL SERV (GOV PROC SER,,Public Bodies,,232204180,5106206296,Business Process Outsourcing Services,Payroll Consotium Annual Charges 2014-16,L3 9PP,"3,091.36",
39,Communities & Local Government,DCLG,02/09/2014,Telecoms equipment (non-capitalised),Finance & Corporate Services,DAMOVO UK LTD,,Large,,221481042,5106206307,Telecoms,Routine Engineering and powerdowns,RH12 4QP,"1,320.00",
40,Communities & Local Government,DCLG,02/09/2014,Training,Finance & Corporate Services,CAPITA BUS. SERV. LTD (CSL),,Large,,215580993,5106206294,Development and Training,Operational Delivery Professional qualif,DL1 9HB,"1,547.00",
41,Communities & Local Government,DCLG,02/09/2014,Training,Finance & Corporate Services,EUROPEAN INSTITUTE OF PUBLIC ADMIN,,,,,5106206301,Development and Training,Financial Management of the New ESIF Pro,6201 BE,"2,040.09",
42,Communities & Local Government,DCLG,02/09/2014,Training,Localism,CREATIVE SPACE MANAGEMENT,,Small,,,5106206295,Development and Training,awayday room in sheffield,S1 2BJ,500.00,
43,Communities & Local Government,DCLG,02/09/2014,Web Services,"Strategy, Communications and Private Office",DEXTROUS WEB LTD,,Micro,,211267270,5106206305,ICT Services,Intranet Support,N1 7NG,540.00,
44,Communities & Local Government,DCLG,02/09/2014,Work In Progress Pre-Cert 40373 Spend,Neighbourhoods,CHESTERFIELD BOROUGH COUNCIL,,Large,,,7600009531,,Revenue Grant To Be Paid,S40 1LP,"25,378.45",Yes
45,Communities & Local Government,DCLG,02/09/2014,Work In Progress Pre-Cert 40373 Spend,Neighbourhoods,CITY OF BRISTOL COLLEGE,,,,,7600009533,,Revenue Grant To Be Paid,BS2 2BB,"11,643.64",Yes
46,Communities & Local Government,DCLG,02/09/2014,Work In Progress Pre-Cert 40373 Spend,Neighbourhoods,COVENTRY UNIVERSITY ENTERPRISES LTD,,Medium,,,7600009521,,Revenue Grant To Be Paid,CV1 2TT,"150,455.19",Yes
47,Communities & Local Government,DCLG,02/09/2014,Work In Progress Pre-Cert 40373 Spend,Neighbourhoods,MERCIA FUND 1 GENERAL PARTNER LTD,,Micro,,,7600009526,,Revenue Grant To Be Paid,B95 5AA,"5,183.01",Yes
48,Communities & Local Government,DCLG,02/09/2014,Work In Progress Pre-Cert 40373 Spend,Neighbourhoods,PERA CONSULTING UK LTD,,Medium,,,7600009529,,Revenue Grant To Be Paid,LE13 0PB,"63,470.03",Yes
49,Communities & Local Government,DCLG,02/09/2014,Work In Progress Pre-Cert 40373 Spend,Neighbourhoods,PERA CONSULTING UK LTD,,Medium,,,7600009530,,Revenue Grant To Be Paid,LE13 0PB,"61,097.52",Yes
50,Communities & Local Government,DCLG,02/09/2014,Work In Progress Pre-Cert 40373 Spend,Neighbourhoods,SUSTRANS LIMITED,,Large,,,7600009524,,Revenue Grant To Be Paid,BS1 5DD,"16,989.11",Yes
51,Communities & Local Government,DCLG,02/09/2014,Work In Progress Pre-Cert 40373 Spend,Neighbourhoods,WALSALL METROPOLITAN BC,,Large,,,7600009520,,Revenue Grant To Be Paid,WS1 1TW,"5,543.76",Yes
52,Communities & Local Government,DCLG,02/09/2014,Work In Progress Pre-Cert 40373 Spend,Neighbourhoods,YTKO LIMITED,,,,,7600009527,,Revenue Grant To Be Paid,CB4 2QH,"69,090.50",Yes
53,Communities & Local Government,DCLG,02/09/2014,Work In Progress Pre-Cert 40373 Spend,Neighbourhoods,YTKO LIMITED,,,,,7600009532,,Revenue Grant To Be Paid,CB4 2QH,"63,352.62",Yes
54,Communities & Local Government,DCLG,02/09/2014,Work In Progress Pre-Cert 40467 Spend,Neighbourhoods,CHESTERFIELD BOROUGH COUNCIL,,Large,,,7600009531,,Capital Grant Clawback Offset,S40 1LP,"-4,886.07",Yes
55,Communities & Local Government,DCLG,02/09/2014,Work In Progress Pre-Cert 40467 Spend,Neighbourhoods,JOHN & SHIRLEY CARLEY,,Micro,,,7600009523,,Capital Grant To Be Paid,TR4 8NF,"49,172.01",Yes
56,Communities & Local Government,DCLG,02/09/2014,Work In Progress Pre-Cert 40467 Spend,Neighbourhoods,JOHN & SHIRLEY CARLEY,,Micro,,,7600009528,,Capital Grant To Be Paid,TR4 8NF,"56,856.23",Yes
57,Communities & Local Government,DCLG,02/09/2014,Work In Progress Pre-Cert 40467 Spend,Neighbourhoods,LEICESTER CITY COUNCIL,,Large,,,7600009522,,Capital Grant To Be Paid,LE1 6ZG,"378,316.67",Yes
58,Communities & Local Government,DCLG,02/09/2014,Work In Progress Pre-Cert 40467 Spend,Neighbourhoods,MUSEUM OF SCIENCE & IND IN MANCHEST,,Public Bodies,,,2300001983,,Recovery of irregular payment,M3 4FP,"-67,748.86",Yes
59,Communities & Local Government,DCLG,02/09/2014,Work In Progress Pre-Cert 40467 Spend,Neighbourhoods,SANDWELL MBC,,Large,,,7600009519,,Capital Grant Clawback Offset,B69 3BS,"-42,599.38",Yes
60,Communities & Local Government,DCLG,02/09/2014,Work In Progress Pre-Cert 40467 Spend,Neighbourhoods,SANDWELL MBC,,Large,,,7600009519,,Capital Grant To Be Paid,B69 3BS,"168,432.67",Yes
61,Communities & Local Government,DCLG,02/09/2014,Work In Progress Pre-Cert 40467 Spend,Neighbourhoods,WALSALL METROPOLITAN BC,,Large,,,7600009520,,Capital Grant To Be Paid,WS1 1TW,"1,835.00",Yes
62,Communities & Local Government,DCLG,03/09/2014,Agency Staff,Neighbourhoods,CAPITA RESOURCING LTD,,Large,,215581006,5106206127,Contingent Labour,Interim Manager,SL6 1DP,"1,908.00",
63,Communities & Local Government,DCLG,03/09/2014,Agency Staff,Neighbourhoods,CAPITA RESOURCING LTD,,Large,,215581006,5106206316,Contingent Labour,Interim Manager,SL6 1DP,"1,569.60",
64,Communities & Local Government,DCLG,03/09/2014,Agency Staff,Neighbourhoods,CAPITA RESOURCING LTD,,Large,,215581006,5106206318,Contingent Labour,Interim Manager,SL6 1DP,"5,724.00",
65,Communities & Local Government,DCLG,03/09/2014,Courier Services,Finance & Corporate Services,INTERSERVE (FACILITIES MANAGEMENT),,Large,,364834825,5106206327,Office Solutions,Eland House Mail 14-15,BS32 4NH,"8,000.42",
66,Communities & Local Government,DCLG,03/09/2014,Courier Services,Finance & Corporate Services,INTERSERVE (FACILITIES MANAGEMENT),,Large,,364834825,5106206327,Office Solutions,Rivergate Mail 14-15,BS32 4NH,"1,519.43",
67,Communities & Local Government,DCLG,03/09/2014,Domestic Services,Finance & Corporate Services,INTERSERVE (FACILITIES MANAGEMENT),,Large,,364834825,5106206327,Building Operation,Eland House Cleaning 14-15,BS32 4NH,"27,868.08",
68,Communities & Local Government,DCLG,03/09/2014,Domestic Services,Finance & Corporate Services,INTERSERVE (FACILITIES MANAGEMENT),,Large,,364834825,5106206327,Building Operation,TQH Cleaning 14-15,BS32 4NH,"9,032.52",
69,Communities & Local Government,DCLG,03/09/2014,Domestic Services,Finance & Corporate Services,INTERSERVE (FACILITIES MANAGEMENT),,Large,,364834825,5106206327,Building Operation,Hemel Hemp Cleaning 14-15,BS32 4NH,"2,216.98",
70,Communities & Local Government,DCLG,03/09/2014,Domestic Services,Finance & Corporate Services,INTERSERVE (FACILITIES MANAGEMENT),,Large,,364834825,5106206327,Building Operation,Rivergate Cleaning 14-15,BS32 4NH,"5,167.99",
71,Communities & Local Government,DCLG,03/09/2014,Domestic Services,Finance & Corporate Services,INTERSERVE (FACILITIES MANAGEMENT),,Large,,364834825,5106206327,Building Operation,Bridge House Cleaning 14-15,BS32 4NH,"3,073.37",
72,Communities & Local Government,DCLG,03/09/2014,Domestic Services,Finance & Corporate Services,INTERSERVE (FACILITIES MANAGEMENT),,Large,,364834825,5106206327,Building Operation,Citygate Cleaning 14-15,BS32 4NH,"3,090.56",
73,Communities & Local Government,DCLG,03/09/2014,Domestic Services,Finance & Corporate Services,INTERSERVE (FACILITIES MANAGEMENT),,Large,,364834825,5106206327,Building Operation,Queen Street Cleaning 14-15,BS32 4NH,"2,603.25",
74,Communities & Local Government,DCLG,03/09/2014,Domestic Services,Finance & Corporate Services,INTERSERVE (FACILITIES MANAGEMENT),,Large,,364834825,5106206327,Building Operation,5SPP Cleaning 14-15,BS32 4NH,"6,906.82",
75,Communities & Local Government,DCLG,03/09/2014,Domestic Services,Finance & Corporate Services,INTERSERVE (FACILITIES MANAGEMENT),,Large,,364834825,5106206327,Building Operation,Paradise Cleaning 14-15,BS32 4NH,"3,159.23",
76,Communities & Local Government,DCLG,03/09/2014,Electricity,Finance & Corporate Services,EDF ENERGY 1 LIMITED,,Large,,230840469,5106206313,Energy,Rivergate Electricity 2014 2015,PL3 5XQ,"12,959.18",
77,Communities & Local Government,DCLG,03/09/2014,Facilities Management (ISD use only),Finance & Corporate Services,INTERSERVE (FACILITIES MANAGEMENT),,Large,,364834825,5106206327,Property Occupation,Eland House Off Site Management 14-15,BS32 4NH,"11,404.08",
78,Communities & Local Government,DCLG,03/09/2014,Facilities Management (ISD use only),Finance & Corporate Services,INTERSERVE (FACILITIES MANAGEMENT),,Large,,364834825,5106206327,Property Occupation,Eland House Reception 14-15,BS32 4NH,"4,973.66",
79,Communities & Local Government,DCLG,03/09/2014,Facilities Management (ISD use only),Finance & Corporate Services,INTERSERVE (FACILITIES MANAGEMENT),,Large,,364834825,5106206327,Property Occupation,TQH Off Site Management 14-15,BS32 4NH,"8,076.85",
80,Communities & Local Government,DCLG,03/09/2014,Facilities Management (ISD use only),Finance & Corporate Services,INTERSERVE (FACILITIES MANAGEMENT),,Large,,364834825,5106206327,Property Occupation,TQH On Site Management 14-15,BS32 4NH,"3,181.33",
81,Communities & Local Government,DCLG,03/09/2014,Facilities Management (ISD use only),Finance & Corporate Services,INTERSERVE (FACILITIES MANAGEMENT),,Large,,364834825,5106206327,Property Occupation,TQH Reception 14-15,BS32 4NH,"1,663.29",
82,Communities & Local Government,DCLG,03/09/2014,Facilities Management (ISD use only),Finance & Corporate Services,INTERSERVE (FACILITIES MANAGEMENT),,Large,,364834825,5106206327,Property Occupation,Hemel Hemp Off Site Management 14-15,BS32 4NH,900.35,
83,Communities & Local Government,DCLG,03/09/2014,Facilities Management (ISD use only),Finance & Corporate Services,INTERSERVE (FACILITIES MANAGEMENT),,Large,,364834825,5106206327,Property Occupation,Rivergate Off Site Management 14-15,BS32 4NH,"3,682.20",
84,Communities & Local Government,DCLG,03/09/2014,Facilities Management (ISD use only),Finance & Corporate Services,INTERSERVE (FACILITIES MANAGEMENT),,Large,,364834825,5106206327,Property Occupation,Rivergate Reception 14-15,BS32 4NH,"1,653.74",
85,Communities & Local Government,DCLG,03/09/2014,Facilities Management (ISD use only),Finance & Corporate Services,INTERSERVE (FACILITIES MANAGEMENT),,Large,,364834825,5106206327,Property Occupation,Bridge House Off Site Management 14-15,BS32 4NH,"1,778.39",
86,Communities & Local Government,DCLG,03/09/2014,Facilities Management (ISD use only),Finance & Corporate Services,INTERSERVE (FACILITIES MANAGEMENT),,Large,,364834825,5106206327,Property Occupation,Bridge House On Site Management 14-15,BS32 4NH,"3,663.77",
87,Communities & Local Government,DCLG,03/09/2014,Facilities Management (ISD use only),Finance & Corporate Services,INTERSERVE (FACILITIES MANAGEMENT),,Large,,364834825,5106206327,Property Occupation,Citygate Off Site Management 14-15,BS32 4NH,"3,021.82",
88,Communities & Local Government,DCLG,03/09/2014,Facilities Management (ISD use only),Finance & Corporate Services,INTERSERVE (FACILITIES MANAGEMENT),,Large,,364834825,5106206327,Property Occupation,Citygate On Site Management 14-15,BS32 4NH,"2,529.53",
89,Communities & Local Government,DCLG,03/09/2014,Facilities Management (ISD use only),Finance & Corporate Services,INTERSERVE (FACILITIES MANAGEMENT),,Large,,364834825,5106206327,Property Occupation,Citygate Reception 14-15,BS32 4NH,"1,612.33",
90,Communities & Local Government,DCLG,03/09/2014,Facilities Management (ISD use only),Finance & Corporate Services,INTERSERVE (FACILITIES MANAGEMENT),,Large,,364834825,5106206327,Property Occupation,Queen Street Off Site Management 14-15,BS32 4NH,"1,637.09",
91,Communities & Local Government,DCLG,03/09/2014,Facilities Management (ISD use only),Finance & Corporate Services,INTERSERVE (FACILITIES MANAGEMENT),,Large,,364834825,5106206327,Property Occupation,5SPP Off Site Management 14-15,BS32 4NH,"2,986.62",
92,Communities & Local Government,DCLG,03/09/2014,Facilities Management (ISD use only),Finance & Corporate Services,INTERSERVE (FACILITIES MANAGEMENT),,Large,,364834825,5106206327,Property Occupation,5SPP On Site Management 14-15,BS32 4NH,"3,032.33",
93,Communities & Local Government,DCLG,03/09/2014,Facilities Management (ISD use only),Finance & Corporate Services,INTERSERVE (FACILITIES MANAGEMENT),,Large,,364834825,5106206327,Property Occupation,5SPP Reception 14-15,BS32 4NH,"2,854.01",
94,Communities & Local Government,DCLG,03/09/2014,Facilities Management (ISD use only),Finance & Corporate Services,INTERSERVE (FACILITIES MANAGEMENT),,Large,,364834825,5106206327,Property Occupation,Paradise Off Site Management 14-15,BS32 4NH,"1,716.91",
95,Communities & Local Government,DCLG,03/09/2014,Fixed Maintenance,Finance & Corporate Services,INTERSERVE (FACILITIES MANAGEMENT),,Large,,364834825,5106206327,Business Support,Bridge House Grounds Maintenance 14-15,BS32 4NH,262.97,
96,Communities & Local Government,DCLG,03/09/2014,Fixed Maintenance,Finance & Corporate Services,INTERSERVE (FACILITIES MANAGEMENT),,Large,,364834825,5106206327,Business Support,Queen Street Grounds Maintenance 14-15,BS32 4NH,13.35,
97,Communities & Local Government,DCLG,03/09/2014,Fixed Maintenance,Finance & Corporate Services,INTERSERVE (FACILITIES MANAGEMENT),,Large,,364834825,5106206327,Property Occupation,Eland House Maintenance 14-15,BS32 4NH,"39,930.54",
98,Communities & Local Government,DCLG,03/09/2014,Fixed Maintenance,Finance & Corporate Services,INTERSERVE (FACILITIES MANAGEMENT),,Large,,364834825,5106206327,Property Occupation,TQH Maintenance 14-15,BS32 4NH,"6,027.81",
99,Communities & Local Government,DCLG,03/09/2014,Fixed Maintenance,Finance & Corporate Services,INTERSERVE (FACILITIES MANAGEMENT),,Large,,364834825,5106206327,Property Occupation,Hemel Hemp Maintenance 14-15,BS32 4NH,"5,437.63",
100,Communities & Local Government,DCLG,03/09/2014,Fixed Maintenance,Finance & Corporate Services,INTERSERVE (FACILITIES MANAGEMENT),,Large,,364834825,5106206327,Property Occupation,Rivergate Maintenance 14-15,BS32 4NH,"3,840.85",
101,Communities & Local Government,DCLG,03/09/2014,Fixed Maintenance,Finance & Corporate Services,INTERSERVE (FACILITIES MANAGEMENT),,Large,,364834825,5106206327,Property Occupation,Bridge House Maintenance 14-15,BS32 4NH,"5,059.73",
102,Communities & Local Government,DCLG,03/09/2014,Fixed Maintenance,Finance & Corporate Services,INTERSERVE (FACILITIES MANAGEMENT),,Large,,364834825,5106206327,Property Occupation,Citygate Maintenance 14-15,BS32 4NH,"3,637.07",
103,Communities & Local Government,DCLG,03/09/2014,Fixed Maintenance,Finance & Corporate Services,INTERSERVE (FACILITIES MANAGEMENT),,Large,,364834825,5106206327,Property Occupation,Queen Street Maintenance 14-15,BS32 4NH,"6,633.13",
104,Communities & Local Government,DCLG,03/09/2014,Fixed Maintenance,Finance & Corporate Services,INTERSERVE (FACILITIES MANAGEMENT),,Large,,364834825,5106206327,Property Occupation,5SPP Maintenance 14-15,BS32 4NH,"10,952.47",
105,Communities & Local Government,DCLG,03/09/2014,Fixed Maintenance,Finance & Corporate Services,INTERSERVE (FACILITIES MANAGEMENT),,Large,,364834825,5106206327,Property Occupation,Paradise Maintenance 14-15,BS32 4NH,"7,911.01",
108,Communities & Local Government,DCLG,03/09/2014,Legal Fees,Finance & Corporate Services,TREASURY SOLICITORS DEPT,,Public Bodies,,215580680,5106206328,Legal,Legal Advice,WC2B 4TS,"1,469.51",
109,Communities & Local Government,DCLG,03/09/2014,Photocopying,Finance & Corporate Services,INTERSERVE (FACILITIES MANAGEMENT),,Large,,364834825,5106206327,Business Support,Eland House Reproduction 14-15,BS32 4NH,353.08,
110,Communities & Local Government,DCLG,03/09/2014,Photocopying,Finance & Corporate Services,INTERSERVE (FACILITIES MANAGEMENT),,Large,,364834825,5106206327,Business Support,TQH Reproduction 14-15,BS32 4NH,"6,529.09",
111,Communities & Local Government,DCLG,03/09/2014,Photocopying,Finance & Corporate Services,INTERSERVE (FACILITIES MANAGEMENT),,Large,,364834825,5106206327,Business Support,Hemel Hemp Reproduction 14-15,BS32 4NH,126.33,
112,Communities & Local Government,DCLG,03/09/2014,Photocopying,Finance & Corporate Services,INTERSERVE (FACILITIES MANAGEMENT),,Large,,364834825,5106206327,Business Support,5SPP Reproduction 14-15,BS32 4NH,353.08,
113,Communities & Local Government,DCLG,03/09/2014,Printing,"Strategy, Communications and Private Office",STATIONERY OFFICE LTD,,Large,,779375633,5106206289,Printing Services,Statutory Instruments print service: Non-Vatable,NR3 1PD,165.00,
114,Communities & Local Government,DCLG,03/09/2014,Printing,"Strategy, Communications and Private Office",STATIONERY OFFICE LTD,,Large,,779375633,5106206289,Printing Services,Statutory Instruments print service: Vatable,NR3 1PD,130.00,
115,Communities & Local Government,DCLG,03/09/2014,Professional services,Finance & Corporate Services,GOVT ACTUARYS DEPARTMENT,,Public Bodies,,217789766,5106206315,Financial,Government Actuarys Department,EC4A 1AB,450.76,
116,Communities & Local Government,DCLG,03/09/2014,Professional services,Neighbourhoods,GOVT ACTUARYS DEPARTMENT,,Public Bodies,,217789766,5106206315,Financial,GAD contract re Internal Staff transfer ,EC4A 1AB,450.75,
117,Communities & Local Government,DCLG,03/09/2014,Professional services,Neighbourhoods,VALUATION OFFICE AGENCY,,Public Bodies,,215253886,5106206329,Financial,Valuation Fees,W1B 5BU,"1,634.86",
118,Communities & Local Government,DCLG,03/09/2014,Publications,Finance & Corporate Services,JONES YARRELL LEADENHALL LTD,,Large,,505670265,5106206321,Learning and Development Materials,Journal and Newspaper supply 2014-15,E3 3JH,343.42,
119,Communities & Local Government,DCLG,03/09/2014,Publicity,"Strategy, Communications and Private Office",JONES YARRELL LEADENHALL LTD,,Large,,505670265,5106206322,Advertising,Newspaper and Magazines 14/15,E3 3JH,492.02,
120,Communities & Local Government,DCLG,03/09/2014,Recruitment,Finance & Corporate Services,HM REVENUE & CUSTOMS,,Public Bodies,,365117972,5106206324,Business Process Outsourcing Services,Psychometric testing 14/15,BN12 4XH,"6,076.50",
121,Communities & Local Government,DCLG,03/09/2014,Security,Finance & Corporate Services,INTERSERVE (FACILITIES MANAGEMENT),,Large,,364834825,5106206327,Security,Eland House Security 14-15,BS32 4NH,"20,047.45",
122,Communities & Local Government,DCLG,03/09/2014,Security,Finance & Corporate Services,INTERSERVE (FACILITIES MANAGEMENT),,Large,,364834825,5106206327,Security,TQH Security 14-15,BS32 4NH,"9,286.58",
123,Communities & Local Government,DCLG,03/09/2014,Security,Finance & Corporate Services,INTERSERVE (FACILITIES MANAGEMENT),,Large,,364834825,5106206327,Security,Hemel Hemp Security 14-15,BS32 4NH,"4,270.93",
124,Communities & Local Government,DCLG,03/09/2014,Security,Finance & Corporate Services,INTERSERVE (FACILITIES MANAGEMENT),,Large,,364834825,5106206327,Security,Rivergate Security 14-15,BS32 4NH,"6,764.25",
125,Communities & Local Government,DCLG,03/09/2014,Security,Finance & Corporate Services,INTERSERVE (FACILITIES MANAGEMENT),,Large,,364834825,5106206327,Security,Bridge House Security 14-15,BS32 4NH,"3,210.57",
126,Communities & Local Government,DCLG,03/09/2014,Security,Finance & Corporate Services,INTERSERVE (FACILITIES MANAGEMENT),,Large,,364834825,5106206327,Security,Citygate Security 14-15,BS32 4NH,"2,546.81",
127,Communities & Local Government,DCLG,03/09/2014,Security,Finance & Corporate Services,INTERSERVE (FACILITIES MANAGEMENT),,Large,,364834825,5106206327,Security,Queen Street Security 14-15,BS32 4NH,"2,355.01",
128,Communities & Local Government,DCLG,03/09/2014,Security,Finance & Corporate Services,INTERSERVE (FACILITIES MANAGEMENT),,Large,,364834825,5106206327,Security,5SPP Security 14-15,BS32 4NH,"4,816.46",
129,Communities & Local Government,DCLG,03/09/2014,Security,Finance & Corporate Services,INTERSERVE (FACILITIES MANAGEMENT),,Large,,364834825,5106206327,Security,Paradise Security 14-15,BS32 4NH,"2,145.00",
130,Communities & Local Government,DCLG,03/09/2014,Steady State Service Provision,Finance & Corporate Services,CGI IT UK LIMITED,,Large,,239881618,5106206300,Business Process Outsourcing Services,Payroll Services & Licences  14/15,CF31 9AP,"7,120.42",
131,Communities & Local Government,DCLG,03/09/2014,Steady State Service Provision,Finance & Corporate Services,CGI IT UK LIMITED,,Large,,239881618,5106206330,Business Process Outsourcing Services,Payroll Services & Licences  14/15,CF31 9AP,"1,237.52",
132,Communities & Local Government,DCLG,03/09/2014,Waste Disposal and pest control,Finance & Corporate Services,INTERSERVE (FACILITIES MANAGEMENT),,Large,,364834825,5106206327,Waste Management Services,Eland House Waste 14-15,BS32 4NH,"3,291.36",
133,Communities & Local Government,DCLG,03/09/2014,Waste Disposal and pest control,Finance & Corporate Services,INTERSERVE (FACILITIES MANAGEMENT),,Large,,364834825,5106206327,Waste Management Services,TQH Waste 14-15,BS32 4NH,"1,301.76",
134,Communities & Local Government,DCLG,03/09/2014,Waste Disposal and pest control,Finance & Corporate Services,INTERSERVE (FACILITIES MANAGEMENT),,Large,,364834825,5106206327,Waste Management Services,Hemel Hemp Waste 14-15,BS32 4NH,271.36,
135,Communities & Local Government,DCLG,03/09/2014,Waste Disposal and pest control,Finance & Corporate Services,INTERSERVE (FACILITIES MANAGEMENT),,Large,,364834825,5106206327,Waste Management Services,Rivergate Waste 14-15,BS32 4NH,917.18,
136,Communities & Local Government,DCLG,03/09/2014,Waste Disposal and pest control,Finance & Corporate Services,INTERSERVE (FACILITIES MANAGEMENT),,Large,,364834825,5106206327,Waste Management Services,Bridge House Waste 14-15,BS32 4NH,523.78,
137,Communities & Local Government,DCLG,03/09/2014,Waste Disposal and pest control,Finance & Corporate Services,INTERSERVE (FACILITIES MANAGEMENT),,Large,,364834825,5106206327,Waste Management Services,Citygate Waste 14-15,BS32 4NH,881.29,
138,Communities & Local Government,DCLG,03/09/2014,Waste Disposal and pest control,Finance & Corporate Services,INTERSERVE (FACILITIES MANAGEMENT),,Large,,364834825,5106206327,Waste Management Services,Queen Street Waste 14-15,BS32 4NH,483.15,
139,Communities & Local Government,DCLG,03/09/2014,Waste Disposal and pest control,Finance & Corporate Services,INTERSERVE (FACILITIES MANAGEMENT),,Large,,364834825,5106206327,Waste Management Services,5SPP Waste 14-15,BS32 4NH,871.17,
140,Communities & Local Government,DCLG,03/09/2014,Waste Disposal and pest control,Finance & Corporate Services,INTERSERVE (FACILITIES MANAGEMENT),,Large,,364834825,5106206327,Waste Management Services,Paradise Waste 14-15,BS32 4NH,506.15,
141,Communities & Local Government,DCLG,03/09/2014,Work In Progress Pre-Cert 40373 Spend,Neighbourhoods,COMMUNITY ACTION DERBY,,,,,7600009535,,Revenue Grant To Be Paid,DE1 2GT,"17,911.52",Yes
142,Communities & Local Government,DCLG,03/09/2014,Work In Progress Pre-Cert 40373 Spend,Neighbourhoods,LEICESTER UNIVERSITY,,Large,,,7600009534,,Revenue Grant To Be Paid,LE1 7RH,"14,463.57",Yes
143,Communities & Local Government,DCLG,03/09/2014,Work In Progress Pre-Cert 40373 Spend,Neighbourhoods,LINCONSHIRE COUNTY COUNCIL,,Large,,,7600009539,,Revenue Grant To Be Paid,LN1 1YT,"34,183.31",Yes
144,Communities & Local Government,DCLG,03/09/2014,Work In Progress Pre-Cert 40373 Spend,Neighbourhoods,MEDILINK EAST MIDLANDS,,Small,,,7600009536,,Revenue Grant To Be Paid,NG1 1GF,"204,599.80",Yes
145,Communities & Local Government,DCLG,03/09/2014,Work In Progress Pre-Cert 40373 Spend,Neighbourhoods,YTKO LIMITED,,,,,7600009537,,Revenue Grant To Be Paid,CB4 2QH,"58,908.09",Yes
146,Communities & Local Government,DCLG,03/09/2014,Work In Progress Pre-Cert 40373 Spend,Neighbourhoods,YTKO LIMITED,,,,,7600009538,,Revenue Grant To Be Paid,CB4 2QH,"42,657.61",Yes
147,Communities & Local Government,DCLG,03/09/2014,Work In Progress Pre-Cert 40373 Spend,Neighbourhoods,YTKO LIMITED,,,,,7600009540,,Revenue Grant To Be Paid,CB4 2QH,"14,553.35",Yes
148,Communities & Local Government,DCLG,03/09/2014,Work In Progress Pre-Cert 40373 Spend,Neighbourhoods,YTKO LIMITED,,,,,7600009541,,Revenue Grant To Be Paid,CB4 2QH,"13,603.22",Yes
149,Communities & Local Government,DCLG,04/09/2014,Agency Staff,Finance & Corporate Services,ALLEN LANE FINANCIAL RECRUITMENT,,Medium,Yes,738603443,5106206356,Contingent Labour,Interim Accountant (Ext 02),,"3,416.47",
150,Communities & Local Government,DCLG,04/09/2014,Agency Staff,Finance & Corporate Services,CAPITA BUS. SERV. LTD (CON LAB),,Large,,,5106206365,Contingent Labour,interim manager 2MS move,DL1 9HB,"5,332.54",
151,Communities & Local Government,DCLG,04/09/2014,Agency Staff,Finance & Corporate Services,CAPITA BUS. SERV. LTD (CON LAB),,Large,,,5106206366,Contingent Labour,interim manager 2MS move,DL1 9HB,"5,332.54",
152,Communities & Local Government,DCLG,04/09/2014,Agency Staff,Finance & Corporate Services,CAPITA BUS. SERV. LTD (CON LAB),,Large,,,5106206367,Contingent Labour,interim manager 2MS move,DL1 9HB,"5,332.54",
153,Communities & Local Government,DCLG,04/09/2014,Agency Staff,Finance & Corporate Services,CAPITA BUS. SERV. LTD (CON LAB),,Large,,,5106206368,Contingent Labour,Interim Manager,DL1 9HB,"2,666.27",
154,Communities & Local Government,DCLG,04/09/2014,Agency Staff,Finance & Corporate Services,CAPITA BUS. SERV. LTD (CON LAB),,Large,,,5106206368,Contingent Labour,interim manager 2MS move,DL1 9HB,"1,777.51",
155,Communities & Local Government,DCLG,04/09/2014,Agency Staff,Neighbourhoods,REED SPECIALIST RECRUITMENT LTD,,Large,,214287592,5106206341,Contingent Labour,Planning casework AWR Extension1 Month,SW20 OBA,708.91,
156,Communities & Local Government,DCLG,04/09/2014,Agency Staff,Neighbourhoods,REED SPECIALIST RECRUITMENT LTD,,Large,,214287592,5106206348,Contingent Labour,Planning casework,SW20 OBA,366.29,
157,Communities & Local Government,DCLG,04/09/2014,Building Renovations,Finance & Corporate Services,SKANSEN GROUP LIMITED,,Medium,,222973468,5106206388,Construction Service Providers,Temple Qauy Hse - Remodel/Refurb Grd Flr,EC4N 1TX,"42,385.87",
158,Communities & Local Government,DCLG,04/09/2014,Current Grants to Non Profit Bodies,Neighbourhoods,ASSOCIATION TOWN CENTRE MANAGEMENT,,Small,,348626995,2100245930,,Support Portas Pilots and Town Teams to 31 Jul 14,SE1 0EH,"38,473.38",Yes
159,Communities & Local Government,DCLG,04/09/2014,Grant in Aid to NDPBs (non budget),Neighbourhoods,HOMES & COMMUNITIES AGENCY,,Public Bodies,,215576860,2100245927,,Monthly HCA Grant in Aid Claim,NE11 0NA,"189,909,776.00",Yes
160,Communities & Local Government,DCLG,04/09/2014,IT - Service Contracts,Finance & Corporate Services,FUJITSU SERVICES LTD,,Large,,423375062,5106206256,IT Managed / Outsourced Services,1 x Wintel Engineer for power down & up,WA3 9BD,"1,575.00",
161,Communities & Local Government,DCLG,04/09/2014,IT - Service Contracts,Neighbourhoods,APTO SOLUTIONS LTD,,Small,,739026040,5106206373,IT Managed / Outsourced Services,Planning Portal 1 APP forms contract,BS8 3BA,"3,153.33",
162,Communities & Local Government,DCLG,04/09/2014,IT - Service Contracts,Finance & Corporate Services,LOCKHEED MARTIN BUSINESS TECH SOLUT,,Large,,399909910,5106206317,IT Managed / Outsourced Services,CR128 Changes to Visitor Roles and proce,PA4 9LH,"8,220.00",
163,Communities & Local Government,DCLG,04/09/2014,IT - Service Contracts,Finance & Corporate Services,LOCKHEED MARTIN BUSINESS TECH SOLUT,,Large,,399909910,5106206389,IT Managed / Outsourced Services,Database ERDF (development service),PA4 9LH,"17,544.00",
164,Communities & Local Government,DCLG,04/09/2014,Legal Fees,Finance & Corporate Services,TREASURY SOLICITORS DEPT,,Public Bodies,,215580680,5106206384,Legal,Legal Advice,WC2B 4TS,"122,433.42",
165,Communities & Local Government,DCLG,04/09/2014,Legal Fees,Finance & Corporate Services,TREASURY SOLICITORS DEPT,,Public Bodies,,215580680,5106206384,Legal,Legal Advice,WC2B 4TS,520.60,
166,Communities & Local Government,DCLG,04/09/2014,Software Licences,Localism,COMPUTACENTER (UK) LTD,,Large,,226023463,5106206363,Software,ATL-CAP-25-GOV Atlassian Capture 25,AL10 9TW,431.02,
167,Communities & Local Government,DCLG,04/09/2014,Software Licences,Localism,COMPUTACENTER (UK) LTD,,Large,,226023463,5106206363,Software,ATL-JIR-25-GOV Atlassian JIRA 25 (ESD),AL10 9TW,862.04,
168,Communities & Local Government,DCLG,04/09/2014,Software Licences,Localism,COMPUTACENTER (UK) LTD,,Large,,226023463,5106206363,Software,ATL-JIRA-25-GOV Atlassian JIRA Agile 25,AL10 9TW,431.02,
169,Communities & Local Government,DCLG,04/09/2014,Software Licences,Localism,COMPUTACENTER (UK) LTD,,Large,,226023463,5106206363,Software,ATL-STA-25-GOV Atlassian Stash,AL10 9TW,"1,280.81",
170,Communities & Local Government,DCLG,04/09/2014,Software Licences,Localism,COMPUTACENTER (UK) LTD,,Large,,226023463,5106206363,Software,ATL_JSD-25-GOV Atlassian JIRA Service D,AL10 9TW,646.54,
171,Communities & Local Government,DCLG,04/09/2014,Telecoms equipment (non-capitalised),Finance & Corporate Services,DAMOVO UK LTD,,Large,,221481042,5106206376,Telecoms,Telephone Support Services,RH12 4QP,"7,681.04",
172,Communities & Local Government,DCLG,04/09/2014,Training,Finance & Corporate Services,INSTITUTE OF INTERNAL AUDITORS,,Small,,292669967,5106206387,Development and Training,P2 Financial Risks & Controls (Revision),SW4 7BX,520.00,
173,Communities & Local Government,DCLG,04/09/2014,Training,Neighbourhoods,HAYMARKET PUBLISHING SERVS LTD,,Large,,516858800,5106206314,Development and Training,Planning for Housing 160914,TW11 9BE,947.50,
174,Communities & Local Government,DCLG,04/09/2014,Travel and Subsistence Account,Localism,DORSET FIRE AUTHORITY,,Public Bodies,,424873016,5106206374,Business Travel,Dorset FRAG T&S,DT1 3SU,656.30,
175,Communities & Local Government,DCLG,04/09/2014,Travel and Subsistence Account,"Strategy, Communications and Private Office",NETWORK EXECUTIVE CHAUFFEURS UK LTD,,Small,,217495152,5106206351,Business Travel,"Ministerial visit, Glasgow, 4th Aug 2014",B7 4HJ,498.00,
176,Communities & Local Government,DCLG,04/09/2014,Water,Finance & Corporate Services,BRISTOL WATER,,Large,,770124543,5106206364,Operation of Water Supplies and Distribution,2014/15 Rivergate Annual Water Charge,BS48 1WA,609.75,
177,Communities & Local Government,DCLG,04/09/2014,Water,Finance & Corporate Services,YORKSHIRE WATER,,Large,,236623377,5106206360,Operation of Water Supplies and Distribution,"1 Apr to 28 Sept 2014 Queen St, Leeds",BD3 7YD,302.30,
178,Communities & Local Government,DCLG,04/09/2014,Work In Progress Pre-Cert 40467 Spend,Neighbourhoods,BRITISH TELECOMMUNICATIONS PLC,,,,,7600009542,,Capital Grant Clawback Offset,EC1A 7AJ,-103.52,Yes
179,Communities & Local Government,DCLG,04/09/2014,Work In Progress Pre-Cert 40467 Spend,Neighbourhoods,BRITISH TELECOMMUNICATIONS PLC,,,,,7600009542,,Capital Grant To Be Paid,EC1A 7AJ,"3,826,093.87",Yes
180,Communities & Local Government,DCLG,04/09/2014,Work In Progress Pre-Cert 40467 Spend,Neighbourhoods,NEWLANDS COMM ASSCN (TRADING ARM),,,,,7600009543,,Capital Grant Clawback Offset,BD10 0JE,"-109,522.74",Yes
181,Communities & Local Government,DCLG,04/09/2014,Work In Progress Pre-Cert 40467 Spend,Neighbourhoods,NEWLANDS COMM ASSCN (TRADING ARM),,,,,7600009543,,Capital Grant To Be Paid,BD10 0JE,"264,219.23",Yes
182,Communities & Local Government,DCLG,05/09/2014,Agency Staff,Finance & Corporate Services,CAPITA BUS. SERV. LTD (CON LAB),,Large,,,5106206414,Contingent Labour,Interim and Specialist Contractor,DL1 9HB,"3,002.64",
183,Communities & Local Government,DCLG,05/09/2014,Agency Staff,Localism,CAPITA BUS. SERV. LTD (CON LAB),,Large,,,5106206415,Contingent Labour,Interim and Specialist Contractor,DL1 9HB,"3,807.94",
184,Communities & Local Government,DCLG,05/09/2014,Agency Staff,Localism,CAPITA BUS. SERV. LTD (CON LAB),,Large,,,5106206417,Contingent Labour,Interim and Specialist Contractor - Recoverable form Audit Comm,DL1 9HB,"5,989.36",
185,Communities & Local Government,DCLG,05/09/2014,Agency Staff,Neighbourhoods,CAPITA BUS. SERV. LTD (CON LAB),,Large,,,5106206408,Contingent Labour,Interim and Specialist Contractor,DL1 9HB,"1,622.74",
186,Communities & Local Government,DCLG,05/09/2014,Agency Staff,Neighbourhoods,CAPITA BUS. SERV. LTD (CON LAB),,Large,,,5106206412,Contingent Labour,Interim and Specialist Contractor,DL1 9HB,"2,661.94",
187,Communities & Local Government,DCLG,05/09/2014,Agency Staff,Neighbourhoods,CAPITA BUS. SERV. LTD (CON LAB),,Large,,,5106206413,Contingent Labour,Interim Manager,DL1 9HB,"1,622.74",
188,Communities & Local Government,DCLG,05/09/2014,Agency Staff,Neighbourhoods,CAPITA BUS. SERV. LTD (CON LAB),,Large,,,5106206413,Contingent Labour,Interim Manager (Expenses),DL1 9HB,118.68,
189,Communities & Local Government,DCLG,05/09/2014,Agency Staff,Neighbourhoods,CAPITA BUS. SERV. LTD (CON LAB),,Large,,,5106206425,Contingent Labour,Interim regional assessor,DL1 9HB,"2,147.11",
190,Communities & Local Government,DCLG,05/09/2014,Agency Staff,Neighbourhoods,CAPITA BUS. SERV. LTD (CON LAB),,Large,,,5106206425,Contingent Labour,Contractor ERDF Expenses,DL1 9HB,241.15,
191,Communities & Local Government,DCLG,05/09/2014,Current (non AEF) Grants to Local Authorities,Finance & Corporate Services,DURHAM & DARLINGTON FIRE RESCUE SER,,Public Bodies,,211684266,2100242013,,Regional Centre Centre Grant,DH1 1TW,"150,320.92",Yes
192,Communities & Local Government,DCLG,05/09/2014,Current (non AEF) Grants to Local Authorities,Finance & Corporate Services,GREATER LONDON AUTHORITY,,Large,,225353416,2100241999,,Regional Centre Centre Grant,SE10 1AP,"142,073.92",Yes
193,Communities & Local Government,DCLG,05/09/2014,Current (non AEF) Grants to Local Authorities,Finance & Corporate Services,GREATER MANCHESTER FIRE & RESCUE,,Public Bodies,,424873172,2100241987,,Regional Centre Centre Grant,M27 8US,"105,122.25",Yes
194,Communities & Local Government,DCLG,05/09/2014,Current Grants to Non Profit Bodies,Localism,FAITHS FORUM FOR LONDON,,,,,2100245958,,Grant for Big Iftar Project - Second Installment,SE1 0EH,"5,000.00",Yes
195,Communities & Local Government,DCLG,05/09/2014,Electricity,Finance & Corporate Services,BRITISH GAS TRADING LIMITED,,Large,,215697028,5106206409,Energy,Hempstead House Electricity 2014 - 2015,OX4 2JY,457.22,
196,Communities & Local Government,DCLG,05/09/2014,Electricity,Finance & Corporate Services,EDF ENERGY 1 LIMITED,,Large,,230840469,5106206410,Energy,SW Taunton Electricity 2014-15,PL3 5XQ,"2,423.56",
197,Communities & Local Government,DCLG,05/09/2014,"IT - PC, Network & Hardware",Localism,CHIPPING CAMPDEN SUPPLIES LTD,,Micro,,,5106206394,Security,Charging Cables for Operation Fodient,GL56 9RF,"1,437.60",
198,Communities & Local Government,DCLG,05/09/2014,"IT - PC, Network & Hardware",Finance & Corporate Services,COMPUTACENTER (UK) LTD,,Large,,226023463,5106205387,ICT Hardware,CS22U KVM switches for 2MS,AL10 9TW,"3,037.44",
199,Communities & Local Government,DCLG,05/09/2014,"IT - PC, Network & Hardware",Finance & Corporate Services,COMPUTACENTER (UK) LTD,,Large,,226023463,5106205412,ICT Hardware,CS22U KVM switches for 2MS,AL10 9TW,"6,639.36",
200,Communities & Local Government,DCLG,05/09/2014,"IT - PC, Network & Hardware",Finance & Corporate Services,COMPUTACENTER (UK) LTD,,Large,,226023463,5106205883,ICT Hardware,CS22U KVM switches for 2MS,AL10 9TW,"4,744.32",
201,Communities & Local Government,DCLG,05/09/2014,IT - Service Contracts,Neighbourhoods,APTO SOLUTIONS LTD,,Small,,739026040,5106206423,IT Managed / Outsourced Services,Planning Portal 1 APP Change Budget,BS8 3BA,"2,193.75",
202,Communities & Local Government,DCLG,05/09/2014,IT - Service Contracts,Neighbourhoods,JEREMY BENN ASSOCIATES LTD,,Medium,,525608741,5106206424,IT Managed / Outsourced Services,IT Enhancements,BD23 3AE,"2,475.02",
203,Communities & Local Government,DCLG,05/09/2014,Management Consultancy,Neighbourhoods,GVA GRIMLEY LTD,,Large,,210158990,5106206319,Consultancy,GVA SLA Oxford Science Vale (2),B1 2JB,"15,600.00",
204,Communities & Local Government,DCLG,05/09/2014,Management Consultancy,Neighbourhoods,GVA GRIMLEY LTD,,Large,,210158990,5106206319,Consultancy,GVA SLA Solent (3),B1 2JB,"4,800.00",
205,Communities & Local Government,DCLG,05/09/2014,Online Database Information Retrieval,Finance & Corporate Services,DUN & BRADSTREET LTD,,Large,,229515499,5106206354,ICT Services,Dun & Bradstreet financial reports 14-15,SL7 1AJ,"8,424.00",
206,Communities & Local Government,DCLG,05/09/2014,Printing,"Strategy, Communications and Private Office",WILLIAMS LEA LIMITED,,Large,,393456413,5106206418,Printing Services,Year 3 Print services,NR3 1PD,"5,428.02",
207,Communities & Local Government,DCLG,05/09/2014,Printing,"Strategy, Communications and Private Office",WILLIAMS LEA LIMITED,,Large,,393456413,5106206418,Printing Services,Year 3 Print services (0% VAT),NR3 1PD,"3,910.02",
208,Communities & Local Government,DCLG,05/09/2014,Printing,"Strategy, Communications and Private Office",WILLIAMS LEA LIMITED,,Large,,393456413,5106206426,Printing Services,Year 3 Print services (0% VAT),NR3 1PD,496.23,
209,Communities & Local Government,DCLG,05/09/2014,Professional services,Finance & Corporate Services,E C HARRIS LLP,,Large,,,5106206395,Construction Service Providers,PAMU Com - 101 - TFM Support - TG,N1 9AB,"3,990.56",
210,Communities & Local Government,DCLG,05/09/2014,Professional services,Localism,VALUATION OFFICE AGENCY,,Public Bodies,,215253886,2100245955,Environmental Services,DCLG DEL - September work on NNDR and Council Tax,W1B 5BU,"12,083,333.00",
211,Communities & Local Government,DCLG,05/09/2014,Publicity,"Strategy, Communications and Private Office",GORKANA GROUP LTD,,Large,,210089876,5106206337,Advertising,Press cuttings,EC1Y 8QE,"2,572.55",
212,Communities & Local Government,DCLG,05/09/2014,Software Licences,Finance & Corporate Services,SOFTWARE BOX LTD,,,,390294056,5106206248,Software,Dragon Nat Speak12.0 Prof Licence NONVAR,YO61 1ET,"1,132.35",
213,Communities & Local Government,DCLG,05/09/2014,Telecoms equipment (non-capitalised),Finance & Corporate Services,DAMOVO UK LTD,,Large,,221481042,5106206422,Telecoms,Regional Hubs Mont5hly recurring and Lin,RH12 4QP,227.24,
214,Communities & Local Government,DCLG,05/09/2014,Telecoms equipment (non-capitalised),Finance & Corporate Services,DAMOVO UK LTD,,Large,,221481042,5106206422,Telecoms,Telephone Calls,RH12 4QP,929.26,
215,Communities & Local Government,DCLG,05/09/2014,Telecoms equipment (non-capitalised),Finance & Corporate Services,DAMOVO UK LTD,,Large,,221481042,5106206422,Telecoms,Telephone Support Services,RH12 4QP,"112,801.09",
216,Communities & Local Government,DCLG,05/09/2014,Training,Finance & Corporate Services,PROSPECTS EMPLOYMENT SERVICES,,,,216248540,5106206396,Development and Training,Managing Employees with Autism,BS34 7BD,249.00,
217,Communities & Local Government,DCLG,05/09/2014,Training,Localism,SHARED SERVICE ARCHITECTURE LTD,,Micro,,,5106206393,Development and Training,4 sets of toolkits materials,EC2M 1NH,708.00,
218,Communities & Local Government,DCLG,05/09/2014,Work In Progress Pre-Cert 40373 Spend,Neighbourhoods,ACCESS TO BUSINESS,,Small,,,7600009548,,Revenue Grant To Be Paid,WV2 1AA,"29,371.15",Yes
219,Communities & Local Government,DCLG,05/09/2014,Work In Progress Pre-Cert 40373 Spend,Neighbourhoods,ANGLIA RUSKIN UNIVERSITY,,,,,7600009554,,Revenue Grant To Be Paid,CM1 1SQ,"91,917.59",Yes
220,Communities & Local Government,DCLG,05/09/2014,Work In Progress Pre-Cert 40373 Spend,Neighbourhoods,CORNWALL DEVELOPMENT COMPANY LTD,,,,,7600009551,,Revenue Grant To Be Paid,TR1 1EA,"42,386.63",Yes
221,Communities & Local Government,DCLG,05/09/2014,Work In Progress Pre-Cert 40373 Spend,Neighbourhoods,CORNWALL DEVELOPMENT COMPANY LTD,,,,,7600009552,,Revenue Grant To Be Paid,TR1 1EA,"76,813.42",Yes
222,Communities & Local Government,DCLG,05/09/2014,Work In Progress Pre-Cert 40373 Spend,Neighbourhoods,CORNWALL DEVELOPMENT COMPANY LTD,,,,,7600009553,,Revenue Grant To Be Paid,TR1 1EA,"10,668.59",Yes
223,Communities & Local Government,DCLG,05/09/2014,Work In Progress Pre-Cert 40373 Spend,Neighbourhoods,EAST MIDLANDS BUSINESS LTD,,Medium,,,7600009556,,Revenue Grant To Be Paid,LE19 1RJ,"88,883.61",Yes
224,Communities & Local Government,DCLG,05/09/2014,Work In Progress Pre-Cert 40373 Spend,Neighbourhoods,FOOD &  DRINK FORUM LTD (I-NET),,Small,,,7600009557,,Revenue Grant To Be Paid,NG5 9RG,"86,025.51",Yes
225,Communities & Local Government,DCLG,05/09/2014,Work In Progress Pre-Cert 40373 Spend,Neighbourhoods,LEICESTER CITY COUNCIL,,Large,,,7600009547,,Revenue Grant To Be Paid,LE1 6ZG,"6,030.32",Yes
226,Communities & Local Government,DCLG,05/09/2014,Work In Progress Pre-Cert 40373 Spend,Neighbourhoods,LEICESTER UNIVERSITY,,Large,,,7600009549,,Revenue Grant Clawback Offset,LE1 7RH,-446.00,Yes
227,Communities & Local Government,DCLG,05/09/2014,Work In Progress Pre-Cert 40373 Spend,Neighbourhoods,LEICESTER UNIVERSITY,,Large,,,7600009549,,Revenue Grant To Be Paid,LE1 7RH,"36,015.87",Yes
228,Communities & Local Government,DCLG,05/09/2014,Work In Progress Pre-Cert 40373 Spend,Neighbourhoods,LEICESTERSHIRE COUNTY COUNCIL,,Small,,,7600009558,,Revenue Grant To Be Paid,LE13 0UL,"28,488.20",Yes
229,Communities & Local Government,DCLG,05/09/2014,Work In Progress Pre-Cert 40373 Spend,Neighbourhoods,NORFOLK & WAVENEY ENTERPRISE SERV'S,,Medium,,,7600009546,,Revenue Grant Clawback Offset,NR2 1JH,"-18,917.70",Yes
230,Communities & Local Government,DCLG,05/09/2014,Work In Progress Pre-Cert 40373 Spend,Neighbourhoods,NORFOLK & WAVENEY ENTERPRISE SERV'S,,Medium,,,7600009546,,Revenue Grant To Be Paid,NR2 1JH,"29,644.16",Yes
231,Communities & Local Government,DCLG,05/09/2014,Work In Progress Pre-Cert 40373 Spend,Neighbourhoods,NOTTINGHAM UNIVERSITY,,Large,,,7600009555,,Revenue Grant To Be Paid,NG7 2RD,"104,081.56",Yes
232,Communities & Local Government,DCLG,05/09/2014,Work In Progress Pre-Cert 40467 Spend,Neighbourhoods,CORNWALL DEVELOPMENT COMPANY LTD,,,,,7600009551,,Capital Grant To Be Paid,TR1 1EA,"74,650.37",Yes
233,Communities & Local Government,DCLG,05/09/2014,Work In Progress Pre-Cert 40467 Spend,Neighbourhoods,CORNWALL DEVELOPMENT COMPANY LTD,,,,,7600009552,,Capital Grant To Be Paid,TR1 1EA,"49,793.01",Yes
234,Communities & Local Government,DCLG,05/09/2014,Work In Progress Pre-Cert 40467 Spend,Neighbourhoods,CORNWALL DEVELOPMENT COMPANY LTD,,,,,7600009553,,Capital Grant To Be Paid,TR1 1EA,"33,073.15",Yes
235,Communities & Local Government,DCLG,05/09/2014,Work In Progress Pre-Cert 40467 Spend,Neighbourhoods,EAST MIDLANDS BUSINESS LTD,,Medium,,,7600009556,,Capital Grant To Be Paid,LE19 1RJ,"312,770.35",Yes
236,Communities & Local Government,DCLG,05/09/2014,Work In Progress Pre-Cert 40467 Spend,Neighbourhoods,LEICESTER CITY COUNCIL,,Large,,,7600009547,,Capital Grant To Be Paid,LE1 6ZG,"1,134.85",Yes
237,Communities & Local Government,DCLG,05/09/2014,Work In Progress Pre-Cert 40467 Spend,Neighbourhoods,NOTTINGHAM CITY COUNCIL,,Large,,,7600009550,,Capital Grant To Be Paid,NG2 3NG,"54,454.27",Yes
238,Communities & Local Government,DCLG,08/09/2014,Agency Staff,Finance & Corporate Services,SQUARE ONE RESOURCES LTD,,Medium,,491410288,5106206430,Contingent Labour,SAP Support until closedown,EC2A 2AD,"2,001.18",
239,Communities & Local Government,DCLG,08/09/2014,Agency Staff,Neighbourhoods,REED EMPLOYMENT SERVICES,,Large,,292193364,5106206432,Contingent Labour,Extension 6 months,SW20 0BA,809.10,
240,Communities & Local Government,DCLG,08/09/2014,Agency Staff,Neighbourhoods,REED EMPLOYMENT SERVICES,,Large,,292193364,5106206433,Contingent Labour,Extension 6 months,SW20 0BA,809.10,
241,Communities & Local Government,DCLG,08/09/2014,Agency Staff,Neighbourhoods,REED SPECIALIST RECRUITMENT LTD,,Large,,214287592,5106206431,Contingent Labour,Planning casework,SW20 OBA,359.10,
242,Communities & Local Government,DCLG,08/09/2014,Agency Staff,Neighbourhoods,REED SPECIALIST RECRUITMENT LTD,,Large,,214287592,5106206434,Contingent Labour,Planning casework AWR Extension1 Month,SW20 OBA,774.55,
243,Communities & Local Government,DCLG,08/09/2014,Electricity,Finance & Corporate Services,EDF ENERGY 1 LIMITED,,Large,,230840469,5106206438,Energy,EoE Waterbeach Electricity 2014-15,PL3 5XQ,"3,413.83",
244,Communities & Local Government,DCLG,08/09/2014,IT - Software Maintenance,Finance & Corporate Services,METHODS CONSULTING LTD,,Medium,,505275578,5106206459,IT Managed / Outsourced Services,PIMS Application Support 17mths,WC2H 8AD,"24,000.00",
245,Communities & Local Government,DCLG,08/09/2014,Legal Fees,Neighbourhoods,PINSENT MASONS LLP,,Large,,217552905,5106206448,Legal,Legal Advice,B4 6BH,"4,628.33",
246,Communities & Local Government,DCLG,08/09/2014,Steady State Service Provision,Finance & Corporate Services,ALLPAY LIMITED,,Medium,,738359918,5106206420,Business Process Outsourcing Services,DC/DC Transaction Charges,HR1 3SE,350.25,
247,Communities & Local Government,DCLG,08/09/2014,Steady State Service Provision,Finance & Corporate Services,ALLPAY LIMITED,,Medium,,738359918,5106206420,Business Process Outsourcing Services,Monthly Management Fee Payments,HR1 3SE,500.00,
250,Communities & Local Government,DCLG,08/09/2014,Telecoms equipment (non-capitalised),Finance & Corporate Services,DAMOVO UK LTD,,Large,,221481042,5106206447,Telecoms,MPLS Circuit Charges 9 sites,RH12 4QP,"1,023.26",
251,Communities & Local Government,DCLG,08/09/2014,Telecoms equipment (non-capitalised),"Strategy, Communications and Private Office",COLT TELECOMMUNICATIONS,,Large,,543775258,5106206244,Telecoms,Dark fibre - HoC to Eland house monthly,EC3A 7QN,500.00,
252,Communities & Local Government,DCLG,08/09/2014,Vehicle Maintenance,Localism,BABCOCK CRITICAL SERVICES LTD,,Large,,215597451,5106206446,Fleet Management,Planned Vehicle Maintenance 14/15,NG15 0DR,"551,329.19",
253,Communities & Local Government,DCLG,08/09/2014,Work In Progress Pre-Cert 40373 Spend,Neighbourhoods,BISHOP GROSSETESTE UNIV COLL LINCOL,,Large,,,7600009560,,Revenue Grant To Be Paid,LN1 3DY,"4,530.04",Yes
254,Communities & Local Government,DCLG,08/09/2014,Work In Progress Pre-Cert 40373 Spend,Neighbourhoods,BUILDING RESEARCH ESTAB'MNT LTD (BR,,Large,,,7600009559,,Revenue Grant To Be Paid,WD25 9XX,"20,985.57",Yes
255,Communities & Local Government,DCLG,08/09/2014,Work In Progress Pre-Cert 40373 Spend,Neighbourhoods,CREATIVE ENGLAND LTD,,,,,7600009568,,Revenue Grant To Be Paid,BS1 5SP,"94,730.38",Yes
256,Communities & Local Government,DCLG,08/09/2014,Work In Progress Pre-Cert 40373 Spend,Neighbourhoods,DERBY CITY COUNCIL,,Large,,,7600009561,,Revenue Grant To Be Paid,DE1 2FE,"9,977.75",Yes
257,Communities & Local Government,DCLG,08/09/2014,Work In Progress Pre-Cert 40373 Spend,Neighbourhoods,DERBY UNIVERSITY,,Large,,,7600009572,,Revenue Grant To Be Paid,DE22 1XB,"29,031.41",Yes
258,Communities & Local Government,DCLG,08/09/2014,Work In Progress Pre-Cert 40373 Spend,Neighbourhoods,DERBY UNIVERSITY,,Large,,,7600009573,,Revenue Grant To Be Paid,DE22 1XB,"50,422.37",Yes
259,Communities & Local Government,DCLG,08/09/2014,Work In Progress Pre-Cert 40373 Spend,Neighbourhoods,LINCOLN BUSINESS IMPROVEMENT GROUP,,Small,,,7600009567,,Revenue Grant To Be Paid,LN2 1HA,"41,686.87",Yes
260,Communities & Local Government,DCLG,08/09/2014,Work In Progress Pre-Cert 40373 Spend,Neighbourhoods,MIGHTY CREATIVES,,Small,,,7600009570,,Revenue Grant To Be Paid,LE1 1RE,"40,094.07",Yes
261,Communities & Local Government,DCLG,08/09/2014,Work In Progress Pre-Cert 40373 Spend,Neighbourhoods,MIGHTY CREATIVES,,Small,,,7600009571,,Revenue Grant To Be Paid,LE1 1RE,"5,315.47",Yes
262,Communities & Local Government,DCLG,08/09/2014,Work In Progress Pre-Cert 40373 Spend,Neighbourhoods,OCEAN STUDIOS,,,,,7600009562,,Revenue Grant To Be Paid,PL1 3RP,"15,407.35",Yes
263,Communities & Local Government,DCLG,08/09/2014,Work In Progress Pre-Cert 40373 Spend,Neighbourhoods,ONE EAST MIDLANDS,,,,,7600009566,,Revenue Grant To Be Paid,NG1 3FB,"9,055.98",Yes
264,Communities & Local Government,DCLG,08/09/2014,Work In Progress Pre-Cert 40373 Spend,Neighbourhoods,SERCO REGIONAL SERVICES LTD,,,,,7600009563,,Revenue Grant To Be Paid,PL6 8LU,"98,409.70",Yes
265,Communities & Local Government,DCLG,08/09/2014,Work In Progress Pre-Cert 40467 Spend,Neighbourhoods,DERBY CITY COUNCIL,,Large,,,7600009561,,Capital Grant To Be Paid,DE1 2FE,"167,534.38",Yes
266,Communities & Local Government,DCLG,08/09/2014,Work In Progress Pre-Cert 40467 Spend,Neighbourhoods,HORNCASTLE GROUP PLC,,Medium,,,7600009564,,Capital Grant To Be Paid,HU15 2AT,"4,902.39",Yes
267,Communities & Local Government,DCLG,08/09/2014,Work In Progress Pre-Cert 40467 Spend,Neighbourhoods,HORNCASTLE GROUP PLC,,Medium,,,7600009574,,Capital Grant To Be Paid,HU15 2AT,"3,538.00",Yes
268,Communities & Local Government,DCLG,08/09/2014,Work In Progress Pre-Cert 40467 Spend,Neighbourhoods,HOULTS LTD,,Medium,,,7600009569,,Capital Grant To Be Paid,NE6 2HL,"371,498.49",Yes
269,Communities & Local Government,DCLG,08/09/2014,Work In Progress Pre-Cert 40467 Spend,Neighbourhoods,LINCOLN BUSINESS IMPROVEMENT GROUP,,Small,,,7600009567,,Capital Grant To Be Paid,LN2 1HA,"79,743.84",Yes
270,Communities & Local Government,DCLG,08/09/2014,Work In Progress Pre-Cert 40467 Spend,Neighbourhoods,OCEAN STUDIOS,,,,,7600009562,,Capital Grant To Be Paid,PL1 3RP,"118,628.08",Yes
271,Communities & Local Government,DCLG,08/09/2014,Work In Progress Pre-Cert 40467 Spend,Neighbourhoods,SCREEN YORKSHIRE LIMITED,,,,,7600009565,,Capital Grant To Be Paid,LS2 7EY,"159,773.90",Yes
272,Communities & Local Government,DCLG,09/09/2014,Agency Staff,Finance & Corporate Services,CAPITA BUS. SERV. LTD (CON LAB),,Large,,,5106206492,Contingent Labour,Interim Manager (Expenses),DL1 9HB,21.36,
273,Communities & Local Government,DCLG,09/09/2014,Agency Staff,Finance & Corporate Services,CAPITA BUS. SERV. LTD (CON LAB),,Large,,,5106206492,Contingent Labour,Interim and Specialist Contractor,DL1 9HB,"7,126.06",
274,Communities & Local Government,DCLG,09/09/2014,Cap Grants to Local Authorities (DEL),Neighbourhoods,NORTH LINCOLNSHIRE DC,,Public Bodies,,424005502,2100245928,,Enterprise Zone Building Foundations for Growth,DN16 1AB,"1,137,469.00",Yes
275,Communities & Local Government,DCLG,09/09/2014,CITI RFT out,Finance & Corporate Services,CESG,,Public Bodies,,423430925,2100246041,,CESG Ref: PT/PY4014/2006 Order 9.,GL51 0EX,"1,075.20",
276,Communities & Local Government,DCLG,09/09/2014,"IT - PC, Network & Hardware",Localism,COMPUTACENTER (UK) LTD,,Large,,226023463,5106206358,Networking,Cisco - Expansion module - GigE - 4 port,AL10 9TW,199.90,
277,Communities & Local Government,DCLG,09/09/2014,"IT - PC, Network & Hardware",Localism,COMPUTACENTER (UK) LTD,,Large,,226023463,5106206358,Networking,Cisco - SFP (mini-GBIC) transceiver modu,AL10 9TW,923.56,
278,Communities & Local Government,DCLG,09/09/2014,IT - Service Contracts,Localism,INFORMED SOLUTIONS LTD,,Small,,346179542,5106206491,IT Managed / Outsourced Services,Server Fix Aug 2014,WA14 4PA,"1,225.00",
279,Communities & Local Government,DCLG,09/09/2014,Professional services,Finance & Corporate Services,DAWES & FRASER CONSULTING LTD,,Small,,,5106206333,Financial,Contract and Technical support for IPC C,SE20 7BS,"4,266.00",
282,Communities & Local Government,DCLG,09/09/2014,Removals and Porterage,Finance & Corporate Services,JOHNSONS BUSINESS MOVES,,Medium,,,5106206440,Transport,Marsham Street Move Management,CW7 3PD,"23,215.40",
283,Communities & Local Government,DCLG,09/09/2014,Removals and Porterage,Finance & Corporate Services,JOHNSONS BUSINESS MOVES,,Medium,,,5106206440,Transport,Transit Insurance,CW7 3PD,"1,160.77",
284,Communities & Local Government,DCLG,09/09/2014,Removals and Porterage,Finance & Corporate Services,JOHNSONS BUSINESS MOVES,,Medium,,,5106206441,Transport,Marsham Street Move Management,CW7 3PD,"16,570.00",
285,Communities & Local Government,DCLG,09/09/2014,Removals and Porterage,Finance & Corporate Services,JOHNSONS BUSINESS MOVES,,Medium,,,5106206441,Transport,Transit Insurance,CW7 3PD,828.50,
286,Communities & Local Government,DCLG,09/09/2014,Removals and Porterage,Finance & Corporate Services,JOHNSONS BUSINESS MOVES,,Medium,,,5106206442,Transport,Marsham Street Move Management,CW7 3PD,"20,292.40",
287,Communities & Local Government,DCLG,09/09/2014,Removals and Porterage,Finance & Corporate Services,JOHNSONS BUSINESS MOVES,,Medium,,,5106206442,Transport,Transit Insurance,CW7 3PD,"1,014.62",
288,Communities & Local Government,DCLG,09/09/2014,Removals and Porterage,Finance & Corporate Services,JOHNSONS BUSINESS MOVES,,Medium,,,5106206443,Transport,Marsham Street Move Management,CW7 3PD,"21,487.10",
289,Communities & Local Government,DCLG,09/09/2014,Removals and Porterage,Finance & Corporate Services,JOHNSONS BUSINESS MOVES,,Medium,,,5106206443,Transport,Transit Insurance,CW7 3PD,"1,074.36",
290,Communities & Local Government,DCLG,09/09/2014,Steady State Service Provision,Neighbourhoods,SINCLAIR KNIGHT MERZ (EUROPE) LTD,,,,,5106206490,Business Process Outsourcing Services,Quality Assurance Audits,M5 3NN,"26,876.40",
291,Communities & Local Government,DCLG,09/09/2014,Steady State Service Provision,Neighbourhoods,SINCLAIR KNIGHT MERZ (EUROPE) LTD,,,,,5106206490,Business Process Outsourcing Services,Travel (First 18 Months),M5 3NN,51.00,
292,Communities & Local Government,DCLG,09/09/2014,Steady State Service Provision,Neighbourhoods,TRIBAL EDUCATION-MANAGEMENT FEES,,Large,,221445146,5106206469,Business Process Outsourcing Services,Payment to Tribal re Empty Homes Community Fund for DCLG,BS2 8RR,"6,788.16",
293,Communities & Local Government,DCLG,09/09/2014,Work In Progress Pre-Cert 40373 Spend,Neighbourhoods,BEDFORD COLLEGE,,,,,7600009589,,Revenue Grant To Be Paid,MK42 9AH,"27,845.65",Yes
294,Communities & Local Government,DCLG,09/09/2014,Work In Progress Pre-Cert 40373 Spend,Neighbourhoods,BUSINESS & ENTERPRISE COMMERCIAL,,Medium,,,7600009579,,Revenue Grant To Be Paid,SR7 7TT,"110,650.08",Yes
295,Communities & Local Government,DCLG,09/09/2014,Work In Progress Pre-Cert 40373 Spend,Neighbourhoods,BUSINESS & ENTERPRISE COMMERCIAL,,Medium,,,7600009580,,Revenue Grant To Be Paid,SR7 7TT,"173,974.10",Yes
296,Communities & Local Government,DCLG,09/09/2014,Work In Progress Pre-Cert 40373 Spend,Neighbourhoods,CHESTERFIELD BOROUGH COUNCIL,,Large,,,7600009575,,Revenue Grant To Be Paid,S40 1LP,"6,639.98",Yes
297,Communities & Local Government,DCLG,09/09/2014,Work In Progress Pre-Cert 40373 Spend,Neighbourhoods,ESSEX COUNTY COUNCIL,,Small,,,7600009586,,Revenue Grant To Be Paid,CO1 1WD,"121,806.64",Yes
298,Communities & Local Government,DCLG,09/09/2014,Work In Progress Pre-Cert 40373 Spend,Neighbourhoods,ESSEX COUNTY COUNCIL,,Small,,,7600009587,,Revenue Grant To Be Paid,CO1 1WD,"177,886.04",Yes
299,Communities & Local Government,DCLG,09/09/2014,Work In Progress Pre-Cert 40373 Spend,Neighbourhoods,FOOD &  DRINK FORUM LTD (I-NET),,Small,,,7600009577,,Revenue Grant To Be Paid,NG5 9RG,"8,535.89",Yes
300,Communities & Local Government,DCLG,09/09/2014,Work In Progress Pre-Cert 40373 Spend,Neighbourhoods,HENDRA TOURING CARAVAN & CAMPING PA,,Medium,,,7600009583,,Revenue Grant To Be Paid,TR8 4NY,"3,041.67",Yes
301,Communities & Local Government,DCLG,09/09/2014,Work In Progress Pre-Cert 40373 Spend,Neighbourhoods,NEWCASTLE CITY COUNCIL,,,,,7600009578,,Revenue Grant Clawback Offset,NE1 8QN,-35.56,Yes
302,Communities & Local Government,DCLG,09/09/2014,Work In Progress Pre-Cert 40373 Spend,Neighbourhoods,NEWCASTLE CITY COUNCIL,,,,,7600009578,,Revenue Grant To Be Paid,NE1 8QN,"47,150.68",Yes
303,Communities & Local Government,DCLG,09/09/2014,Work In Progress Pre-Cert 40373 Spend,Neighbourhoods,THURROCK COUNCIL,,,,,7600009588,,Revenue Grant Clawback Offset,RM17 6SL,"-18,428.21",Yes
304,Communities & Local Government,DCLG,09/09/2014,Work In Progress Pre-Cert 40373 Spend,Neighbourhoods,THURROCK COUNCIL,,,,,7600009588,,Revenue Grant To Be Paid,RM17 6SL,"190,857.10",Yes
305,Communities & Local Government,DCLG,09/09/2014,Work In Progress Pre-Cert 40373 Spend,Neighbourhoods,UNIVERSITY OF EXETER,,,,,7600009576,,Revenue Grant To Be Paid,EX4 4QJ,"77,850.70",Yes
306,Communities & Local Government,DCLG,09/09/2014,Work In Progress Pre-Cert 40373 Spend,Neighbourhoods,WEST OF ENGLAND AEROSPACE FORUM,,,,,7600009582,,Revenue Grant To Be Paid,BS21 6UP,"50,863.59",Yes
307,Communities & Local Government,DCLG,09/09/2014,Work In Progress Pre-Cert 40373 Spend,Neighbourhoods,WILTSHIRE COLLEGE,,Large,,,7600009585,,Revenue Grant To Be Paid,BA14 0ES,"31,458.79",Yes
308,Communities & Local Government,DCLG,09/09/2014,Work In Progress Pre-Cert 40467 Spend,Neighbourhoods,EAST ANGLIA UNIVERSITY,,,,,7600009581,,Capital Grant To Be Paid,NR4 7TJ,"306,502.34",Yes
309,Communities & Local Government,DCLG,09/09/2014,Work In Progress Pre-Cert 40467 Spend,Neighbourhoods,HENDRA TOURING CARAVAN & CAMPING PA,,Medium,,,7600009583,,Capital Grant To Be Paid,TR8 4NY,"2,904.96",Yes
310,Communities & Local Government,DCLG,09/09/2014,Work In Progress Pre-Cert 40467 Spend,Neighbourhoods,MILLFIELDS COMMUNITY ECONOMIC DEV T,Yes,,,,7600009584,,Capital Grant To Be Paid,PL1 3HQ,"220,902.44",Yes
311,Communities & Local Government,DCLG,09/09/2014,Work In Progress Pre-Cert 40467 Spend,Neighbourhoods,THURROCK COUNCIL,,,,,7600009588,,Capital Grant Clawback Offset,RM17 6SL,"-71,746.23",Yes
312,Communities & Local Government,DCLG,10/09/2014,Agency Staff,Finance & Corporate Services,ALLEN LANE FINANCIAL RECRUITMENT,,Medium,Yes,738603443,5106206505,Contingent Labour,Interim Accountant (Ext 02),,"3,036.86",
315,Communities & Local Government,DCLG,10/09/2014,Agency Staff,Neighbourhoods,CAPITA RESOURCING LTD,,Large,,215581006,5106206499,Contingent Labour,Private Rented Sector Guarantees Commercial Community Advice,SL6 1DP,"7,127.89",
316,Communities & Local Government,DCLG,10/09/2014,Agency Staff,Neighbourhoods,REED SPECIALIST RECRUITMENT LTD,,Large,,214287592,5106206510,Contingent Labour,Planning casework,SW20 OBA,373.46,
317,Communities & Local Government,DCLG,10/09/2014,Agency Staff,Neighbourhoods,REED SPECIALIST RECRUITMENT LTD,,Large,,214287592,5106206511,Contingent Labour,Planning casework AWR Extension1 Month,SW20 OBA,472.61,
318,Communities & Local Government,DCLG,10/09/2014,Current Grants to Non Profit Bodies,Neighbourhoods,CENTRE FOR ENGINEERING & MANUF EXCE,,,,,2100246008,,Grant payment for June 14,RM13 8EU,"189,804.00",Yes
319,Communities & Local Government,DCLG,10/09/2014,Current Grants to Non Profit Bodies,Neighbourhoods,CENTRE FOR ENGINEERING & MANUF EXCE,,,,,2100246009,,Grant Payment for July 14,RM13 8EU,"101,179.00",Yes
320,Communities & Local Government,DCLG,10/09/2014,Electricity,Finance & Corporate Services,EDF ENERGY 1 LIMITED,,Large,,230840469,5106206527,Energy,EM Castle Don Electricity 2014-15,PL3 5XQ,"2,877.61",
321,Communities & Local Government,DCLG,10/09/2014,IT - Service Contracts,Finance & Corporate Services,LOCKHEED MARTIN BUSINESS TECH SOLUT,,Large,,399909910,5106206497,IT Managed / Outsourced Services,Monthly service cost 2013/2014,PA4 9LH,"42,400.00",
322,Communities & Local Government,DCLG,10/09/2014,IT - Service Contracts,Finance & Corporate Services,LOCKHEED MARTIN BUSINESS TECH SOLUT,,Large,,399909910,5106206526,IT Managed / Outsourced Services,CR117 - Updating Programme-Cart 10120052,PA4 9LH,"30,140.00",
323,Communities & Local Government,DCLG,10/09/2014,IT - Software Maintenance,Finance & Corporate Services,CESG,,Public Bodies,,423430925,5106206350,IT Managed / Outsourced Services,CESG Ref: PT/PY4014/2006 Order 9.,GL51 0EX,"1,075.20",
324,Communities & Local Government,DCLG,10/09/2014,IT - Software Maintenance,Finance & Corporate Services,KAIZEN ASSOCIATES LTD,,Micro,,217482430,5106206464,IT Managed / Outsourced Services,SAP Application Support,SE1 6SW,"1,087.93",
325,Communities & Local Government,DCLG,10/09/2014,Online Database Information Retrieval,Finance & Corporate Services,DOW JONES REUTERS BUS INTERACT,,Large,,221036630,5106206512,ICT Services,Factiva DJX 2014-15,E1W 1AZ,930.00,
326,Communities & Local Government,DCLG,10/09/2014,Physical Storage,Finance & Corporate Services,IRON MOUNTAIN (UK) LIMITED,,Large,,501338354,5106206519,Warehousing and Storage,Offsite storage - tapes 2014-15,EH54 7DF,394.90,
327,Communities & Local Government,DCLG,10/09/2014,Publicity,"Strategy, Communications and Private Office",PRESS ASSOCIATION,,Large,,217191704,5106206524,Advertising,PRESS ASSOCIATION (PA) 2014-17,DN14 7YH,"1,273.82",
328,Communities & Local Government,DCLG,10/09/2014,Recruitment,Finance & Corporate Services,HM REVENUE & CUSTOMS,,Public Bodies,,365117972,5106206520,Business Process Outsourcing Services,CS E-Recruitment (until 2018.19),BN12 4XH,"1,694.20",
329,Communities & Local Government,DCLG,10/09/2014,Services provided by other Govt Orgs,Finance & Corporate Services,DEPARTMENT FOR WORK & PENSIONS,,Public Bodies,,218124765,5106206326,Financial,DCLG Security Vetting 2014-15,FY5 3TA,"5,867.75",Yes
330,Communities & Local Government,DCLG,10/09/2014,Training,Finance & Corporate Services,CAPITA BUS. SERV. LTD (CSL),,Large,,215580993,5106206495,Development and Training,Management of Risk (M_o_R ) Foundation,DL1 9HB,773.00,
331,Communities & Local Government,DCLG,10/09/2014,Training,Finance & Corporate Services,CAPITA BUS. SERV. LTD (CSL),,Large,,215580993,5106206500,Development and Training,Action Learning Set: Grade 6/7 Growth Pr,DL1 9HB,792.68,
332,Communities & Local Government,DCLG,10/09/2014,Vehicle Maintenance,Localism,BABCOCK CRITICAL SERVICES LTD,,Large,,215597451,5106206516,Fleet Management,Consumables (Mobile Billing for Fleet),NG15 0DR,745.81,
333,Communities & Local Government,DCLG,10/09/2014,Work In Progress Pre-Cert 40373 Spend,Neighbourhoods,ASTON UNIVERSITY,,Large,,,7600009598,,Revenue Grant To Be Paid,B4 7ET,"33,407.54",Yes
334,Communities & Local Government,DCLG,10/09/2014,Work In Progress Pre-Cert 40373 Spend,Neighbourhoods,BRAUNSTONE FOUNDATION,,Small,,,7600009602,,Revenue Grant To Be Paid,LE3 1HR,"79,584.83",Yes
335,Communities & Local Government,DCLG,10/09/2014,Work In Progress Pre-Cert 40373 Spend,Neighbourhoods,CORNWALL DEVELOPMENT COMPANY LTD,,,,,7600009592,,Revenue Grant Clawback Offset,TR1 1EA,-40.50,Yes
336,Communities & Local Government,DCLG,10/09/2014,Work In Progress Pre-Cert 40373 Spend,Neighbourhoods,CORNWALL DEVELOPMENT COMPANY LTD,,,,,7600009592,,Revenue Grant To Be Paid,TR1 1EA,"38,804.83",Yes
337,Communities & Local Government,DCLG,10/09/2014,Work In Progress Pre-Cert 40373 Spend,Neighbourhoods,COVENTRY UNIVERSITY,,Large,,,7600009595,,Revenue Grant To Be Paid,CV1 5FB,"72,662.05",Yes
338,Communities & Local Government,DCLG,10/09/2014,Work In Progress Pre-Cert 40373 Spend,Neighbourhoods,COVENTRY UNIVERSITY ENTERPRISES LTD,,Medium,,,7600009599,,Revenue Grant To Be Paid,CV1 2TT,"39,959.91",Yes
339,Communities & Local Government,DCLG,10/09/2014,Work In Progress Pre-Cert 40373 Spend,Neighbourhoods,COVENTRY UNIVERSITY ENTERPRISES LTD,,Medium,,,7600009600,,Revenue Grant To Be Paid,CV1 2TT,"58,496.07",Yes
340,Communities & Local Government,DCLG,10/09/2014,Work In Progress Pre-Cert 40373 Spend,Neighbourhoods,DE MONTFORT UNIVERSITY,,Large,,,7600009594,,Revenue Grant To Be Paid,LE1 9BH,"4,232.08",Yes
341,Communities & Local Government,DCLG,10/09/2014,Work In Progress Pre-Cert 40373 Spend,Neighbourhoods,DNCC LIMITED,,Medium,,,7600009606,,Revenue Grant To Be Paid,S41 7NA,"106,479.51",Yes
342,Communities & Local Government,DCLG,10/09/2014,Work In Progress Pre-Cert 40373 Spend,Neighbourhoods,LINCONSHIRE COUNTY COUNCIL,,Large,,,7600009590,,Revenue Grant To Be Paid,LN1 1YT,"10,205.17",Yes
343,Communities & Local Government,DCLG,10/09/2014,Work In Progress Pre-Cert 40373 Spend,Neighbourhoods,LINCONSHIRE COUNTY COUNCIL,,Large,,,7600009605,,Revenue Grant Clawback Offset,LN1 1YT,-243.67,Yes
344,Communities & Local Government,DCLG,10/09/2014,Work In Progress Pre-Cert 40373 Spend,Neighbourhoods,LINCONSHIRE COUNTY COUNCIL,,Large,,,7600009605,,Revenue Grant To Be Paid,LN1 1YT,"43,724.87",Yes
345,Communities & Local Government,DCLG,10/09/2014,Work In Progress Pre-Cert 40373 Spend,Neighbourhoods,NEWCASTLE CITY COUNCIL,,,,,7600009601,,Revenue Grant Clawback Offset,NE1 8QN,-45.44,Yes
346,Communities & Local Government,DCLG,10/09/2014,Work In Progress Pre-Cert 40373 Spend,Neighbourhoods,NEWCASTLE CITY COUNCIL,,,,,7600009601,,Revenue Grant To Be Paid,NE1 8QN,"58,696.84",Yes
347,Communities & Local Government,DCLG,10/09/2014,Work In Progress Pre-Cert 40373 Spend,Neighbourhoods,NORTH EAST BUSINESS & INNOV CENTRE,,Small,,,7600009591,,Revenue Grant To Be Paid,SR5 2TA,"53,656.96",Yes
348,Communities & Local Government,DCLG,10/09/2014,Work In Progress Pre-Cert 40373 Spend,Neighbourhoods,NORTH EAST ENTERPRISE AGENCY LTD,,,,,7600009597,,Revenue Grant To Be Paid,SR3 1AX,"26,433.54",Yes
349,Communities & Local Government,DCLG,10/09/2014,Work In Progress Pre-Cert 40373 Spend,Neighbourhoods,SOLIHULL METROPOLITAN BC,,Large,,,7600009596,,Revenue Grant To Be Paid,B91 3QS,"15,107.00",Yes
350,Communities & Local Government,DCLG,10/09/2014,Work In Progress Pre-Cert 40373 Spend,Neighbourhoods,UK HISTORIC BUILDING PRESERVATION T,Yes,Small,,,7600009593,,Revenue Grant To Be Paid,SW1W 0QP,"18,004.44",Yes
351,Communities & Local Government,DCLG,10/09/2014,Work In Progress Pre-Cert 40373 Spend,Neighbourhoods,WINNING PITCH LIMITED,,Medium,,,7600009603,,Revenue Grant Clawback Offset,M5 3EJ,-0.60,Yes
352,Communities & Local Government,DCLG,10/09/2014,Work In Progress Pre-Cert 40373 Spend,Neighbourhoods,WINNING PITCH LIMITED,,Medium,,,7600009603,,Revenue Grant To Be Paid,M5 3EJ,"24,862.87",Yes
353,Communities & Local Government,DCLG,10/09/2014,Work In Progress Pre-Cert 40373 Spend,Neighbourhoods,YTKO LIMITED,,,,,7600009604,,Revenue Grant To Be Paid,CB4 2QH,"87,249.34",Yes
354,Communities & Local Government,DCLG,10/09/2014,Work In Progress Pre-Cert 40467 Spend,Neighbourhoods,SOLIHULL METROPOLITAN BC,,Large,,,7600009596,,Capital Grant To Be Paid,B91 3QS,"575,671.96",Yes
355,Communities & Local Government,DCLG,10/09/2014,Work In Progress Pre-Cert 40467 Spend,Neighbourhoods,UK HISTORIC BUILDING PRESERVATION T,Yes,Small,,,7600009593,,Capital Grant To Be Paid,SW1W 0QP,"130,885.79",Yes
356,Communities & Local Government,DCLG,11/09/2014,Accommodation - actuals,Finance & Corporate Services,REDFERN TRAVEL LIMITED,,Small,,213089972,2100246163,Business Travel Accommodation,Consolidated Monthly Travel August Hotels,BD1 3AZ,"2,274.00",
357,Communities & Local Government,DCLG,11/09/2014,Accommodation - actuals,Finance & Corporate Services,REDFERN TRAVEL LIMITED,,Small,,213089972,2100246163,Business Travel Accommodation,Consolidated Monthly Travel August Hotels,BD1 3AZ,343.95,
358,Communities & Local Government,DCLG,11/09/2014,Accommodation - actuals,Finance & Corporate Services,REDFERN TRAVEL LIMITED,,Small,,213089972,2100246163,Business Travel Accommodation,Consolidated Monthly Travel August Hotels,BD1 3AZ,298.00,
359,Communities & Local Government,DCLG,11/09/2014,Accommodation - actuals,Localism,REDFERN TRAVEL LIMITED,,Small,,213089972,2100246163,Business Travel Accommodation,Consolidated Monthly Travel August Hotels,BD1 3AZ,"1,029.00",
360,Communities & Local Government,DCLG,11/09/2014,Accommodation - actuals,Localism,REDFERN TRAVEL LIMITED,,Small,,213089972,2100246163,Business Travel Accommodation,Consolidated Monthly Travel August Hotels,BD1 3AZ,"2,868.08",
361,Communities & Local Government,DCLG,11/09/2014,Accommodation - actuals,Localism,REDFERN TRAVEL LIMITED,,Small,,213089972,2100246163,Business Travel Accommodation,Consolidated Monthly Travel August Hotels,BD1 3AZ,262.01,
362,Communities & Local Government,DCLG,11/09/2014,Accommodation - actuals,Localism,REDFERN TRAVEL LIMITED,,Small,,213089972,2100246163,Business Travel Accommodation,Consolidated Monthly Travel August Hotels,BD1 3AZ,"1,040.30",
363,Communities & Local Government,DCLG,11/09/2014,Accommodation - actuals,Neighbourhoods,REDFERN TRAVEL LIMITED,,Small,,213089972,2100246163,Business Travel Accommodation,Consolidated Monthly Travel August Hotels,BD1 3AZ,385.68,
364,Communities & Local Government,DCLG,11/09/2014,Accommodation - actuals,Neighbourhoods,REDFERN TRAVEL LIMITED,,Small,,213089972,2100246163,Business Travel Accommodation,Consolidated Monthly Travel August Hotels,BD1 3AZ,"1,212.25",
365,Communities & Local Government,DCLG,11/09/2014,Accommodation - actuals,Neighbourhoods,REDFERN TRAVEL LIMITED,,Small,,213089972,2100246163,Business Travel Accommodation,Consolidated Monthly Travel August Hotels,BD1 3AZ,296.00,
366,Communities & Local Government,DCLG,11/09/2014,Accommodation - actuals,"Strategy, Communications and Private Office",REDFERN TRAVEL LIMITED,,Small,,213089972,2100246163,Business Travel Accommodation,Consolidated Monthly Travel August Hotels,BD1 3AZ,340.00,
367,Communities & Local Government,DCLG,11/09/2014,Accommodation - actuals,"Strategy, Communications and Private Office",REDFERN TRAVEL LIMITED,,Small,,213089972,2100246163,Business Travel Accommodation,Consolidated Monthly Travel August Hotels,BD1 3AZ,693.35,
368,Communities & Local Government,DCLG,11/09/2014,Accommodation - actuals,Troubled Families,REDFERN TRAVEL LIMITED,,Small,,213089972,2100246163,Business Travel Accommodation,Consolidated Monthly Travel August Hotels,BD1 3AZ,280.85,
371,Communities & Local Government,DCLG,11/09/2014,Air Travel,Neighbourhoods,REDFERN TRAVEL LIMITED,,Small,,213089972,2100246163,Air,Consolidated Monthly Travel August Air Tickets,BD1 3AZ,277.78,
372,Communities & Local Government,DCLG,11/09/2014,Air Travel,Neighbourhoods,REDFERN TRAVEL LIMITED,,Small,,213089972,2100246163,Air,Consolidated Monthly Travel August Air Tickets,BD1 3AZ,639.63,
373,Communities & Local Government,DCLG,11/09/2014,Air Travel,Neighbourhoods,REDFERN TRAVEL LIMITED,,Small,,213089972,2100246163,Air,Consolidated Monthly Travel August Air Tickets,BD1 3AZ,563.39,
374,Communities & Local Government,DCLG,11/09/2014,Air Travel,Neighbourhoods,REDFERN TRAVEL LIMITED,,Small,,213089972,2100246163,Air,Consolidated Monthly Travel August Air Tickets,BD1 3AZ,321.79,
375,Communities & Local Government,DCLG,11/09/2014,Air Travel,"Strategy, Communications and Private Office",REDFERN TRAVEL LIMITED,,Small,,213089972,2100246163,Air,Consolidated Monthly Travel August Air Tickets,BD1 3AZ,659.96,
376,Communities & Local Government,DCLG,11/09/2014,"IT - PC, Network & Hardware",Finance & Corporate Services,DAMOVO UK LTD,,Large,,221481042,5106206290,ICT Hardware,Core Infrastructure Marsham St CCN029,RH12 4QP,"28,502.40",
377,Communities & Local Government,DCLG,11/09/2014,IT - Service Contracts,Finance & Corporate Services,FUJITSU SERVICES LTD,,Large,,423375062,5106206297,IT Managed / Outsourced Services,FY 14/15 New Requirements,WA3 9BD,"7,544.00",
378,Communities & Local Government,DCLG,11/09/2014,IT - Service Contracts,Finance & Corporate Services,FUJITSU SERVICES LTD,,Large,,423375062,5106206299,IT Managed / Outsourced Services,FY 14/15 New Requirements,WA3 9BD,"21,150.00",
379,Communities & Local Government,DCLG,11/09/2014,IT - Service Contracts,Finance & Corporate Services,FUJITSU SERVICES LTD,,Large,,423375062,5106206523,IT Managed / Outsourced Services,FY 14/15 New Requirements,WA3 9BD,"24,729.49",
383,Communities & Local Government,DCLG,11/09/2014,Management Consultancy,Neighbourhoods,DTZ DEBENHAM TIE LEUNG,,Large,,215585409,5106206468,Consultancy,DTZ South East 2 (London Royal Docks - P,B4 6AJ,"3,825.60",
384,Communities & Local Government,DCLG,11/09/2014,Management Consultancy,Neighbourhoods,DTZ DEBENHAM TIE LEUNG,,Large,,215585409,5106206468,Consultancy,DTZ South East 3 (Harlow EZ  - Phase 1 -,B4 6AJ,"3,600.00",
385,Communities & Local Government,DCLG,11/09/2014,Management Consultancy,Neighbourhoods,DTZ DEBENHAM TIE LEUNG,,Large,,215585409,5106206468,Consultancy,South East Expenses,B4 6AJ,982.08,
389,Communities & Local Government,DCLG,11/09/2014,Management Consultancy,Neighbourhoods,DTZ DEBENHAM TIE LEUNG,,Large,,215585409,5106206546,Consultancy,DTZ Midlands: Black Country Enterprise Zone National Grid,B4 6AJ,"1,845.60",
390,Communities & Local Government,DCLG,11/09/2014,Management Consultancy,Neighbourhoods,DTZ DEBENHAM TIE LEUNG,,Large,,215585409,5106206546,Consultancy,DTZ Midlands: MIRA Enterprise Zone Investment Model ,B4 6AJ,"8,820.00",
391,Communities & Local Government,DCLG,11/09/2014,Management Consultancy,Neighbourhoods,DTZ DEBENHAM TIE LEUNG,,Large,,215585409,5106206546,Consultancy,DTZ Midlands: Nottingham Enterprise Zone,B4 6AJ,720.00,
392,Communities & Local Government,DCLG,11/09/2014,Management Consultancy,Neighbourhoods,DTZ DEBENHAM TIE LEUNG,,Large,,215585409,5106206546,Consultancy,DTZ Midlands: Black Country Enterprise Zone Junction 10,B4 6AJ,"3,060.00",
393,Communities & Local Government,DCLG,11/09/2014,Management Consultancy,Neighbourhoods,DTZ DEBENHAM TIE LEUNG,,Large,,215585409,5106206546,Consultancy,DTZ Midlands: Hereford Enterprise Zone,B4 6AJ,"1,485.60",
394,Communities & Local Government,DCLG,11/09/2014,Management Consultancy,Neighbourhoods,DTZ DEBENHAM TIE LEUNG,,Large,,215585409,5106206546,Consultancy,Midlands Expenses,B4 6AJ,300.22,
395,Communities & Local Government,DCLG,11/09/2014,Office machinery consumables,Localism,X M A LTD,,Large,,298484148,5106206416,Office Supplies,Delweekly HP Color LaserJet 5500 /5550 b,NG11 7EP,257.38,
396,Communities & Local Government,DCLG,11/09/2014,Office machinery consumables,Localism,X M A LTD,,Large,,298484148,5106206416,Office Supplies,Delweekly HP Color LaserJet 5500 /5550 c,NG11 7EP,181.58,
397,Communities & Local Government,DCLG,11/09/2014,"Rail, Underground and Eurostar",Finance & Corporate Services,REDFERN TRAVEL LIMITED,,Small,,213089972,2100246163,Rail,Consolidated Monthly Travel August Rail,BD1 3AZ,"2,524.06",
398,Communities & Local Government,DCLG,11/09/2014,"Rail, Underground and Eurostar",Finance & Corporate Services,REDFERN TRAVEL LIMITED,,Small,,213089972,2100246163,Rail,Consolidated Monthly Travel August Rail,BD1 3AZ,296.26,
399,Communities & Local Government,DCLG,11/09/2014,"Rail, Underground and Eurostar",Finance & Corporate Services,REDFERN TRAVEL LIMITED,,Small,,213089972,2100246163,Rail,Consolidated Monthly Travel August Rail,BD1 3AZ,391.17,
400,Communities & Local Government,DCLG,11/09/2014,"Rail, Underground and Eurostar",Finance & Corporate Services,REDFERN TRAVEL LIMITED,,Small,,213089972,2100246163,Rail,Consolidated Monthly Travel August Rail,BD1 3AZ,"1,359.81",
401,Communities & Local Government,DCLG,11/09/2014,"Rail, Underground and Eurostar",Finance & Corporate Services,REDFERN TRAVEL LIMITED,,Small,,213089972,2100246163,Rail,Consolidated Monthly Travel August Rail,BD1 3AZ,-257.38,
402,Communities & Local Government,DCLG,11/09/2014,"Rail, Underground and Eurostar",Finance & Corporate Services,REDFERN TRAVEL LIMITED,,Small,,213089972,2100246163,Rail,Consolidated Monthly Travel August Rail,BD1 3AZ,"5,321.38",
403,Communities & Local Government,DCLG,11/09/2014,"Rail, Underground and Eurostar",Finance & Corporate Services,REDFERN TRAVEL LIMITED,,Small,,213089972,2100246163,Rail,Consolidated Monthly Travel August Rail,BD1 3AZ,523.18,
404,Communities & Local Government,DCLG,11/09/2014,"Rail, Underground and Eurostar",Finance & Corporate Services,REDFERN TRAVEL LIMITED,,Small,,213089972,2100246163,Rail,Consolidated Monthly Travel August Rail,BD1 3AZ,327.24,
405,Communities & Local Government,DCLG,11/09/2014,"Rail, Underground and Eurostar",Finance & Corporate Services,REDFERN TRAVEL LIMITED,,Small,,213089972,2100246163,Rail,Consolidated Monthly Travel August Rail,BD1 3AZ,605.27,
406,Communities & Local Government,DCLG,11/09/2014,"Rail, Underground and Eurostar",Finance & Corporate Services,REDFERN TRAVEL LIMITED,,Small,,213089972,2100246163,Rail,Consolidated Monthly Travel August Rail,BD1 3AZ,"1,348.86",
407,Communities & Local Government,DCLG,11/09/2014,"Rail, Underground and Eurostar",Localism,REDFERN TRAVEL LIMITED,,Small,,213089972,2100246163,Rail,Consolidated Monthly Travel August Rail,BD1 3AZ,784.74,
408,Communities & Local Government,DCLG,11/09/2014,"Rail, Underground and Eurostar",Localism,REDFERN TRAVEL LIMITED,,Small,,213089972,2100246163,Rail,Consolidated Monthly Travel August Rail,BD1 3AZ,720.17,
409,Communities & Local Government,DCLG,11/09/2014,"Rail, Underground and Eurostar",Localism,REDFERN TRAVEL LIMITED,,Small,,213089972,2100246163,Rail,Consolidated Monthly Travel August Rail,BD1 3AZ,333.42,
410,Communities & Local Government,DCLG,11/09/2014,"Rail, Underground and Eurostar",Localism,REDFERN TRAVEL LIMITED,,Small,,213089972,2100246163,Rail,Consolidated Monthly Travel August Rail,BD1 3AZ,"1,275.08",
411,Communities & Local Government,DCLG,11/09/2014,"Rail, Underground and Eurostar",Localism,REDFERN TRAVEL LIMITED,,Small,,213089972,2100246163,Rail,Consolidated Monthly Travel August Rail,BD1 3AZ,916.58,
412,Communities & Local Government,DCLG,11/09/2014,"Rail, Underground and Eurostar",Localism,REDFERN TRAVEL LIMITED,,Small,,213089972,2100246163,Rail,Consolidated Monthly Travel August Rail,BD1 3AZ,"1,529.62",
413,Communities & Local Government,DCLG,11/09/2014,"Rail, Underground and Eurostar",Localism,REDFERN TRAVEL LIMITED,,Small,,213089972,2100246163,Rail,Consolidated Monthly Travel August Rail,BD1 3AZ,"1,332.24",
414,Communities & Local Government,DCLG,11/09/2014,"Rail, Underground and Eurostar",Localism,REDFERN TRAVEL LIMITED,,Small,,213089972,2100246163,Rail,Consolidated Monthly Travel August Rail,BD1 3AZ,"1,798.56",
415,Communities & Local Government,DCLG,11/09/2014,"Rail, Underground and Eurostar",Localism,REDFERN TRAVEL LIMITED,,Small,,213089972,2100246163,Rail,Consolidated Monthly Travel August Rail,BD1 3AZ,"1,028.36",
416,Communities & Local Government,DCLG,11/09/2014,"Rail, Underground and Eurostar",Localism,REDFERN TRAVEL LIMITED,,Small,,213089972,2100246163,Rail,Consolidated Monthly Travel August Rail,BD1 3AZ,908.15,
417,Communities & Local Government,DCLG,11/09/2014,"Rail, Underground and Eurostar",Localism,REDFERN TRAVEL LIMITED,,Small,,213089972,2100246163,Rail,Consolidated Monthly Travel August Rail,BD1 3AZ,682.03,
418,Communities & Local Government,DCLG,11/09/2014,"Rail, Underground and Eurostar",Localism,REDFERN TRAVEL LIMITED,,Small,,213089972,2100246163,Rail,Consolidated Monthly Travel August Rail,BD1 3AZ,"3,185.78",
419,Communities & Local Government,DCLG,11/09/2014,"Rail, Underground and Eurostar",Neighbourhoods,REDFERN TRAVEL LIMITED,,Small,,213089972,2100246163,Rail,Consolidated Monthly Travel August Rail,BD1 3AZ,375.30,
420,Communities & Local Government,DCLG,11/09/2014,"Rail, Underground and Eurostar",Neighbourhoods,REDFERN TRAVEL LIMITED,,Small,,213089972,2100246163,Rail,Consolidated Monthly Travel August Rail,BD1 3AZ,309.53,
421,Communities & Local Government,DCLG,11/09/2014,"Rail, Underground and Eurostar",Neighbourhoods,REDFERN TRAVEL LIMITED,,Small,,213089972,2100246163,Rail,Consolidated Monthly Travel August Rail,BD1 3AZ,570.44,
422,Communities & Local Government,DCLG,11/09/2014,"Rail, Underground and Eurostar",Neighbourhoods,REDFERN TRAVEL LIMITED,,Small,,213089972,2100246163,Rail,Consolidated Monthly Travel August Rail,BD1 3AZ,"2,918.43",
423,Communities & Local Government,DCLG,11/09/2014,"Rail, Underground and Eurostar",Neighbourhoods,REDFERN TRAVEL LIMITED,,Small,,213089972,2100246163,Rail,Consolidated Monthly Travel August Rail,BD1 3AZ,355.54,
424,Communities & Local Government,DCLG,11/09/2014,"Rail, Underground and Eurostar",Neighbourhoods,REDFERN TRAVEL LIMITED,,Small,,213089972,2100246163,Rail,Consolidated Monthly Travel August Rail,BD1 3AZ,"1,111.21",
425,Communities & Local Government,DCLG,11/09/2014,"Rail, Underground and Eurostar",Neighbourhoods,REDFERN TRAVEL LIMITED,,Small,,213089972,2100246163,Rail,Consolidated Monthly Travel August Rail,BD1 3AZ,381.24,
426,Communities & Local Government,DCLG,11/09/2014,"Rail, Underground and Eurostar",Neighbourhoods,REDFERN TRAVEL LIMITED,,Small,,213089972,2100246163,Rail,Consolidated Monthly Travel August Rail,BD1 3AZ,"2,579.27",
427,Communities & Local Government,DCLG,11/09/2014,"Rail, Underground and Eurostar",Neighbourhoods,REDFERN TRAVEL LIMITED,,Small,,213089972,2100246163,Rail,Consolidated Monthly Travel August Rail,BD1 3AZ,"2,828.11",
428,Communities & Local Government,DCLG,11/09/2014,"Rail, Underground and Eurostar",Neighbourhoods,REDFERN TRAVEL LIMITED,,Small,,213089972,2100246163,Rail,Consolidated Monthly Travel August Rail,BD1 3AZ,"3,046.13",
429,Communities & Local Government,DCLG,11/09/2014,"Rail, Underground and Eurostar",Neighbourhoods,REDFERN TRAVEL LIMITED,,Small,,213089972,2100246163,Rail,Consolidated Monthly Travel August Rail,BD1 3AZ,"3,602.23",
430,Communities & Local Government,DCLG,11/09/2014,"Rail, Underground and Eurostar",Neighbourhoods,REDFERN TRAVEL LIMITED,,Small,,213089972,2100246163,Rail,Consolidated Monthly Travel August Rail,BD1 3AZ,413.58,
431,Communities & Local Government,DCLG,11/09/2014,"Rail, Underground and Eurostar",Neighbourhoods,REDFERN TRAVEL LIMITED,,Small,,213089972,2100246163,Rail,Consolidated Monthly Travel August Rail,BD1 3AZ,480.82,
432,Communities & Local Government,DCLG,11/09/2014,"Rail, Underground and Eurostar",Neighbourhoods,REDFERN TRAVEL LIMITED,,Small,,213089972,2100246163,Rail,Consolidated Monthly Travel August Rail,BD1 3AZ,402.14,
433,Communities & Local Government,DCLG,11/09/2014,"Rail, Underground and Eurostar",Neighbourhoods,REDFERN TRAVEL LIMITED,,Small,,213089972,2100246163,Rail,Consolidated Monthly Travel August Rail,BD1 3AZ,930.69,
434,Communities & Local Government,DCLG,11/09/2014,"Rail, Underground and Eurostar",Neighbourhoods,REDFERN TRAVEL LIMITED,,Small,,213089972,2100246163,Rail,Consolidated Monthly Travel August Rail,BD1 3AZ,"1,709.15",
435,Communities & Local Government,DCLG,11/09/2014,"Rail, Underground and Eurostar",Neighbourhoods,REDFERN TRAVEL LIMITED,,Small,,213089972,2100246163,Rail,Consolidated Monthly Travel August Rail,BD1 3AZ,"1,424.73",
436,Communities & Local Government,DCLG,11/09/2014,"Rail, Underground and Eurostar",Neighbourhoods,REDFERN TRAVEL LIMITED,,Small,,213089972,2100246163,Rail,Consolidated Monthly Travel August Rail,BD1 3AZ,"2,829.99",
437,Communities & Local Government,DCLG,11/09/2014,"Rail, Underground and Eurostar",Neighbourhoods,REDFERN TRAVEL LIMITED,,Small,,213089972,2100246163,Rail,Consolidated Monthly Travel August Rail,BD1 3AZ,"2,747.84",
438,Communities & Local Government,DCLG,11/09/2014,"Rail, Underground and Eurostar",Neighbourhoods,REDFERN TRAVEL LIMITED,,Small,,213089972,2100246163,Rail,Consolidated Monthly Travel August Rail,BD1 3AZ,980.26,
439,Communities & Local Government,DCLG,11/09/2014,"Rail, Underground and Eurostar","Strategy, Communications and Private Office",REDFERN TRAVEL LIMITED,,Small,,213089972,2100246163,Rail,Consolidated Monthly Travel August Rail,BD1 3AZ,681.15,
440,Communities & Local Government,DCLG,11/09/2014,"Rail, Underground and Eurostar","Strategy, Communications and Private Office",REDFERN TRAVEL LIMITED,,Small,,213089972,2100246163,Rail,Consolidated Monthly Travel August Rail,BD1 3AZ,453.06,
441,Communities & Local Government,DCLG,11/09/2014,"Rail, Underground and Eurostar","Strategy, Communications and Private Office",REDFERN TRAVEL LIMITED,,Small,,213089972,2100246163,Rail,Consolidated Monthly Travel August Rail,BD1 3AZ,284.72,
442,Communities & Local Government,DCLG,11/09/2014,"Rail, Underground and Eurostar",Troubled Families,REDFERN TRAVEL LIMITED,,Small,,213089972,2100246163,Rail,Consolidated Monthly Travel August Rail,BD1 3AZ,"1,442.62",
445,Communities & Local Government,DCLG,11/09/2014,Telecoms equipment (non-capitalised),Finance & Corporate Services,DAMOVO UK LTD,,Large,,221481042,5106206287,Telecoms,Core Infrastructure Marsham St CCN029,RH12 4QP,"3,000.00",
446,Communities & Local Government,DCLG,11/09/2014,Work In Progress Pre-Cert 40373 Spend,Neighbourhoods,BUSINESS LINK EAST(B/R),,,,,7600009544,,Revenue Grant To Be Paid,AL10 9NE,"12,680.12",Yes
447,Communities & Local Government,DCLG,11/09/2014,Work In Progress Pre-Cert 40373 Spend,Neighbourhoods,BUSINESS LINK EAST(B/R),,,,,7600009545,,Revenue Grant To Be Paid,AL10 9NE,"11,014.97",Yes
448,Communities & Local Government,DCLG,11/09/2014,Work In Progress Pre-Cert 40373 Spend,Neighbourhoods,BUSINESS LINK EAST(B/R),,,,,7600009636,,Revenue Grant To Be Paid,AL10 9NE,"-12,680.12",Yes
449,Communities & Local Government,DCLG,11/09/2014,Work In Progress Pre-Cert 40373 Spend,Neighbourhoods,BUSINESS LINK EAST(B/R),,,,,7600009637,,Revenue Grant To Be Paid,AL10 9NE,"-11,014.97",Yes
450,Communities & Local Government,DCLG,11/09/2014,Work In Progress Pre-Cert 40373 Spend,Neighbourhoods,GWE BUSINESS WEST LTD,,,,,2300002164,,Reconciliation of overheads resulted in overclaim,BS8 3RA,"-1,111.18",Yes
451,Communities & Local Government,DCLG,11/09/2014,Work In Progress Pre-Cert 40373 Spend,Neighbourhoods,UNITY PROPERTY SERVICES LTD,,,,,7600009525,,Revenue Grant To Be Paid,LS7 1HY,"5,529.99",Yes
452,Communities & Local Government,DCLG,11/09/2014,Work In Progress Pre-Cert 40467 Spend,Neighbourhoods,BALANUS ASSETS LTD,,Micro,,,7600009609,,Capital Grant To Be Paid,NR20 5LG,"80,791.07",Yes
453,Communities & Local Government,DCLG,11/09/2014,Work In Progress Pre-Cert 40467 Spend,Neighbourhoods,ISPACE INVESTMENTS LLP,,Micro,,,7600009608,,Capital Grant To Be Paid,YO43 4RW,"84,415.46",Yes
454,Communities & Local Government,DCLG,11/09/2014,Work In Progress Pre-Cert 40467 Spend,Neighbourhoods,PENDENNIS SHIPYARD LTD,,,,,7600009607,,Capital Grant To Be Paid,TR11 4NR,"93,175.91",Yes
455,Communities & Local Government,DCLG,11/09/2014,Work In Progress Pre-Cert 40467 Spend,Neighbourhoods,PENDENNIS SHIPYARD LTD,,,,,7600009610,,Capital Grant To Be Paid,TR11 4NR,"71,498.27",Yes
456,Communities & Local Government,DCLG,11/09/2014,Work In Progress Pre-Cert 40467 Spend,Neighbourhoods,UNITY PROPERTY SERVICES LTD,,,,,7600009525,,Capital Grant To Be Paid,LS7 1HY,"230,533.36",Yes
457,Communities & Local Government,DCLG,12/09/2014,Agency Staff,Finance & Corporate Services,CAPITA BUS. SERV. LTD (CON LAB),,Large,,,5106206568,Contingent Labour,Interim and Specialist Contractor,DL1 9HB,"3,958.92",
458,Communities & Local Government,DCLG,12/09/2014,Agency Staff,Finance & Corporate Services,SQUARE ONE RESOURCES LTD,,Medium,,491410288,5106206557,Contingent Labour,SAP Support until closedown,EC2A 2AD,"2,858.82",
459,Communities & Local Government,DCLG,12/09/2014,Agency Staff,Localism,CAPITA BUS. SERV. LTD (CON LAB),,Large,,,5106206560,Contingent Labour,Interim and Specialist Contractor,DL1 9HB,"2,855.95",
460,Communities & Local Government,DCLG,12/09/2014,Agency Staff,Neighbourhoods,CAPITA BUS. SERV. LTD (CON LAB),,Large,,,5106206558,Contingent Labour,Interim and Specialist Contractor,DL1 9HB,"2,884.85",
461,Communities & Local Government,DCLG,12/09/2014,Agency Staff,Neighbourhoods,CAPITA BUS. SERV. LTD (CON LAB),,Large,,,5106206559,Contingent Labour,Interim and Specialist Contractor,DL1 9HB,"3,534.19",
462,Communities & Local Government,DCLG,12/09/2014,Agency Staff,Neighbourhoods,CAPITA BUS. SERV. LTD (CON LAB),,Large,,,5106206561,Contingent Labour,Interim Manager,DL1 9HB,"1,217.05",
463,Communities & Local Government,DCLG,12/09/2014,Agency Staff,Neighbourhoods,CAPITA BUS. SERV. LTD (CON LAB),,Large,,,5106206562,Contingent Labour,ERDF: Quality Assurance Officer,DL1 9HB,"2,669.04",
464,Communities & Local Government,DCLG,12/09/2014,Agency Staff,Neighbourhoods,CAPITA BUS. SERV. LTD (CON LAB),,Large,,,5106206563,Contingent Labour,Interim and Specialist Contractor,DL1 9HB,"7,148.14",
465,Communities & Local Government,DCLG,12/09/2014,Agency Staff,Neighbourhoods,CAPITA BUS. SERV. LTD (CON LAB),,Large,,,5106206564,Contingent Labour,Interim assessor,DL1 9HB,"2,028.42",
466,Communities & Local Government,DCLG,12/09/2014,Agency Staff,Neighbourhoods,CAPITA BUS. SERV. LTD (CON LAB),,Large,,,5106206567,Contingent Labour,Interim Manager,DL1 9HB,"4,381.56",
467,Communities & Local Government,DCLG,12/09/2014,Agency Staff,Neighbourhoods,REED SPECIALIST RECRUITMENT LTD,,Large,,214287592,5106206569,Contingent Labour,Planning casework,SW20 OBA,337.56,
468,Communities & Local Government,DCLG,12/09/2014,Agency Staff,Neighbourhoods,REED SPECIALIST RECRUITMENT LTD,,Large,,214287592,5106206575,Contingent Labour,Planning casework AWR Extension1 Month,SW20 OBA,708.91,
469,Communities & Local Government,DCLG,12/09/2014,Current Grants to Non Profit Bodies,Localism,SOCIAL INVESTMENT BUSINESS,,Small,,211067898,2100246212,,Community Right to Challenge,WC1H 8AG,"300,000.00",Yes
470,Communities & Local Government,DCLG,12/09/2014,Current Grants to Non Profit Bodies,Neighbourhoods,BRITISH BIDS,,Micro,,,2100246213,,BIDS Loan Fund (NC),MK9 2FR,"51,583.00",Yes
471,Communities & Local Government,DCLG,12/09/2014,IT - Service Contracts,Finance & Corporate Services,FUJITSU SERVICES LTD,,Large,,423375062,5106206581,IT Managed / Outsourced Services,CNFJDCLG090.1 Project Team Costs,WA3 9BD,"30,733.00",
472,Communities & Local Government,DCLG,12/09/2014,IT - Service Contracts,Finance & Corporate Services,FUJITSU SERVICES LTD,,Large,,423375062,5106206582,IT Managed / Outsourced Services,CNFJDCLG090.1 Resourse Cgs Prior to WAN,WA3 9BD,"27,776.00",
473,Communities & Local Government,DCLG,12/09/2014,IT - Service Contracts,Finance & Corporate Services,FUJITSU SERVICES LTD,,Large,,423375062,5106206582,IT Managed / Outsourced Services,CNFJDCLG090.1 Resourse for Phase 1B,WA3 9BD,"7,786.00",
474,Communities & Local Government,DCLG,12/09/2014,IT - Service Contracts,Finance & Corporate Services,FUJITSU SERVICES LTD,,Large,,423375062,5106206583,IT Managed / Outsourced Services,CNFJDCLG090.2 Phase 2 Move to 2MS,WA3 9BD,"30,892.00",
475,Communities & Local Government,DCLG,12/09/2014,IT - Service Contracts,Finance & Corporate Services,ICASEWORK LTD,,Large,,,5106206550,IT Managed / Outsourced Services,Fixed Implementation Cost,NW5 1LZ,"30,960.00",
476,Communities & Local Government,DCLG,12/09/2014,IT - Service Contracts,Finance & Corporate Services,ICASEWORK LTD,,Large,,,5106206551,IT Managed / Outsourced Services,Monthly Fee (24 x 3833.33),NW5 1LZ,"4,600.00",
485,Communities & Local Government,DCLG,12/09/2014,Professional services,Finance & Corporate Services,E C HARRIS LLP,,Large,,,5106206473,Construction Service Providers,PAMU Com 116 TFM SM Support (QS),N1 9AB,"6,150.00",
486,Communities & Local Government,DCLG,12/09/2014,Professional services,Finance & Corporate Services,GVA GRIMLEY LTD,,Large,,210158990,5106206496,Business Support,Senior Surveyor - Estates Sup - Com 125,B1 2JB,"3,060.00",
487,Communities & Local Government,DCLG,12/09/2014,Professional services,Finance & Corporate Services,INFO-ASSURE LTD,,Small,,,5106206553,Construction Service Providers,CLAS Support for DCLG Projects,GU14 6DQ,"1,251.00",
488,Communities & Local Government,DCLG,12/09/2014,Publicity,"Strategy, Communications and Private Office",NEWS INTERNATIONAL ASSOC SERVICES L,,Large,,,5106206572,Advertising,Times Online 20 user Lic from 6.6.14,PE7 8YT,"2,808.00",
489,Communities & Local Government,DCLG,12/09/2014,Research,Neighbourhoods,ROYAL TOWN PLAN  (USE 415186),,Medium,,227231818,5106206586,Research,Research,EC3R 8DL,"5,247.00",
490,Communities & Local Government,DCLG,12/09/2014,Research,Neighbourhoods,ROYAL TOWN PLAN  (USE 415186),,Medium,,227231818,5106206586,Research,Research,EC3R 8DL,"9,249.60",
491,Communities & Local Government,DCLG,12/09/2014,Security,Finance & Corporate Services,AUDIT COMMISSION,,Public Bodies,,,5106206565,Security,Reimbursement of Prop Charges,SW1P 4HQ,"7,328.33",
492,Communities & Local Government,DCLG,12/09/2014,Steady State Service Provision,Localism,MOTT MACDONALD LTD,,Large,,423676980,5106206585,Business Process Outsourcing Services,Core Service Period 1 (Jun 13-May 15),BN1 4FY,"55,872.92",
495,Communities & Local Government,DCLG,12/09/2014,Training,Finance & Corporate Services,EML LEARNING,,Micro,,218614350,5106206552,Development and Training,Economics for Non-Economist,LS1 9PX,650.00,
496,Communities & Local Government,DCLG,12/09/2014,Training,Finance & Corporate Services,LOCAL GOVERNMENT ASSOCIATION,,Public Bodies,,763817103,5106206535,Development and Training,LGA Annual Conference & Exhibition 2014,SW1P 3HZ,365.00,
497,Communities & Local Government,DCLG,12/09/2014,Training,Finance & Corporate Services,ORACLE CORPORATION UK LTD,,Large,,291601524,5106206483,Development and Training,Oracle Solaris 11 System Administration,RG6 1RA,"2,725.00",
498,Communities & Local Government,DCLG,12/09/2014,Water,Finance & Corporate Services,SEVERN TRENT WATER LTD,,Large,,234404465,5106206578,Operation of Water Supplies and Distribution,2014/15 St Philips B ham Annual Water,CV3 9FJ,620.00,
499,Communities & Local Government,DCLG,12/09/2014,Work In Progress Pre-Cert 40373 Spend,Neighbourhoods,ARMSTRONG PROPERTIES (NW) LTD,,Small,,,7600009631,,Revenue Grant To Be Paid,M30 9HQ,"25,747.77",Yes
500,Communities & Local Government,DCLG,12/09/2014,Work In Progress Pre-Cert 40373 Spend,Neighbourhoods,BIOCITY NOTTINGHAM LIMITED,,Small,,,7600009622,,Revenue Grant To Be Paid,NG1 1GF,789.19,Yes
501,Communities & Local Government,DCLG,12/09/2014,Work In Progress Pre-Cert 40373 Spend,Neighbourhoods,CENTRAL LANCASHIRE UNIVERSITY,,,,,7600009624,,Revenue Grant To Be Paid,PR1 2HE,"36,716.79",Yes
502,Communities & Local Government,DCLG,12/09/2014,Work In Progress Pre-Cert 40373 Spend,Neighbourhoods,CENTRAL LANCASHIRE UNIVERSITY,,,,,7600009629,,Revenue Grant To Be Paid,PR1 2HE,"3,261.76",Yes
503,Communities & Local Government,DCLG,12/09/2014,Work In Progress Pre-Cert 40373 Spend,Neighbourhoods,CENTRAL LANCASHIRE UNIVERSITY,,,,,7600009630,,Revenue Grant To Be Paid,PR1 2HE,"62,440.02",Yes
504,Communities & Local Government,DCLG,12/09/2014,Work In Progress Pre-Cert 40373 Spend,Neighbourhoods,CHAMBER OF COMMERCE (BARNSLEY&ROTH),,Small,,,7600009611,,Revenue Grant Clawback Offset,S60 1OX,"-5,275.50",Yes
505,Communities & Local Government,DCLG,12/09/2014,Work In Progress Pre-Cert 40373 Spend,Neighbourhoods,CHAMBER OF COMMERCE (BARNSLEY&ROTH),,Small,,,7600009611,,Revenue Grant To Be Paid,S60 1OX,"22,239.35",Yes
506,Communities & Local Government,DCLG,12/09/2014,Work In Progress Pre-Cert 40373 Spend,Neighbourhoods,CUMBRIA CHAMBER OF COMMERCE,,Small,,,7600009614,,Revenue Grant To Be Paid,CA3 8DA,"40,672.32",Yes
507,Communities & Local Government,DCLG,12/09/2014,Work In Progress Pre-Cert 40373 Spend,Neighbourhoods,ECONOMIC SOLUTIONS LIMITED,,Large,,,7600009625,,Revenue Grant To Be Paid,M1 5JW,"7,755.31",Yes
508,Communities & Local Government,DCLG,12/09/2014,Work In Progress Pre-Cert 40373 Spend,Neighbourhoods,ECONOMIC SOLUTIONS LIMITED,,Large,,,7600009626,,Revenue Grant To Be Paid,M1 5JW,"36,289.16",Yes
509,Communities & Local Government,DCLG,12/09/2014,Work In Progress Pre-Cert 40373 Spend,Neighbourhoods,ECONOMIC SOLUTIONS LIMITED,,Large,,,7600009627,,Revenue Grant To Be Paid,M1 5JW,"16,420.07",Yes
510,Communities & Local Government,DCLG,12/09/2014,Work In Progress Pre-Cert 40373 Spend,Neighbourhoods,ECONOMIC SOLUTIONS LIMITED,,Large,,,7600009628,,Revenue Grant To Be Paid,M1 5JW,"4,444.68",Yes
511,Communities & Local Government,DCLG,12/09/2014,Work In Progress Pre-Cert 40373 Spend,Neighbourhoods,GTR MANCHESTER BUSINESS SUPPORT LTD,,Medium,,,7600009616,,Revenue Grant To Be Paid,M1 5JW,"50,844.81",Yes
512,Communities & Local Government,DCLG,12/09/2014,Work In Progress Pre-Cert 40373 Spend,Neighbourhoods,LIVERPOOL CITY COUNCIL,,,,,7600009617,,Revenue Grant To Be Paid,L2 2DH,"70,563.49",Yes
513,Communities & Local Government,DCLG,12/09/2014,Work In Progress Pre-Cert 40373 Spend,Neighbourhoods,MANCHESTER CITY COUNCIL,,,,,7600009615,,Revenue Grant To Be Paid,M60 2JR,"21,099.21",Yes
514,Communities & Local Government,DCLG,12/09/2014,Work In Progress Pre-Cert 40373 Spend,Neighbourhoods,MERSEY MARTIME LTD,,Micro,,,7600009634,,Revenue Grant To Be Paid,CH41 5LH,"14,296.47",Yes
515,Communities & Local Government,DCLG,12/09/2014,Work In Progress Pre-Cert 40373 Spend,Neighbourhoods,STH WEST MANUFACTURING ADV SERVICE,,,,,7600009635,,Revenue Grant To Be Paid,TA6 6DF,"165,473.25",Yes
516,Communities & Local Government,DCLG,12/09/2014,Work In Progress Pre-Cert 40467 Spend,Neighbourhoods,CENTRAL LANCASHIRE UNIVERSITY,,,,,7600009629,,Capital Grant To Be Paid,PR1 2HE,0.50,Yes
517,Communities & Local Government,DCLG,12/09/2014,Work In Progress Pre-Cert 40467 Spend,Neighbourhoods,CENTRAL LANCASHIRE UNIVERSITY,,,,,7600009630,,Capital Grant To Be Paid,PR1 2HE,9.51,Yes
518,Communities & Local Government,DCLG,12/09/2014,Work In Progress Pre-Cert 40467 Spend,Neighbourhoods,CNTRL MANCHESTER UNIVERSITY HOSPITA,,,,,7600009613,,Capital Grant To Be Paid,M13 0JR,"99,897.42",Yes
519,Communities & Local Government,DCLG,12/09/2014,Work In Progress Pre-Cert 40467 Spend,Neighbourhoods,DERBYSHIRE COUNTY COUNCIL,,Large,,,7600009632,,Capital Grant To Be Paid,DE4 3AG,"23,902.40",Yes
520,Communities & Local Government,DCLG,12/09/2014,Work In Progress Pre-Cert 40467 Spend,Neighbourhoods,LEICESTER CITY COUNCIL,,Large,,,7600009618,,Capital Grant To Be Paid,LE1 6ZG,"453,575.60",Yes
521,Communities & Local Government,DCLG,12/09/2014,Work In Progress Pre-Cert 40467 Spend,Neighbourhoods,LEICESTER CITY COUNCIL,,Large,,,7600009619,,Capital Grant To Be Paid,LE1 6ZG,"176,477.58",Yes
522,Communities & Local Government,DCLG,12/09/2014,Work In Progress Pre-Cert 40467 Spend,Neighbourhoods,LIVERPOOL CITY COUNCIL,,,,,7600009617,,Capital Grant To Be Paid,L2 2DH,"115,818.24",Yes
525,Communities & Local Government,DCLG,12/09/2014,Work In Progress Pre-Cert 40467 Spend,Neighbourhoods,MANCHESTER UNIVERSITY,,Large,,,7600009612,,Capital Grant To Be Paid,M13 9PL,"99,492.36",Yes
526,Communities & Local Government,DCLG,12/09/2014,Work In Progress Pre-Cert 40467 Spend,Neighbourhoods,NORTH LIVERPOOL REGENERATION CO,Yes,Micro,,,7600009620,,Capital Grant To Be Paid,L3 3AN,"31,253.41",Yes
527,Communities & Local Government,DCLG,12/09/2014,Work In Progress Pre-Cert 40467 Spend,Neighbourhoods,SECOND AVENUE RESOURCE CENTRE LTD,,Small,,,7600009621,,Capital Grant To Be Paid,DN33 1NU,"65,937.92",Yes
528,Communities & Local Government,DCLG,12/09/2014,Work In Progress Pre-Cert 40467 Spend,Neighbourhoods,SHAWBROOK DEVELOPMENTS LTD,,Small,,,7600009633,,Capital Grant To Be Paid,LS20 9AA,"170,245.24",Yes
529,Communities & Local Government,DCLG,12/09/2014,Work In Progress Pre-Cert 40467 Spend,Neighbourhoods,UNITY HOUSE (WAKEFIELD) LTD,,Micro,,,7600009623,,Capital Grant To Be Paid,LS8 5HS,"336,441.82",Yes
530,Communities & Local Government,DCLG,15/09/2014,Agency Staff,Finance & Corporate Services,INTERQUEST GROUP UK LIMITED,,Large,,423935241,5106206610,Contingent Labour,SAP Support until closedown,EC1N 8TS,"14,893.20",
531,Communities & Local Government,DCLG,15/09/2014,Agency Staff,Neighbourhoods,MACLAY MURRAY & SPENS LLP,,Large,,,5106206618,Contingent Labour,ERDF Legal Auditors (May - Nov),G2 1AL,"56,514.43",
532,Communities & Local Government,DCLG,15/09/2014,Agency Staff,Neighbourhoods,MACLAY MURRAY & SPENS LLP,,Large,,,5106206618,Contingent Labour,ERDF Legal Auditors Expenses (May-Nov),G2 1AL,49.72,
533,Communities & Local Government,DCLG,15/09/2014,Cap Grants to Local Authorities (DEL),Neighbourhoods,DOVER DC,,,,211389341,2100246278,,Enterprise Zones - Dover District Council,CT16 3PF,"255,624.53",Yes
534,Communities & Local Government,DCLG,15/09/2014,Cap Grants to Private Sector Companies,Neighbourhoods,AGUSTAWESTLAND LTD,,,,,2100246179,,UK Civil Helicopter Facility - Agusta Westland Ltd,BA20 2YB,"2,199,580.00",Yes
535,Communities & Local Government,DCLG,15/09/2014,Cap Grants to Private Sector Companies,Neighbourhoods,ASTON MARTIN LAGONDA LTD,,Large,,,2100246050,,Aston Martin Lagonda - Engine,CY35 0DB,"470,000.00",Yes
536,Communities & Local Government,DCLG,15/09/2014,Cap Grants to Private Sector Companies,Neighbourhoods,ASTON MARTIN LAGONDA LTD,,Large,,,2100246051,,Aston Martin Lagonda - Platform,CY35 0DB,"464,000.00",Yes
537,Communities & Local Government,DCLG,15/09/2014,Cap Grants to Private Sector Companies,Neighbourhoods,ATLANTIC CONTAINER LINE UK LTD,,Medium,,,2100246165,,Atlantic Container Line UK Limited,L3 1DL,"298,677.00",Yes
538,Communities & Local Government,DCLG,15/09/2014,Cap Grants to Private Sector Companies,Neighbourhoods,BEATSON CLARK LTD,,,,,2100246151,,Reconfigure manufacturing lines,S60 1TZ,"702,699.00",Yes
539,Communities & Local Government,DCLG,15/09/2014,Cap Grants to Private Sector Companies,Neighbourhoods,BENTLEY MOTORS LIMITED,,Large,,,2100246140,,Bentley Motors - Bentley Motors Limited,CW1 3PL,"556,801.00",Yes
540,Communities & Local Government,DCLG,15/09/2014,Cap Grants to Private Sector Companies,Neighbourhoods,BRIGHT FUTURE SOFTWARE LIMITED,,Medium,,,2100246144,,Bright Future Software Limited,M50 2NT,"435,691.19",Yes
541,Communities & Local Government,DCLG,15/09/2014,Cap Grants to Private Sector Companies,Neighbourhoods,BUSINESS & ENTERPRISE COMMERCIAL LT,,Medium,,,2100246174,,Let s Grow Programme,SR7 7TT,"460,121.00",Yes
542,Communities & Local Government,DCLG,15/09/2014,Cap Grants to Private Sector Companies,Neighbourhoods,C-TEC,,,,,2100246135,,Computionics Ltd - T/A C-Tech,WN5 0LD,"12,739.53",Yes
543,Communities & Local Government,DCLG,15/09/2014,Cap Grants to Private Sector Companies,Neighbourhoods,CAB AUTOMOTIVE LTD,,,,,2100246053,,CAB Automotives Ltd,OY4 7UJ,"25,516.00",Yes
544,Communities & Local Government,DCLG,15/09/2014,Cap Grants to Private Sector Companies,Neighbourhoods,CHESTER UNIVERSITY,,Large,,,2100246138,,Catalyst for Growth - University of Chester,CH1 4BJ,"650,000.00",Yes
545,Communities & Local Government,DCLG,15/09/2014,Cap Grants to Private Sector Companies,Neighbourhoods,CUMMINS POWER GENERATION LTD,,,,,2100246012,,Regional Growth Fund Q1 - 2014/15,CT12 5BF,"291,000.00",Yes
546,Communities & Local Government,DCLG,15/09/2014,Cap Grants to Private Sector Companies,Neighbourhoods,DEPUY INTERNATIONAL LIMITED,,Large,,,2100246147,,Creating a new centre for product development,LS11 0EA,"750,000.00",Yes
547,Communities & Local Government,DCLG,15/09/2014,Cap Grants to Private Sector Companies,Neighbourhoods,DYSON TECHNOLOGY LTD,,,,,2100246082,,New Power and filtration systems - Dyson,SN16 0RP,"375,000.00",Yes
548,Communities & Local Government,DCLG,15/09/2014,Cap Grants to Private Sector Companies,Neighbourhoods,EA TECHNOLOGY LTD,,Medium,,,2100246134,,EA Technology,CH1 6ES,"232,342.39",Yes
549,Communities & Local Government,DCLG,15/09/2014,Cap Grants to Private Sector Companies,Neighbourhoods,EAST MIDLANDS BUSINESS LIMITED,,Medium,,,2100246060,,Unlocking Investment for Growth,LE19 1RT,"487,892.00",Yes
550,Communities & Local Government,DCLG,15/09/2014,Cap Grants to Private Sector Companies,Neighbourhoods,EBAC LIMITED,,,,,2100246176,,Ebac Limited,DL5 6SQ,"71,457.00",Yes
551,Communities & Local Government,DCLG,15/09/2014,Cap Grants to Private Sector Companies,Neighbourhoods,ECONOMIC SOLUTIONS LIMITED,,Large,,,2100246139,,Textiles Growth Programme - Economic Solutions,M1 5JW,"1,997,967.00",Yes
552,Communities & Local Government,DCLG,15/09/2014,Cap Grants to Private Sector Companies,Neighbourhoods,ELEMENT SIX,,,,,2100246013,,Element Six,OX11 0QR,"364,160.00",Yes
553,Communities & Local Government,DCLG,15/09/2014,Cap Grants to Private Sector Companies,Neighbourhoods,ELI LILLY & COMPANY LTD,,Large,,,2100246161,,Eli Lilly Speke Operations - Animal Health Biotech,RG24 9LN,"350,553.00",Yes
554,Communities & Local Government,DCLG,15/09/2014,Cap Grants to Private Sector Companies,Neighbourhoods,ERLSON PRECISION COMPONENTS LTD,,Medium,,,2100246148,,Turbo Charger component export market expansionDCL,WN8 9QB,"146,749.00",Yes
555,Communities & Local Government,DCLG,15/09/2014,Cap Grants to Private Sector Companies,Neighbourhoods,FINANCE FOR INDUSTRY LTD,,,,,2100246180,,FFI Finance Release Programme Finance for Industry,WD4 8FR,"375,000.00",Yes
556,Communities & Local Government,DCLG,15/09/2014,Cap Grants to Private Sector Companies,Neighbourhoods,HARRISON SPINKS BEDS LTD,,Large,,,2100246158,,Harrison Spinks  Beds Ltd,LS11 5SN,"2,261.67",Yes
557,Communities & Local Government,DCLG,15/09/2014,Cap Grants to Private Sector Companies,Neighbourhoods,HARVARD ENGINEERING PLC,,Large,,,2100246141,,Development of LED Lighting Capabilities,WF6 1RL,"483,435.95",Yes
558,Communities & Local Government,DCLG,15/09/2014,Cap Grants to Private Sector Companies,Neighbourhoods,HUDDERSFIELD HEC UNIVERSITY,,Large,,228099479,2100246153,,Centre for Innovation in Rail,HD1 3DH,"69,881.25",Yes
559,Communities & Local Government,DCLG,15/09/2014,Cap Grants to Private Sector Companies,Neighbourhoods,JCB SERVICE,,Large,,,2100246061,,Blue Planet Warehouse - JCB Service,ST14 5JP,"776,734.00",Yes
560,Communities & Local Government,DCLG,15/09/2014,Cap Grants to Private Sector Companies,Neighbourhoods,JOHNSON MATTHEY FUEL CELLS LTD,,,,,2100246080,,Automotive fuel cell development and manufacture,SN5 8AT,"75,000.00",Yes
561,Communities & Local Government,DCLG,15/09/2014,Cap Grants to Private Sector Companies,Neighbourhoods,KING AUTOMOTIVE SYSTEMS LTD,,Medium,,,2100246055,,King Automotive Systems Ltd,CV6 3LB,"261,067.59",Yes
562,Communities & Local Government,DCLG,15/09/2014,Cap Grants to Private Sector Companies,Neighbourhoods,LAKELAND ARTS TRUST,,,,,2100246136,,Lakeland Arts Trust,LA23 3JT,"86,395.37",Yes
563,Communities & Local Government,DCLG,15/09/2014,Cap Grants to Private Sector Companies,Neighbourhoods,LEEANN FASHIONS LTD,,Medium,,,2100246056,,Lee Ann Fashions Ltd,LE10 3EZ,"9,269.00",Yes
564,Communities & Local Government,DCLG,15/09/2014,Cap Grants to Private Sector Companies,Neighbourhoods,LEICESTER UNIVERSITY,,Large,,,2100246047,,Advanced Structural Dynamics,LE1 7RH,"255,719.00",Yes
565,Communities & Local Government,DCLG,15/09/2014,Cap Grants to Private Sector Companies,Neighbourhoods,LINCOLN UNIVERSITY,,Large,,228450896,2100246046,,Regional Growth Fund Q2 - 2014/15,LN6 7TS,"264,364.62",Yes
566,Communities & Local Government,DCLG,15/09/2014,Cap Grants to Private Sector Companies,Neighbourhoods,LIVERPOOL CITY REGION LEP,,,,,2100246154,,Liverpool City Regions small business support fund,L3 1BG,"720,692.00",Yes
567,Communities & Local Government,DCLG,15/09/2014,Cap Grants to Private Sector Companies,Neighbourhoods,LIVERPOOL CITY REGION LEP,,,,,2100246166,,Liverpool LEP Small Business Support,L3 1BG,"1,782,349.89",Yes
568,Communities & Local Government,DCLG,15/09/2014,Cap Grants to Private Sector Companies,Neighbourhoods,LLOYDS BANKING GROUP,,,,,2100246182,,SME Manufacturing Asset Purchase and Expansion,BS99 7LB,"5,991,284.00",Yes
569,Communities & Local Government,DCLG,15/09/2014,Cap Grants to Private Sector Companies,Neighbourhoods,LSTM,,Large,,291843662,2100246159,,Centre for Maternal and Child Health,L3 5QA,"149,000.00",Yes
570,Communities & Local Government,DCLG,15/09/2014,Cap Grants to Private Sector Companies,Neighbourhoods,MAGMA GLOBAL LTD,,,,,2100246010,,M-Pipe - Magma Global Limited,PO6 3EZ,"95,814.00",Yes
571,Communities & Local Government,DCLG,15/09/2014,Cap Grants to Private Sector Companies,Neighbourhoods,MANCHESTER UNIVERSITY,,Large,,229894910,2100246162,,University of Manchester,M13 9PL,"66,387.33",Yes
572,Communities & Local Government,DCLG,15/09/2014,Cap Grants to Private Sector Companies,Neighbourhoods,NORTHAMPTON ENTERPRISE PARTNERSHIP,,Small,,,2100246052,,Northamptonshire High Performance Tech Network,NN1 5DQ,"253,278.00",Yes
573,Communities & Local Government,DCLG,15/09/2014,Cap Grants to Private Sector Companies,Neighbourhoods,NORTHAMPTON ENTERPRISE PARTNERSHIP,,Small,,,2100246063,,NEP and SEMLEP High performance Tech R&D Prog,NN1 5DQ,"2,526,698.00",Yes
574,Communities & Local Government,DCLG,15/09/2014,Cap Grants to Private Sector Companies,Neighbourhoods,NXP SEMICONDUCTORS UK LTD,,,,,2100246146,,Investment in an R&D Program for next gen power,SK7 5BJ,"68,664.09",Yes
575,Communities & Local Government,DCLG,15/09/2014,Cap Grants to Private Sector Companies,Neighbourhoods,PATTERSON & ROTHWELL LTD,,Medium,,,2100246156,,Investment in manufacturing efficiency improvement,OL4 1HH,"118,078.00",Yes
576,Communities & Local Government,DCLG,15/09/2014,Cap Grants to Private Sector Companies,Neighbourhoods,PENTAGON FINE CHEMICALS LTD,,Medium,,,2100246143,,Pentagon Chemicals,WA8 8NS,"50,807.00",Yes
577,Communities & Local Government,DCLG,15/09/2014,Cap Grants to Private Sector Companies,Neighbourhoods,PLESSEY SEMICONDUCTORS LTD,,Medium,,,2100246078,,Manufacturing centre for solid stateHBLED Lighting,PL6 7BQ,"363,000.00",Yes
578,Communities & Local Government,DCLG,15/09/2014,Cap Grants to Private Sector Companies,Neighbourhoods,PLYMOUTH UNIVERSITY,,Large,,238011076,2100246085,,Growth Fund 2 - Plymouth University,PL4 8AA,"404,521.00",Yes
579,Communities & Local Government,DCLG,15/09/2014,Cap Grants to Private Sector Companies,Neighbourhoods,RICARDO UK LTD,,,,,2100246011,,VERC - Ricardo UK Ltd,BN43 5FG,"66,806.00",Yes
580,Communities & Local Government,DCLG,15/09/2014,Cap Grants to Private Sector Companies,Neighbourhoods,ROMAX TECHNOLOGY LTD,,,,,2100246057,,Romax Technology Ltd,NG7 2PZ,"222,214.11",Yes
581,Communities & Local Government,DCLG,15/09/2014,Cap Grants to Private Sector Companies,Neighbourhoods,SHEFFIELD UNIVERSITY,,,,,2100246183,,Civil Nuclear Sharing in Growth,S1 2LX,"30,624.00",Yes
582,Communities & Local Government,DCLG,15/09/2014,Cap Grants to Private Sector Companies,Neighbourhoods,SIEMENS PLC,,,,,2100246177,,Expand the Hebburn Site - Siemens Plc,NE31 1LX,"426,453.32",Yes
583,Communities & Local Government,DCLG,15/09/2014,Cap Grants to Private Sector Companies,Neighbourhoods,SKANSKA  PROJECT DEVELOPMENTS LTD,,,,,2100246149,,Bentley works site regeneration,EC1S 4JQ,"168,650.00",Yes
584,Communities & Local Government,DCLG,15/09/2014,Cap Grants to Private Sector Companies,Neighbourhoods,ST HELENS CHAMBERS,,Medium,,,2100246142,,St. Helens Chambers,WA10 1FY,"294,295.77",Yes
585,Communities & Local Government,DCLG,15/09/2014,Cap Grants to Private Sector Companies,Neighbourhoods,TATA CHEMICALS EUROPE LTD,,Large,,,2100246137,,Tata Chemicals Europe Ltd,CW8 4DT,"311,984.35",Yes
586,Communities & Local Government,DCLG,15/09/2014,Cap Grants to Private Sector Companies,Neighbourhoods,TRW LTD,,Large,,,2100246048,,Investment in TRW - College Road - TRW Ltd,42-201,"65,665.21",Yes
587,Communities & Local Government,DCLG,15/09/2014,Cap Grants to Private Sector Companies,Neighbourhoods,TRW SYSTEMS LTD,,,,,2100246175,,Belt Drive Project - TRW Systems Ltd,DH4 5PH,"117,213.00",Yes
588,Communities & Local Government,DCLG,15/09/2014,Cap Grants to Private Sector Companies,Neighbourhoods,WELDING INSTITUTE,,Large,,238679778,2100246070,,TWI - Welding Institute,CB21 6AL,"5,150,845.96",Yes
589,Communities & Local Government,DCLG,15/09/2014,Cap Grants to Private Sector Companies,Neighbourhoods,WOLVERHAMPTON UNIVERSITY,,,,,2100246049,,Wolverhampton University Green Shoots Prog,WV1 1AD,"148,207.00",Yes
590,Communities & Local Government,DCLG,15/09/2014,Cap Grants to Private Sector Companies,Neighbourhoods,WWRD UNITED KINGDOM LTD,,,,,2100246059,,Redevelopment of Wedgewood Estate,ST12 9ER,"479,346.00",Yes
591,Communities & Local Government,DCLG,15/09/2014,Capital Grant to LA Replace Loan Nonbud,Neighbourhoods,BATH & NE SOMERSET DC,,Large,,214502499,2100246091,,West of England Economic Development Fund,BA1 5AW,"2,007,286.00",
592,Communities & Local Government,DCLG,15/09/2014,Capital Grant to LA Replace Loan Nonbud,Neighbourhoods,BIRMINGHAM CITY COUNCIL,,,,213270263,2100246064,,Green Bridge - Greater Birmingham and Solihull LEP,B3 3PL,"4,271,362.00",
593,Communities & Local Government,DCLG,15/09/2014,Capital Grant to LA Replace Loan Nonbud,Neighbourhoods,BLACKBURN WITH DARWEN BC,,Large,,212925606,2100246133,,Regenerate Pennine Lancashire,BB1 7DY,"57,741.71",
594,Communities & Local Government,DCLG,15/09/2014,Capital Grant to LA Replace Loan Nonbud,Neighbourhoods,BURNLEY BC,,Large,,229413281,2100246124,,Aerospace Supply Chain Logistics Park,BB11 1JA,"191,174.89",
595,Communities & Local Government,DCLG,15/09/2014,Capital Grant to LA Replace Loan Nonbud,Neighbourhoods,CHESHIRE WEST & CHESTER COUNCIL,,Public Bodies,,,2100246121,,On behalf of Ellesmere port development board,CH1 2NP,"348,168.00",
596,Communities & Local Government,DCLG,15/09/2014,Capital Grant to LA Replace Loan Nonbud,Neighbourhoods,COVENTRY CITY COUNCIL,,Large,,211313697,2100246038,,Coventry and Warwickshire Business Finance,CV1 5RQ,"3,562.15",
597,Communities & Local Government,DCLG,15/09/2014,Capital Grant to LA Replace Loan Nonbud,Neighbourhoods,COVENTRY CITY COUNCIL,,Large,,211313697,2100246039,,SME Beneficiary Grant Scheme,CV1 5RQ,"11,150.01",
598,Communities & Local Government,DCLG,15/09/2014,Capital Grant to LA Replace Loan Nonbud,Neighbourhoods,COVENTRY CITY COUNCIL,,Large,,211313697,2100246066,,Transport Improvement Infrastructure Projects,CV1 5RQ,"5,430,553.43",
599,Communities & Local Government,DCLG,15/09/2014,Capital Grant to LA Replace Loan Nonbud,Neighbourhoods,CUMBRIA COUNTY COUNCIL,,Public Bodies,,215464640,2100246125,,Cumbria LEP - Cumbria County Council,CA13 9PR,"190,616.00",
600,Communities & Local Government,DCLG,15/09/2014,Capital Grant to LA Replace Loan Nonbud,Neighbourhoods,CUMBRIA COUNTY COUNCIL,,Public Bodies,,215464640,2100246126,,Unleashing Cumbria s Potential,CA13 9PR,"131,272.00",
601,Communities & Local Government,DCLG,15/09/2014,Capital Grant to LA Replace Loan Nonbud,Neighbourhoods,DERBYSHIRE COUNTY COUNCIL,,,,232152967,2100246042,,Global Derbyshire,DE4 3AH,"25,598.12",
602,Communities & Local Government,DCLG,15/09/2014,Capital Grant to LA Replace Loan Nonbud,Neighbourhoods,EAST DEVON DC,,Public Bodies,,,2100246089,,Exeter and East Devon Growth Point,EX10 8HL,"1,226,650.00",
603,Communities & Local Government,DCLG,15/09/2014,Capital Grant to LA Replace Loan Nonbud,Neighbourhoods,GTR MANCHESTER COMBINED AUTHORITY,,Public Bodies,,,2100246169,,Greater Manchester Growth Programme,M60 2JR,"5,181,000.00",
604,Communities & Local Government,DCLG,15/09/2014,Capital Grant to LA Replace Loan Nonbud,Neighbourhoods,HALTON BOROUGH COUNCIL,,Large,,,2100246132,,Destination Sci Tech Darebury,WA8 7QF,"965,423.41",
605,Communities & Local Government,DCLG,15/09/2014,Capital Grant to LA Replace Loan Nonbud,Neighbourhoods,HEREFORDSHIRE COUNCIL,,Public Bodies,,230359700,2100246040,,Marches and Worcs - Redundant buildings grant,HR1 1ZT,"108,090.10",
606,Communities & Local Government,DCLG,15/09/2014,Capital Grant to LA Replace Loan Nonbud,Neighbourhoods,LEEDS CITY COUNCIL,,Large,,211170311,2100246122,,Leeds City Council,LS1 1UR,"525,977.00",
607,Communities & Local Government,DCLG,15/09/2014,Capital Grant to LA Replace Loan Nonbud,Neighbourhoods,LEEDS CITY COUNCIL,,Large,,211170311,2100246123,,Enhanced Growth Programme - Leeds City Council,LS1 1UR,"720,278.00",
608,Communities & Local Government,DCLG,15/09/2014,Capital Grant to LA Replace Loan Nonbud,Neighbourhoods,LEEDS CITY COUNCIL,,Large,,211170311,2100246128,,Leeds City Council,LS1 1UR,"570,599.00",
609,Communities & Local Government,DCLG,15/09/2014,Capital Grant to LA Replace Loan Nonbud,Neighbourhoods,LEEDS CITY COUNCIL,,Large,,211170311,2100246168,,Leeds City Region Key Growth Clusters Programme,LS1 1UR,"4,208,838.00",
610,Communities & Local Government,DCLG,15/09/2014,Capital Grant to LA Replace Loan Nonbud,Neighbourhoods,LEICESTER CITY COUNCIL,,Public Bodies,,228219960,2100246045,,Leicester and Leicestershire SME Growth Fund,LE1 6ZG,"1,208,878.00",
611,Communities & Local Government,DCLG,15/09/2014,Capital Grant to LA Replace Loan Nonbud,Neighbourhoods,NORTH STAFFS CHAMBER COMM & IND,,Small,,,2100246035,,Stoke and Staffs Job Growth Fund,ST1 5BE,"520,000.00",
612,Communities & Local Government,DCLG,15/09/2014,Capital Grant to LA Replace Loan Nonbud,Neighbourhoods,NORTHUMBERLAND CC,,Large,,228141644,2100246172,,ARCH Programme - Northumberland County Council,NE61 2EF,"466,892.92",
613,Communities & Local Government,DCLG,15/09/2014,Capital Grant to LA Replace Loan Nonbud,Neighbourhoods,NOTTINGHAM CITY COUNCIL,,,,,2100246044,,Notts Technology Grant Fund,NG2 3NG,"1,147,107.13",
614,Communities & Local Government,DCLG,15/09/2014,Capital Grant to LA Replace Loan Nonbud,Neighbourhoods,SANDWELL MBC,,,,,2100246036,,Growing Priorities Sector in the Black Country,B69 3BS,"316,047.00",
615,Communities & Local Government,DCLG,15/09/2014,Capital Grant to LA Replace Loan Nonbud,Neighbourhoods,SANDWELL MBC,,,,,2100246037,,Growing Priorities Sector in the Black Country,B69 3BS,"704,501.00",
616,Communities & Local Government,DCLG,15/09/2014,Capital Grant to LA Replace Loan Nonbud,Neighbourhoods,SHEFFIELD CITY COUNCIL,,,,,2100246129,,Sheffield LEP - Sheffield City Council,S1 1UR,"2,862,546.15",
617,Communities & Local Government,DCLG,15/09/2014,Capital Grant to LA Replace Loan Nonbud,Neighbourhoods,SHEFFIELD CITY COUNCIL,,,,,2100246131,,Regional Growth Fund Q2 - 2014/15,S1 1UR,"2,317,034.70",
618,Communities & Local Government,DCLG,15/09/2014,Capital Grant to LA Replace Loan Nonbud,Neighbourhoods,STOKE ON TRENT CITY COUNCIL,,,,,2100246043,,Innovation Growth in Stoke on Trent and Staffs,ST4 1NH,"247,229.00",
619,Communities & Local Government,DCLG,15/09/2014,Capital Grant to LA Replace Loan Nonbud,Neighbourhoods,SUFFOLK COUNTY COUNCIL,,Large,,236445243,2100246072,,New Anglia LEP,IP1 2BX,"835,000.00",
620,Communities & Local Government,DCLG,15/09/2014,Capital Grant to LA Replace Loan Nonbud,Neighbourhoods,SUFFOLK COUNTY COUNCIL,,Large,,236445243,2100246073,,New Anglia LEP - Suffolk County Council,IP1 2BX,"1,224,165.00",
621,Communities & Local Government,DCLG,15/09/2014,Capital Grant to LA Replace Loan Nonbud,Neighbourhoods,SUNDERLAND CITY COUNCIL,,,,215599312,2100246171,,NELEP Programme - Sunderland County Council,SR2 7DN,"1,304,778.00",
622,Communities & Local Government,DCLG,15/09/2014,Current (non AEF) Grants to Local Authorities,Localism,ADUR DC,,,,227472891,5000263062,,Business Rates 2% Inflation Cap,BN11 1HB,"1,901.00",Yes
623,Communities & Local Government,DCLG,15/09/2014,Current (non AEF) Grants to Local Authorities,Localism,ADUR DC,,,,227472891,5000263065,,Small Business Rates Relief,BN11 1HB,"21,935.00",Yes
624,Communities & Local Government,DCLG,15/09/2014,Current (non AEF) Grants to Local Authorities,Localism,ADUR DC,,,,227472891,5000263075,,Retail Relief,BN11 1HB,"10,090.00",Yes
625,Communities & Local Government,DCLG,15/09/2014,Current (non AEF) Grants to Local Authorities,Localism,ADUR DC,,,,227472891,5000263078,,Small Business Rates Relief on Second Properties,BN11 1HB,444.00,Yes
626,Communities & Local Government,DCLG,15/09/2014,Current (non AEF) Grants to Local Authorities,Localism,ADUR DC,,,,227472891,5000264540,,Council Tax Freeze,BN11 1HB,"6,288.00",Yes
627,Communities & Local Government,DCLG,15/09/2014,Current (non AEF) Grants to Local Authorities,Localism,ALLERDALE BOROUGH COUNCIL,,,,218146780,5000263081,,Business Rates 2% Inflation Cap,CA14 3YJ,"4,355.00",Yes
628,Communities & Local Government,DCLG,15/09/2014,Current (non AEF) Grants to Local Authorities,Localism,ALLERDALE BOROUGH COUNCIL,,,,218146780,5000263084,,Small Business Rates Relief,CA14 3YJ,"62,809.00",Yes
629,Communities & Local Government,DCLG,15/09/2014,Current (non AEF) Grants to Local Authorities,Localism,ALLERDALE BOROUGH COUNCIL,,,,218146780,5000263090,,Retail Relief,CA14 3YJ,"25,612.00",Yes
630,Communities & Local Government,DCLG,15/09/2014,Current (non AEF) Grants to Local Authorities,Localism,ALLERDALE BOROUGH COUNCIL,,,,218146780,5000263093,,Small Business Rates Relief on Second Properties,CA14 3YJ,952.00,Yes
631,Communities & Local Government,DCLG,15/09/2014,Current (non AEF) Grants to Local Authorities,Localism,AMBER VALLEY BC,,,,,5000263097,,Business Rates 2% Inflation Cap,DE5 3WZ,"3,757.00",Yes
632,Communities & Local Government,DCLG,15/09/2014,Current (non AEF) Grants to Local Authorities,Localism,AMBER VALLEY BC,,,,,5000263100,,Small Business Rates Relief,DE5 3WZ,"50,283.00",Yes
633,Communities & Local Government,DCLG,15/09/2014,Current (non AEF) Grants to Local Authorities,Localism,AMBER VALLEY BC,,,,,5000263103,,Reoccupation Relief,DE5 3WZ,808.00,Yes
634,Communities & Local Government,DCLG,15/09/2014,Current (non AEF) Grants to Local Authorities,Localism,AMBER VALLEY BC,,,,,5000263106,,Retail Relief,DE5 3WZ,"24,255.00",Yes
635,Communities & Local Government,DCLG,15/09/2014,Current (non AEF) Grants to Local Authorities,Localism,AMBER VALLEY BC,,,,,5000263109,,Small Business Rates Relief on Second Properties,DE5 3WZ,"1,011.00",Yes
636,Communities & Local Government,DCLG,15/09/2014,Current (non AEF) Grants to Local Authorities,Localism,AMBER VALLEY BC,,,,,5000264541,,Council Tax Freeze,DE5 3WZ,"6,376.00",Yes
637,Communities & Local Government,DCLG,15/09/2014,Current (non AEF) Grants to Local Authorities,Localism,ARUN DC,,,,211217668,5000262176,,Business Rates 2% Inflation Cap,BN17 5LF,"5,270.00",Yes
638,Communities & Local Government,DCLG,15/09/2014,Current (non AEF) Grants to Local Authorities,Localism,ARUN DC,,,,211217668,5000262177,,Small Business Rates Relief,BN17 5LF,"61,493.00",Yes
639,Communities & Local Government,DCLG,15/09/2014,Current (non AEF) Grants to Local Authorities,Localism,ARUN DC,,,,211217668,5000262179,,Retail Relief,BN17 5LF,"30,880.00",Yes
640,Communities & Local Government,DCLG,15/09/2014,Current (non AEF) Grants to Local Authorities,Localism,ARUN DC,,,,211217668,5000264437,,Council Tax Freeze,BN17 5LF,"10,275.00",Yes
641,Communities & Local Government,DCLG,15/09/2014,Current (non AEF) Grants to Local Authorities,Localism,ASHFIELD DC,,,,235415296,5000263112,,Business Rates 2% Inflation Cap,NG17 8DA,"4,438.00",Yes
642,Communities & Local Government,DCLG,15/09/2014,Current (non AEF) Grants to Local Authorities,Localism,ASHFIELD DC,,,,235415296,5000263115,,Small Business Rates Relief,NG17 8DA,"33,558.00",Yes
643,Communities & Local Government,DCLG,15/09/2014,Current (non AEF) Grants to Local Authorities,Localism,ASHFIELD DC,,,,235415296,5000263118,,Empty New Build Relief,NG17 8DA,"1,879.00",Yes
644,Communities & Local Government,DCLG,15/09/2014,Current (non AEF) Grants to Local Authorities,Localism,ASHFIELD DC,,,,235415296,5000263121,,Reoccupation Relief,NG17 8DA,940.00,Yes
645,Communities & Local Government,DCLG,15/09/2014,Current (non AEF) Grants to Local Authorities,Localism,ASHFIELD DC,,,,235415296,5000263124,,Retail Relief,NG17 8DA,"16,776.00",Yes
646,Communities & Local Government,DCLG,15/09/2014,Current (non AEF) Grants to Local Authorities,Localism,ASHFIELD DC,,,,235415296,5000263127,,Small Business Rates Relief on Second Properties,NG17 8DA,"3,536.00",Yes
647,Communities & Local Government,DCLG,15/09/2014,Current (non AEF) Grants to Local Authorities,Localism,ASHFORD BC,,,,229467071,5000262181,,Business Rates 2% Inflation Cap,TN23 1PL,"3,168.00",Yes
648,Communities & Local Government,DCLG,15/09/2014,Current (non AEF) Grants to Local Authorities,Localism,ASHFORD BC,,,,229467071,5000262183,,Small Business Rates Relief,TN23 1PL,"47,538.00",Yes
649,Communities & Local Government,DCLG,15/09/2014,Current (non AEF) Grants to Local Authorities,Localism,ASHFORD BC,,,,229467071,5000262184,,Retail Relief,TN23 1PL,"36,706.00",Yes
650,Communities & Local Government,DCLG,15/09/2014,Current (non AEF) Grants to Local Authorities,Localism,ASHFORD BC,,,,229467071,5000264438,,Council Tax Freeze,TN23 1PL,"6,866.00",Yes
651,Communities & Local Government,DCLG,15/09/2014,Current (non AEF) Grants to Local Authorities,Localism,AVON FIRE AUTHORITY,,Large,,424872570,5000262229,,Business Rates 2% Inflation Cap,BS1 6EU,"10,297.00",Yes
652,Communities & Local Government,DCLG,15/09/2014,Current (non AEF) Grants to Local Authorities,Localism,AVON FIRE AUTHORITY,,Large,,424872570,5000262232,,Small Business Rates Relief,BS1 6EU,"7,890.00",Yes
653,Communities & Local Government,DCLG,15/09/2014,Current (non AEF) Grants to Local Authorities,Localism,AVON FIRE AUTHORITY,,Large,,424872570,5000262238,,Reoccupation Relief,BS1 6EU,"1,945.00",Yes
654,Communities & Local Government,DCLG,15/09/2014,Current (non AEF) Grants to Local Authorities,Localism,AVON FIRE AUTHORITY,,Large,,424872570,5000262241,,Retail Relief,BS1 6EU,"5,524.00",Yes
655,Communities & Local Government,DCLG,15/09/2014,Current (non AEF) Grants to Local Authorities,Localism,AVON FIRE AUTHORITY,,Large,,424872570,5000262245,,Small Business Rates Relief on Second Properties,BS1 6EU,388.00,Yes
656,Communities & Local Government,DCLG,15/09/2014,Current (non AEF) Grants to Local Authorities,Localism,AYLESBURY VALE DC(HSG),,,,396710709,5000262186,,Business Rates 2% Inflation Cap,HP19 8FF,"3,578.00",Yes
657,Communities & Local Government,DCLG,15/09/2014,Current (non AEF) Grants to Local Authorities,Localism,AYLESBURY VALE DC(HSG),,,,396710709,5000262188,,Small Business Rates Relief,HP19 8FF,"59,302.00",Yes
658,Communities & Local Government,DCLG,15/09/2014,Current (non AEF) Grants to Local Authorities,Localism,BABERGH DC,,,,232618405,5000262190,,Business Rates 2% Inflation Cap,IP7 6SJ,"2,623.00",Yes
659,Communities & Local Government,DCLG,15/09/2014,Current (non AEF) Grants to Local Authorities,Localism,BABERGH DC,,,,232618405,5000262193,,Small Business Rates Relief,IP7 6SJ,"40,740.00",Yes
660,Communities & Local Government,DCLG,15/09/2014,Current (non AEF) Grants to Local Authorities,Localism,BABERGH DC,,,,232618405,5000262196,,Reoccupation Relief,IP7 6SJ,"2,428.00",Yes
661,Communities & Local Government,DCLG,15/09/2014,Current (non AEF) Grants to Local Authorities,Localism,BABERGH DC,,,,232618405,5000262199,,Retail Relief,IP7 6SJ,"6,063.00",Yes
662,Communities & Local Government,DCLG,15/09/2014,Current (non AEF) Grants to Local Authorities,Localism,BABERGH DC,,,,232618405,5000262201,,Small Business Rates Relief on Second Properties,IP7 6SJ,823.00,Yes
663,Communities & Local Government,DCLG,15/09/2014,Current (non AEF) Grants to Local Authorities,Localism,BABERGH DC,,,,232618405,5000264439,,Council Tax Freeze,IP7 6SJ,"4,932.00",Yes
664,Communities & Local Government,DCLG,15/09/2014,Current (non AEF) Grants to Local Authorities,Localism,BABERGH DC,,,,232618405,2100246112,,Transformation Challenge Award,IP7 6SJ,"210,000.00",Yes
665,Communities & Local Government,DCLG,15/09/2014,Current (non AEF) Grants to Local Authorities,Localism,BARKING & DAGENHAM LB (HSG),,,,217142293,5000262204,,Business Rates 2% Inflation Cap,RM10 7BY,"54,065.00",Yes
666,Communities & Local Government,DCLG,15/09/2014,Current (non AEF) Grants to Local Authorities,Localism,BARKING & DAGENHAM LB (HSG),,,,217142293,5000262207,,Small Business Rates Relief,RM10 7BY,"33,217.00",Yes
667,Communities & Local Government,DCLG,15/09/2014,Current (non AEF) Grants to Local Authorities,Localism,BARKING & DAGENHAM LB (HSG),,,,217142293,5000262209,,Empty New Build Relief,RM10 7BY,"2,529.00",Yes
668,Communities & Local Government,DCLG,15/09/2014,Current (non AEF) Grants to Local Authorities,Localism,BARKING & DAGENHAM LB (HSG),,,,217142293,5000262212,,Reoccupation Relief,RM10 7BY,"3,891.00",Yes
669,Communities & Local Government,DCLG,15/09/2014,Current (non AEF) Grants to Local Authorities,Localism,BARKING & DAGENHAM LB (HSG),,,,217142293,5000262215,,Retail Relief,RM10 7BY,"42,598.00",Yes
670,Communities & Local Government,DCLG,15/09/2014,Current (non AEF) Grants to Local Authorities,Localism,BARKING & DAGENHAM LB (HSG),,,,217142293,5000264440,,Council Tax Freeze,RM10 7BY,"54,149.00",Yes
671,Communities & Local Government,DCLG,15/09/2014,Current (non AEF) Grants to Local Authorities,Localism,BARNET LBC,,,,211049507,5000263130,,Business Rates 2% Inflation Cap,NW4 4BG,"54,713.00",Yes
672,Communities & Local Government,DCLG,15/09/2014,Current (non AEF) Grants to Local Authorities,Localism,BARNET LBC,,,,211049507,5000263133,,Reoccupation Relief,NW4 4BG,"36,382.00",Yes
673,Communities & Local Government,DCLG,15/09/2014,Current (non AEF) Grants to Local Authorities,Localism,BARNET LBC,,,,211049507,5000263136,,Retail Relief,NW4 4BG,"75,796.00",Yes
674,Communities & Local Government,DCLG,15/09/2014,Current (non AEF) Grants to Local Authorities,Localism,BARNET LBC,,,,211049507,5000263139,,Small Business Rates Relief,NW4 4BG,"50,422.00",Yes
675,Communities & Local Government,DCLG,15/09/2014,Current (non AEF) Grants to Local Authorities,Localism,BARNET LBC,,,,211049507,5000264542,,Council Tax Freeze,NW4 4BG,"165,932.00",Yes
676,Communities & Local Government,DCLG,15/09/2014,Current (non AEF) Grants to Local Authorities,Localism,BARNSLEY MBC,,,,211178595,5000263142,,Business Rates 2% Inflation Cap,S70 2AQ,"53,943.00",Yes
677,Communities & Local Government,DCLG,15/09/2014,Current (non AEF) Grants to Local Authorities,Localism,BARNSLEY MBC,,,,211178595,5000263146,,Small Business Rates Relief,S70 2AQ,"110,389.00",Yes
678,Communities & Local Government,DCLG,15/09/2014,Current (non AEF) Grants to Local Authorities,Localism,BARNSLEY MBC,,,,211178595,5000263148,,Reoccupation Relief,S70 2AQ,"2,124.00",Yes
679,Communities & Local Government,DCLG,15/09/2014,Current (non AEF) Grants to Local Authorities,Localism,BARNSLEY MBC,,,,211178595,5000263151,,Retail Relief,S70 2AQ,"36,541.00",Yes
680,Communities & Local Government,DCLG,15/09/2014,Current (non AEF) Grants to Local Authorities,Localism,BARROW BC,,,,295632913,5000263155,,Retail Relief,LA14 2LD,"13,502.00",Yes
681,Communities & Local Government,DCLG,15/09/2014,Current (non AEF) Grants to Local Authorities,Localism,BARROW BC,,,,295632913,5000263158,,Business Rates 2% Inflation Cap,LA14 2LD,"3,524.00",Yes
682,Communities & Local Government,DCLG,15/09/2014,Current (non AEF) Grants to Local Authorities,Localism,BARROW BC,,,,295632913,5000263161,,Small Business Rates Relief,LA14 2LD,"25,931.00",Yes
683,Communities & Local Government,DCLG,15/09/2014,Current (non AEF) Grants to Local Authorities,Localism,BARROW BC,,,,295632913,5000263164,,Reoccupation Relief,LA14 2LD,"2,455.00",Yes
684,Communities & Local Government,DCLG,15/09/2014,Current (non AEF) Grants to Local Authorities,Localism,BASILDON BOROUGH COUNCIL,,,,,5000263167,,Business Rates 2% Inflation Cap,SS14 0DF,"5,623.00",Yes
685,Communities & Local Government,DCLG,15/09/2014,Current (non AEF) Grants to Local Authorities,Localism,BASILDON BOROUGH COUNCIL,,,,,5000263170,,Small Business Rates Relief,SS14 0DF,"45,131.00",Yes
686,Communities & Local Government,DCLG,15/09/2014,Current (non AEF) Grants to Local Authorities,Localism,BASILDON BOROUGH COUNCIL,,,,,5000263173,,Reoccupation Relief,SS14 0DF,"15,361.00",Yes
687,Communities & Local Government,DCLG,15/09/2014,Current (non AEF) Grants to Local Authorities,Localism,BASILDON BOROUGH COUNCIL,,,,,5000263176,,Retail Relief,SS14 0DF,"42,284.00",Yes
688,Communities & Local Government,DCLG,15/09/2014,Current (non AEF) Grants to Local Authorities,Localism,BASILDON BOROUGH COUNCIL,,,,,5000263179,,Small Business Rates Relief on Second Properties,SS14 0DF,808.00,Yes
689,Communities & Local Government,DCLG,15/09/2014,Current (non AEF) Grants to Local Authorities,Localism,BASILDON BOROUGH COUNCIL,,,,,5000264543,,Council Tax Freeze,SS14 0DF,"16,236.00",Yes
690,Communities & Local Government,DCLG,15/09/2014,Current (non AEF) Grants to Local Authorities,Localism,BASINGSTOKE & DEANE BC,,,,228328506,5000263182,,Business Rates 2% Inflation Cap,RG21 2AJ,"3,190.00",Yes
691,Communities & Local Government,DCLG,15/09/2014,Current (non AEF) Grants to Local Authorities,Localism,BASINGSTOKE & DEANE BC,,,,228328506,5000263185,,Small Business Rates Relief,RG21 2AJ,"30,295.00",Yes
692,Communities & Local Government,DCLG,15/09/2014,Current (non AEF) Grants to Local Authorities,Localism,BASINGSTOKE & DEANE BC,,,,228328506,5000263188,,Empty New Build Relief,RG21 2AJ,974.00,Yes
693,Communities & Local Government,DCLG,15/09/2014,Current (non AEF) Grants to Local Authorities,Localism,BASINGSTOKE & DEANE BC,,,,228328506,5000263191,,Reoccupation Relief,RG21 2AJ,"3,313.00",Yes
694,Communities & Local Government,DCLG,15/09/2014,Current (non AEF) Grants to Local Authorities,Localism,BASINGSTOKE & DEANE BC,,,,228328506,5000263194,,Retail Relief,RG21 2AJ,"20,213.00",Yes
695,Communities & Local Government,DCLG,15/09/2014,Current (non AEF) Grants to Local Authorities,Localism,BASINGSTOKE & DEANE BC,,,,228328506,5000263197,,Small Business Rates Relief on Second Properties,RG21 2AJ,"1,142.00",Yes
696,Communities & Local Government,DCLG,15/09/2014,Current (non AEF) Grants to Local Authorities,Localism,BASINGSTOKE & DEANE BC,,,,228328506,5000264544,,Council Tax Freeze,RG21 2AJ,"6,937.00",Yes
697,Communities & Local Government,DCLG,15/09/2014,Current (non AEF) Grants to Local Authorities,Localism,BASSETLAW DC (HSG),,,,,5000262218,,Business Rates 2% Inflation Cap,S80 2AH,"2,885.00",Yes
698,Communities & Local Government,DCLG,15/09/2014,Current (non AEF) Grants to Local Authorities,Localism,BASSETLAW DC (HSG),,,,,5000262221,,Small Business Rates Relief,S80 2AH,"44,955.00",Yes
699,Communities & Local Government,DCLG,15/09/2014,Current (non AEF) Grants to Local Authorities,Localism,BASSETLAW DC (HSG),,,,,5000262224,,Empty New Build Relief,S80 2AH,"1,011.00",Yes
700,Communities & Local Government,DCLG,15/09/2014,Current (non AEF) Grants to Local Authorities,Localism,BASSETLAW DC (HSG),,,,,5000262227,,Reoccupation Relief,S80 2AH,"3,436.00",Yes
701,Communities & Local Government,DCLG,15/09/2014,Current (non AEF) Grants to Local Authorities,Localism,BASSETLAW DC (HSG),,,,,5000262230,,Retail Relief,S80 2AH,"16,170.00",Yes
702,Communities & Local Government,DCLG,15/09/2014,Current (non AEF) Grants to Local Authorities,Localism,BASSETLAW DC (HSG),,,,,5000262233,,Small Business Rates Relief on Second Properties,S80 2AH,616.00,Yes
703,Communities & Local Government,DCLG,15/09/2014,Current (non AEF) Grants to Local Authorities,Localism,BATH & NE SOMERSET DC (HSG),,,,214502499,5000262236,,Business Rates 2% Inflation Cap,BA1 5AW,"23,470.00",Yes
704,Communities & Local Government,DCLG,15/09/2014,Current (non AEF) Grants to Local Authorities,Localism,BATH & NE SOMERSET DC (HSG),,,,214502499,5000262239,,Small Business Rates Relief,BA1 5AW,"86,761.00",Yes
705,Communities & Local Government,DCLG,15/09/2014,Current (non AEF) Grants to Local Authorities,Localism,BATH & NE SOMERSET DC (HSG),,,,214502499,5000262242,,Reoccupation Relief,BA1 5AW,"17,300.00",Yes
706,Communities & Local Government,DCLG,15/09/2014,Current (non AEF) Grants to Local Authorities,Localism,BATH & NE SOMERSET DC (HSG),,,,214502499,5000262244,,Retail Relief,BA1 5AW,"58,355.00",Yes
707,Communities & Local Government,DCLG,15/09/2014,Current (non AEF) Grants to Local Authorities,Localism,BATH & NE SOMERSET DC (HSG),,,,214502499,5000264441,,Council Tax Freeze,BA1 5AW,"79,866.00",Yes
708,Communities & Local Government,DCLG,15/09/2014,Current (non AEF) Grants to Local Authorities,Localism,BEDFORD UNITARY AUTHORITY,,,,225682160,5000262329,,Business Rates 2% Inflation Cap,MK40 1SJ,"31,029.00",Yes
709,Communities & Local Government,DCLG,15/09/2014,Current (non AEF) Grants to Local Authorities,Localism,BEDFORD UNITARY AUTHORITY,,,,225682160,5000262333,,Small Business Rates Relief,MK40 1SJ,"70,348.00",Yes
710,Communities & Local Government,DCLG,15/09/2014,Current (non AEF) Grants to Local Authorities,Localism,BEDFORD UNITARY AUTHORITY,,,,225682160,5000262337,,Reoccupation Relief,MK40 1SJ,"1,238.00",Yes
711,Communities & Local Government,DCLG,15/09/2014,Current (non AEF) Grants to Local Authorities,Localism,BEDFORD UNITARY AUTHORITY,,,,225682160,5000262341,,Retail Relief,MK40 1SJ,"36,149.00",Yes
712,Communities & Local Government,DCLG,15/09/2014,Current (non AEF) Grants to Local Authorities,Localism,BEDFORD UNITARY AUTHORITY,,,,225682160,5000264682,,Council Tax Freeze,MK40 1SJ,"77,230.00",Yes
713,Communities & Local Government,DCLG,15/09/2014,Current (non AEF) Grants to Local Authorities,Localism,BEDS & LUTON FIRE & RESCUE SERVICE,,Medium,,387821283,5000264011,,Business Rates 2% Inflation Cap,MK42 7NR,"5,545.00",Yes
714,Communities & Local Government,DCLG,15/09/2014,Current (non AEF) Grants to Local Authorities,Localism,BEDS & LUTON FIRE & RESCUE SERVICE,,Medium,,387821283,5000264012,,Reoccupation Relief,MK42 7NR,358.00,Yes
715,Communities & Local Government,DCLG,15/09/2014,Current (non AEF) Grants to Local Authorities,Localism,BEDS & LUTON FIRE & RESCUE SERVICE,,Medium,,387821283,5000264013,,Retail Relief,MK42 7NR,"2,862.00",Yes
716,Communities & Local Government,DCLG,15/09/2014,Current (non AEF) Grants to Local Authorities,Localism,BEDS & LUTON FIRE & RESCUE SERVICE,,Medium,,387821283,5000264014,,Small Business Rates Relief,MK42 7NR,"4,911.00",Yes
717,Communities & Local Government,DCLG,15/09/2014,Current (non AEF) Grants to Local Authorities,Localism,BEXLEY LB (HSG),,,,,5000264442,,Council Tax Freeze,DA8 1TL,"96,816.00",Yes
718,Communities & Local Government,DCLG,15/09/2014,Current (non AEF) Grants to Local Authorities,Localism,BEXLEY LB (RSG),,,,,5000263898,,Business Rates 2% Inflation Cap,DA8 1TL,"36,219.00",Yes
719,Communities & Local Government,DCLG,15/09/2014,Current (non AEF) Grants to Local Authorities,Localism,BEXLEY LB (RSG),,,,,5000263899,,Small Business Rates Relief,DA8 1TL,"58,237.00",Yes
720,Communities & Local Government,DCLG,15/09/2014,Current (non AEF) Grants to Local Authorities,Localism,BEXLEY LB (RSG),,,,,5000263900,,Reoccupation Relief,DA8 1TL,"1,688.00",Yes
721,Communities & Local Government,DCLG,15/09/2014,Current (non AEF) Grants to Local Authorities,Localism,BEXLEY LB (RSG),,,,,5000263901,,Retail Relief,DA8 1TL,"34,413.00",Yes
722,Communities & Local Government,DCLG,15/09/2014,Current (non AEF) Grants to Local Authorities,Localism,BIRMINGHAM CITY CNCL,,,,213780559,5000263200,,Business Rates 2% Inflation Cap,B2 2AJ,"345,209.00",Yes
723,Communities & Local Government,DCLG,15/09/2014,Current (non AEF) Grants to Local Authorities,Localism,BIRMINGHAM CITY CNCL,,,,213780559,5000263203,,Small Business Rates Relief,B2 2AJ,"534,828.00",Yes
724,Communities & Local Government,DCLG,15/09/2014,Current (non AEF) Grants to Local Authorities,Localism,BIRMINGHAM CITY CNCL,,,,213780559,5000263207,,Retail Relief,B2 2AJ,"251,067.00",Yes
725,Communities & Local Government,DCLG,15/09/2014,Current (non AEF) Grants to Local Authorities,Localism,BLABY DC (HSG),,,,,5000262247,,Business Rates 2% Inflation Cap,LE9 5EP,"3,383.00",Yes
726,Communities & Local Government,DCLG,15/09/2014,Current (non AEF) Grants to Local Authorities,Localism,BLABY DC (HSG),,,,,5000262251,,Small Business Rates Relief,LE9 5EP,"22,798.00",Yes
727,Communities & Local Government,DCLG,15/09/2014,Current (non AEF) Grants to Local Authorities,Localism,BLABY DC (HSG),,,,,5000262254,,Retail Relief,LE9 5EP,"7,297.00",Yes
728,Communities & Local Government,DCLG,15/09/2014,Current (non AEF) Grants to Local Authorities,Localism,BLACKBURN WITH DARWEN BC,,,,,5000263210,,Reoccupation Relief,BB1 7DY,"7,726.00",Yes
729,Communities & Local Government,DCLG,15/09/2014,Current (non AEF) Grants to Local Authorities,Localism,BLACKBURN WITH DARWEN BC,,,,,5000263213,,Retail Relief,BB1 7DY,"22,928.00",Yes
730,Communities & Local Government,DCLG,15/09/2014,Current (non AEF) Grants to Local Authorities,Localism,BLACKBURN WITH DARWEN BC,,,,,5000263217,,Small Business Rates Relief on Second Properties,BB1 7DY,"2,476.00",Yes
731,Communities & Local Government,DCLG,15/09/2014,Current (non AEF) Grants to Local Authorities,Localism,BLACKBURN WITH DARWEN BC,,,,,5000263220,,Business Rates 2% Inflation Cap,BB1 7DY,"42,502.00",Yes
732,Communities & Local Government,DCLG,15/09/2014,Current (non AEF) Grants to Local Authorities,Localism,BLACKBURN WITH DARWEN BC,,,,,5000263223,,Small Business Rates Relief,BB1 7DY,"115,134.00",Yes
733,Communities & Local Government,DCLG,15/09/2014,Current (non AEF) Grants to Local Authorities,Localism,BLACKBURN WITH DARWEN BC,,,,,5000264545,,Council Tax Freeze,BB1 7DY,"49,797.00",Yes
734,Communities & Local Government,DCLG,15/09/2014,Current (non AEF) Grants to Local Authorities,Localism,BLACKPOOL BC,,,,,5000263226,,Small Business Rates Relief on Second Properties,FY1 1NA,"14,361.00",Yes
735,Communities & Local Government,DCLG,15/09/2014,Current (non AEF) Grants to Local Authorities,Localism,BLACKPOOL BC,,,,,5000263229,,Business Rates 2% Inflation Cap,FY1 1NA,"45,348.00",Yes
736,Communities & Local Government,DCLG,15/09/2014,Current (non AEF) Grants to Local Authorities,Localism,BLACKPOOL BC,,,,,5000263232,,Small Business Rates Relief,FY1 1NA,"143,577.00",Yes
737,Communities & Local Government,DCLG,15/09/2014,Current (non AEF) Grants to Local Authorities,Localism,BLACKPOOL BC,,,,,5000263235,,Empty New Build Relief,FY1 1NA,"2,476.00",Yes
738,Communities & Local Government,DCLG,15/09/2014,Current (non AEF) Grants to Local Authorities,Localism,BLACKPOOL BC,,,,,5000263238,,Reoccupation Relief,FY1 1NA,"2,316.00",Yes
739,Communities & Local Government,DCLG,15/09/2014,Current (non AEF) Grants to Local Authorities,Localism,BLACKPOOL BC,,,,,5000263241,,Retail Relief,FY1 1NA,"49,195.00",Yes
740,Communities & Local Government,DCLG,15/09/2014,Current (non AEF) Grants to Local Authorities,Localism,BLACKPOOL BC,,,,,5000264546,,Council Tax Freeze,FY1 1NA,"61,277.00",Yes
741,Communities & Local Government,DCLG,15/09/2014,Current (non AEF) Grants to Local Authorities,Localism,BLACKPOOL BC,,Public Bodies,,228593497,2100246113,,Transformation Challenge Award,FY1 1NA,"450,000.00",Yes
742,Communities & Local Government,DCLG,15/09/2014,Current (non AEF) Grants to Local Authorities,Localism,BOLSOVER DC,,,,235516523,5000263246,,Retail Relief,S44 6NF,"10,577.00",Yes
743,Communities & Local Government,DCLG,15/09/2014,Current (non AEF) Grants to Local Authorities,Localism,BOLSOVER DC,,,,235516523,5000263249,,Business Rates 2% Inflation Cap,S44 6NF,"3,647.00",Yes
744,Communities & Local Government,DCLG,15/09/2014,Current (non AEF) Grants to Local Authorities,Localism,BOLSOVER DC,,,,235516523,5000263252,,Small Business Rates Relief,S44 6NF,"23,842.00",Yes
745,Communities & Local Government,DCLG,15/09/2014,Current (non AEF) Grants to Local Authorities,Localism,BOLSOVER DC,,,,235516523,5000264547,,Council Tax Freeze,S44 6NF,"3,678.00",Yes
746,Communities & Local Government,DCLG,15/09/2014,Current (non AEF) Grants to Local Authorities,Localism,BOLTON MBC,,,,,5000263255,,Business Rates 2% Inflation Cap,BL1 1RU,"64,799.00",Yes
747,Communities & Local Government,DCLG,15/09/2014,Current (non AEF) Grants to Local Authorities,Localism,BOLTON MBC,,,,,5000263258,,Small Business Rates Relief,BL1 1RU,"175,797.00",Yes
748,Communities & Local Government,DCLG,15/09/2014,Current (non AEF) Grants to Local Authorities,Localism,BOLTON MBC,,,,,5000263261,,Reoccupation Relief,BL1 1RU,"58,186.00",Yes
749,Communities & Local Government,DCLG,15/09/2014,Current (non AEF) Grants to Local Authorities,Localism,BOLTON MBC,,,,,5000263264,,Retail Relief,BL1 1RU,"62,792.00",Yes
750,Communities & Local Government,DCLG,15/09/2014,Current (non AEF) Grants to Local Authorities,Localism,BOSTON BC,,,,236417713,5000262257,,Reoccupation Relief,PE21 8QR,818.00,Yes
751,Communities & Local Government,DCLG,15/09/2014,Current (non AEF) Grants to Local Authorities,Localism,BOSTON BC,,,,236417713,5000262260,,Retail Relief,PE21 8QR,"12,642.00",Yes
752,Communities & Local Government,DCLG,15/09/2014,Current (non AEF) Grants to Local Authorities,Localism,BOSTON BC,,,,236417713,5000262263,,Business Rates 2% Inflation Cap,PE21 8QR,"2,592.00",Yes
753,Communities & Local Government,DCLG,15/09/2014,Current (non AEF) Grants to Local Authorities,Localism,BOSTON BC,,,,236417713,5000262266,,Small Business Rates Relief,PE21 8QR,"26,740.00",Yes
754,Communities & Local Government,DCLG,15/09/2014,Current (non AEF) Grants to Local Authorities,Localism,BOSTON BC,,,,236417713,5000264443,,Council Tax Freeze,PE21 8QR,"3,395.00",Yes
755,Communities & Local Government,DCLG,15/09/2014,Current (non AEF) Grants to Local Authorities,Localism,BOURNEMOUTH BC,,Large,,210324552,2100246067,,Transformation Challenge Award,BH1 2BU,"262,000.00",Yes
756,Communities & Local Government,DCLG,15/09/2014,Current (non AEF) Grants to Local Authorities,Localism,BOURNEMOUTH DC,,,,,5000263267,,Business Rates 2% Inflation Cap,BH2 6EB,"29,890.00",Yes
757,Communities & Local Government,DCLG,15/09/2014,Current (non AEF) Grants to Local Authorities,Localism,BOURNEMOUTH DC,,,,,5000263270,,Small Business Rates Relief,BH2 6EB,"108,216.00",Yes
758,Communities & Local Government,DCLG,15/09/2014,Current (non AEF) Grants to Local Authorities,Localism,BOURNEMOUTH DC,,,,,5000263273,,Reoccupation Relief,BH2 6EB,"10,873.00",Yes
759,Communities & Local Government,DCLG,15/09/2014,Current (non AEF) Grants to Local Authorities,Localism,BOURNEMOUTH DC,,,,,5000263276,,Retail Relief,BH2 6EB,"52,680.00",Yes
760,Communities & Local Government,DCLG,15/09/2014,Current (non AEF) Grants to Local Authorities,Localism,BOURNEMOUTH DC,,,,,5000264548,,Council Tax Freeze,BH2 6EB,"84,313.00",Yes
761,Communities & Local Government,DCLG,15/09/2014,Current (non AEF) Grants to Local Authorities,Localism,BRACKNELL FOREST DC,,,,236184867,5000263279,,Retail Relief,RG12 1AQ,"27,236.00",Yes
762,Communities & Local Government,DCLG,15/09/2014,Current (non AEF) Grants to Local Authorities,Localism,BRACKNELL FOREST DC,,,,236184867,5000263282,,Small Business Rates Relief on Second Properties,RG12 1AQ,"2,476.00",Yes
763,Communities & Local Government,DCLG,15/09/2014,Current (non AEF) Grants to Local Authorities,Localism,BRACKNELL FOREST DC,,,,236184867,5000263285,,Business Rates 2% Inflation Cap,RG12 1AQ,"25,135.00",Yes
764,Communities & Local Government,DCLG,15/09/2014,Current (non AEF) Grants to Local Authorities,Localism,BRACKNELL FOREST DC,,,,236184867,5000263288,,Small Business Rates Relief,RG12 1AQ,"21,534.00",Yes
765,Communities & Local Government,DCLG,15/09/2014,Current (non AEF) Grants to Local Authorities,Localism,BRACKNELL FOREST DC,,,,236184867,5000263291,,Reoccupation Relief,RG12 1AQ,"2,476.00",Yes
766,Communities & Local Government,DCLG,15/09/2014,Current (non AEF) Grants to Local Authorities,Localism,BRACKNELL FOREST DC,,,,236184867,5000264549,,Council Tax Freeze,RG12 1AQ,"50,144.00",Yes
767,Communities & Local Government,DCLG,15/09/2014,Current (non AEF) Grants to Local Authorities,Localism,BRADFORD MBC,,,,,5000263294,,Empty New Build Relief,BD1 1HX,990.00,Yes
768,Communities & Local Government,DCLG,15/09/2014,Current (non AEF) Grants to Local Authorities,Localism,BRADFORD MBC,,,,,5000263297,,Business Rates 2% Inflation Cap,BD1 1HX,"130,565.00",Yes
769,Communities & Local Government,DCLG,15/09/2014,Current (non AEF) Grants to Local Authorities,Localism,BRADFORD MBC,,,,,5000263300,,Small Business Rates Relief,BD1 1HX,"360,933.00",Yes
770,Communities & Local Government,DCLG,15/09/2014,Current (non AEF) Grants to Local Authorities,Localism,BRADFORD MBC,,,,,5000263303,,Reoccupation Relief,BD1 1HX,"12,380.00",Yes
771,Communities & Local Government,DCLG,15/09/2014,Current (non AEF) Grants to Local Authorities,Localism,BRADFORD MBC,,,,,5000263306,,Retail Relief,BD1 1HX,"118,848.00",Yes
772,Communities & Local Government,DCLG,15/09/2014,Current (non AEF) Grants to Local Authorities,Localism,BRADFORD MBC,,,,,5000263309,,Small Business Rates Relief on Second Properties,BD1 1HX,495.00,Yes
773,Communities & Local Government,DCLG,15/09/2014,Current (non AEF) Grants to Local Authorities,Localism,BRAINTREE DC,,,,226941730,5000262269,,Business Rates 2% Inflation Cap,CM7 6HB,"3,700.00",Yes
774,Communities & Local Government,DCLG,15/09/2014,Current (non AEF) Grants to Local Authorities,Localism,BRAINTREE DC,,,,226941730,5000262271,,Small Business Rates Relief,CM7 6HB,"57,254.00",Yes
775,Communities & Local Government,DCLG,15/09/2014,Current (non AEF) Grants to Local Authorities,Localism,BRAINTREE DC,,,,226941730,5000262274,,Empty New Build Relief,CM7 6HB,"2,190.00",Yes
776,Communities & Local Government,DCLG,15/09/2014,Current (non AEF) Grants to Local Authorities,Localism,BRAINTREE DC,,,,226941730,5000262277,,Reoccupation Relief,CM7 6HB,"13,485.00",Yes
777,Communities & Local Government,DCLG,15/09/2014,Current (non AEF) Grants to Local Authorities,Localism,BRAINTREE DC,,,,226941730,5000262280,,Retail Relief,CM7 6HB,"21,485.00",Yes
778,Communities & Local Government,DCLG,15/09/2014,Current (non AEF) Grants to Local Authorities,Localism,BRAINTREE DC,,,,226941730,5000264444,,Council Tax Freeze,CM7 6HB,"8,751.00",Yes
779,Communities & Local Government,DCLG,15/09/2014,Current (non AEF) Grants to Local Authorities,Localism,BRECKLAND DC,,,,232611384,5000262283,,Business Rates 2% Inflation Cap,NR19 1EE,"4,317.00",Yes
780,Communities & Local Government,DCLG,15/09/2014,Current (non AEF) Grants to Local Authorities,Localism,BRECKLAND DC,,,,232611384,5000262286,,Small Business Rates Relief,NR19 1EE,"55,166.00",Yes
781,Communities & Local Government,DCLG,15/09/2014,Current (non AEF) Grants to Local Authorities,Localism,BRECKLAND DC,,,,232611384,5000262289,,Reoccupation Relief,NR19 1EE,"1,834.00",Yes
782,Communities & Local Government,DCLG,15/09/2014,Current (non AEF) Grants to Local Authorities,Localism,BRECKLAND DC,,,,232611384,5000262291,,Retail Relief,NR19 1EE,"20,879.00",Yes
783,Communities & Local Government,DCLG,15/09/2014,Current (non AEF) Grants to Local Authorities,Localism,BRECKLAND DC,,,,232611384,5000264445,,Council Tax Freeze,NR19 1EE,"3,071.00",Yes
784,Communities & Local Government,DCLG,15/09/2014,Current (non AEF) Grants to Local Authorities,Localism,BRENT LB (HSG),,,,,5000262295,,Empty New Build Relief,HA9 9HD,"3,032.00",Yes
785,Communities & Local Government,DCLG,15/09/2014,Current (non AEF) Grants to Local Authorities,Localism,BRENT LB (HSG),,,,,5000262299,,Reoccupation Relief,HA9 9HD,"7,580.00",Yes
786,Communities & Local Government,DCLG,15/09/2014,Current (non AEF) Grants to Local Authorities,Localism,BRENT LB (HSG),,,,,5000262303,,Retail Relief,HA9 9HD,"63,679.00",Yes
787,Communities & Local Government,DCLG,15/09/2014,Current (non AEF) Grants to Local Authorities,Localism,BRENT LB (HSG),,,,,5000262307,,Business Rates 2% Inflation Cap,HA9 9HD,"86,061.00",Yes
788,Communities & Local Government,DCLG,15/09/2014,Current (non AEF) Grants to Local Authorities,Localism,BRENT LB (HSG),,,,,5000262311,,Small Business Rates Relief,HA9 9HD,"61,116.00",Yes
789,Communities & Local Government,DCLG,15/09/2014,Current (non AEF) Grants to Local Authorities,Localism,BRENT LB (HSG),,,,,5000264446,,Council Tax Freeze,HA9 9HD,"105,603.00",Yes
790,Communities & Local Government,DCLG,15/09/2014,Current (non AEF) Grants to Local Authorities,Localism,BRENTWOOD BC,,,,227473188,5000263312,,Business Rates 2% Inflation Cap,CM15 8AY,"1,199.00",Yes
791,Communities & Local Government,DCLG,15/09/2014,Current (non AEF) Grants to Local Authorities,Localism,BRENTWOOD BC,,,,227473188,5000263315,,Small Business Rates Relief,CM15 8AY,"21,052.00",Yes
792,Communities & Local Government,DCLG,15/09/2014,Current (non AEF) Grants to Local Authorities,Localism,BRENTWOOD BC,,,,227473188,5000263318,,Retail Relief,CM15 8AY,"28,682.00",Yes
793,Communities & Local Government,DCLG,15/09/2014,Current (non AEF) Grants to Local Authorities,Localism,BRENTWOOD BC,,,,227473188,5000264550,,Council Tax Freeze,CM15 8AY,"5,681.00",Yes
794,Communities & Local Government,DCLG,15/09/2014,Current (non AEF) Grants to Local Authorities,Localism,BRIGHTON & HOVE CITY COUNCIL,,,,228455218,5000263321,,Business Rates 2% Inflation Cap,BN3 2SR,"56,911.00",Yes
795,Communities & Local Government,DCLG,15/09/2014,Current (non AEF) Grants to Local Authorities,Localism,BRIGHTON & HOVE CITY COUNCIL,,,,228455218,5000263324,,Small Business Rates Relief,BN3 2SR,"145,227.00",Yes
796,Communities & Local Government,DCLG,15/09/2014,Current (non AEF) Grants to Local Authorities,Localism,BRIGHTON & HOVE CITY COUNCIL,,,,228455218,5000263327,,Empty New Build Relief,BN3 2SR,"1,486.00",Yes
797,Communities & Local Government,DCLG,15/09/2014,Current (non AEF) Grants to Local Authorities,Localism,BRIGHTON & HOVE CITY COUNCIL,,,,228455218,5000263330,,Reoccupation Relief,BN3 2SR,"3,814.00",Yes
798,Communities & Local Government,DCLG,15/09/2014,Current (non AEF) Grants to Local Authorities,Localism,BRIGHTON & HOVE CITY COUNCIL,,,,228455218,5000263333,,Retail Relief,BN3 2SR,"112,262.00",Yes
799,Communities & Local Government,DCLG,15/09/2014,Current (non AEF) Grants to Local Authorities,Localism,BRIGHTON & HOVE CITY COUNCIL,,,,228455218,5000263336,,Small Business Rates Relief on Second Properties,BN3 2SR,495.00,Yes
800,Communities & Local Government,DCLG,15/09/2014,Current (non AEF) Grants to Local Authorities,Localism,BRISTOL CITY CNCL (HSG),,,,211103882,5000262315,,Business Rates 2% Inflation Cap,BS99 7BL,"102,130.00",Yes
801,Communities & Local Government,DCLG,15/09/2014,Current (non AEF) Grants to Local Authorities,Localism,BRISTOL CITY CNCL (HSG),,,,211103882,5000262319,,Small Business Rates Relief,BS99 7BL,"133,029.00",Yes
802,Communities & Local Government,DCLG,15/09/2014,Current (non AEF) Grants to Local Authorities,Localism,BRISTOL CITY CNCL (HSG),,,,211103882,5000262323,,Reoccupation Relief,BS99 7BL,"61,900.00",Yes
803,Communities & Local Government,DCLG,15/09/2014,Current (non AEF) Grants to Local Authorities,Localism,BRISTOL CITY CNCL (HSG),,,,211103882,5000262327,,Retail Relief,BS99 7BL,"99,041.00",Yes
804,Communities & Local Government,DCLG,15/09/2014,Current (non AEF) Grants to Local Authorities,Localism,BRISTOL CITY CNCL (HSG),,,,211103882,5000262331,,Small Business Rates Relief on Second Properties,BS99 7BL,"4,952.00",Yes
805,Communities & Local Government,DCLG,15/09/2014,Current (non AEF) Grants to Local Authorities,Localism,BROADLAND DC,,Large,,219737785,5000262335,,Business Rates 2% Inflation Cap,NR7 0DU,"3,409.00",Yes
806,Communities & Local Government,DCLG,15/09/2014,Current (non AEF) Grants to Local Authorities,Localism,BROADLAND DC,,Large,,219737785,5000262339,,Small Business Rates Relief,NR7 0DU,"48,471.00",Yes
807,Communities & Local Government,DCLG,15/09/2014,Current (non AEF) Grants to Local Authorities,Localism,BROADLAND DC,,Large,,219737785,5000262343,,Empty New Build Relief,NR7 0DU,"2,021.00",Yes
808,Communities & Local Government,DCLG,15/09/2014,Current (non AEF) Grants to Local Authorities,Localism,BROADLAND DC,,Large,,219737785,5000262347,,Reoccupation Relief,NR7 0DU,"1,011.00",Yes
809,Communities & Local Government,DCLG,15/09/2014,Current (non AEF) Grants to Local Authorities,Localism,BROADLAND DC,,Large,,219737785,5000262352,,Retail Relief,NR7 0DU,"13,138.00",Yes
810,Communities & Local Government,DCLG,15/09/2014,Current (non AEF) Grants to Local Authorities,Localism,BROADLAND DC,,Large,,219737785,5000262356,,Small Business Rates Relief on Second Properties,NR7 0DU,486.00,Yes
811,Communities & Local Government,DCLG,15/09/2014,Current (non AEF) Grants to Local Authorities,Localism,BROADLAND DC,,Large,,219737785,5000264447,,Council Tax Freeze,NR7 0DU,"5,252.00",Yes
812,Communities & Local Government,DCLG,15/09/2014,Current (non AEF) Grants to Local Authorities,Localism,BROMLEY LB,,,,211331954,5000263339,,Business Rates 2% Inflation Cap,BR1 3UH,"36,705.00",Yes
813,Communities & Local Government,DCLG,15/09/2014,Current (non AEF) Grants to Local Authorities,Localism,BROMLEY LB,,,,211331954,5000263342,,Small Business Rates Relief,BR1 3UH,"64,692.00",Yes
814,Communities & Local Government,DCLG,15/09/2014,Current (non AEF) Grants to Local Authorities,Localism,BROMLEY LB,,,,211331954,5000263345,,Reoccupation Relief,BR1 3UH,"3,257.00",Yes
815,Communities & Local Government,DCLG,15/09/2014,Current (non AEF) Grants to Local Authorities,Localism,BROMLEY LB,,,,211331954,5000263348,,Retail Relief,BR1 3UH,"58,733.00",Yes
816,Communities & Local Government,DCLG,15/09/2014,Current (non AEF) Grants to Local Authorities,Localism,BROMLEY LB,,,,211331954,5000264551,,Council Tax Freeze,BR1 3UH,"138,175.00",Yes
817,Communities & Local Government,DCLG,15/09/2014,Current (non AEF) Grants to Local Authorities,Localism,BROMSGROVE DC,,,,236654745,5000262360,,Business Rates 2% Inflation Cap,B60 1AA,"1,795.00",Yes
818,Communities & Local Government,DCLG,15/09/2014,Current (non AEF) Grants to Local Authorities,Localism,BROMSGROVE DC,,,,236654745,5000262364,,Small Business Rates Relief,B60 1AA,"37,208.00",Yes
819,Communities & Local Government,DCLG,15/09/2014,Current (non AEF) Grants to Local Authorities,Localism,BROMSGROVE DC,,,,236654745,5000262366,,Reoccupation Relief,B60 1AA,261.00,Yes
820,Communities & Local Government,DCLG,15/09/2014,Current (non AEF) Grants to Local Authorities,Localism,BROMSGROVE DC,,,,236654745,5000262370,,Retail Relief,B60 1AA,"17,264.00",Yes
821,Communities & Local Government,DCLG,15/09/2014,Current (non AEF) Grants to Local Authorities,Localism,BROXBOURNE BC,,Public Bodies,,239931918,5000263351,,Reoccupation Relief,EN8 9XG,"10,106.00",Yes
822,Communities & Local Government,DCLG,15/09/2014,Current (non AEF) Grants to Local Authorities,Localism,BROXBOURNE BC,,Public Bodies,,239931918,5000263354,,Retail Relief,EN8 9XG,"25,265.00",Yes
823,Communities & Local Government,DCLG,15/09/2014,Current (non AEF) Grants to Local Authorities,Localism,BROXBOURNE BC,,Public Bodies,,239931918,5000263359,,Business Rates 2% Inflation Cap,EN8 9XG,"2,590.00",Yes
824,Communities & Local Government,DCLG,15/09/2014,Current (non AEF) Grants to Local Authorities,Localism,BROXBOURNE BC,,Public Bodies,,239931918,5000263362,,Small Business Rates Relief,EN8 9XG,"26,397.00",Yes
825,Communities & Local Government,DCLG,15/09/2014,Current (non AEF) Grants to Local Authorities,Localism,BROXBOURNE BC,,Public Bodies,,239931918,5000264552,,Council Tax Freeze,EN8 9XG,"4,224.00",Yes
826,Communities & Local Government,DCLG,15/09/2014,Current (non AEF) Grants to Local Authorities,Localism,BROXTOWE BC,,,,239877640,5000263365,,Business Rates 2% Inflation Cap,NG9 1AB,"3,058.00",Yes
827,Communities & Local Government,DCLG,15/09/2014,Current (non AEF) Grants to Local Authorities,Localism,BROXTOWE BC,,,,239877640,5000263368,,Small Business Rates Relief,NG9 1AB,"30,372.00",Yes
828,Communities & Local Government,DCLG,15/09/2014,Current (non AEF) Grants to Local Authorities,Localism,BROXTOWE BC,,,,239877640,5000263371,,Retail Relief,NG9 1AB,"10,106.00",Yes
829,Communities & Local Government,DCLG,15/09/2014,Current (non AEF) Grants to Local Authorities,Localism,BROXTOWE BC,,,,239877640,5000264553,,Council Tax Freeze,NG9 1AB,"5,946.00",Yes
830,Communities & Local Government,DCLG,15/09/2014,Current (non AEF) Grants to Local Authorities,Localism,BUCKINGHAMSHIRE CC,,,,293750923,5000263374,,Business Rates 2% Inflation Cap,HP20 1UD,"41,624.00",Yes
831,Communities & Local Government,DCLG,15/09/2014,Current (non AEF) Grants to Local Authorities,Localism,BUCKINGHAMSHIRE CC,,,,293750923,5000263377,,Small Business Rates Relief,HP20 1UD,"32,458.00",Yes
832,Communities & Local Government,DCLG,15/09/2014,Current (non AEF) Grants to Local Authorities,Localism,BUCKINGHAMSHIRE CC,,,,293750923,5000263380,,Empty New Build Relief,HP20 1UD,455.00,Yes
833,Communities & Local Government,DCLG,15/09/2014,Current (non AEF) Grants to Local Authorities,Localism,BUCKINGHAMSHIRE CC,,,,293750923,5000263383,,Reoccupation Relief,HP20 1UD,"6,985.00",Yes
834,Communities & Local Government,DCLG,15/09/2014,Current (non AEF) Grants to Local Authorities,Localism,BUCKINGHAMSHIRE CC,,,,293750923,5000263386,,Retail Relief,HP20 1UD,"11,500.00",Yes
835,Communities & Local Government,DCLG,15/09/2014,Current (non AEF) Grants to Local Authorities,Localism,BUCKINGHAMSHIRE CC,,,,293750923,5000263389,,Small Business Rates Relief on Second Properties,HP20 1UD,960.00,Yes
836,Communities & Local Government,DCLG,15/09/2014,Current (non AEF) Grants to Local Authorities,Localism,BUCKS & MILTON KEYNES FIRE AUTH,,Public Bodies,,423679463,5000263945,,Business Rates 2% Inflation Cap,HP20 1BD,"4,828.00",Yes
837,Communities & Local Government,DCLG,15/09/2014,Current (non AEF) Grants to Local Authorities,Localism,BUCKS & MILTON KEYNES FIRE AUTH,,Public Bodies,,423679463,5000263946,,Small Business Rates Relief,HP20 1BD,"5,153.00",Yes
838,Communities & Local Government,DCLG,15/09/2014,Current (non AEF) Grants to Local Authorities,Localism,BUCKS & MILTON KEYNES FIRE AUTH,,Public Bodies,,423679463,5000263948,,Reoccupation Relief,HP20 1BD,"1,281.00",Yes
839,Communities & Local Government,DCLG,15/09/2014,Current (non AEF) Grants to Local Authorities,Localism,BUCKS & MILTON KEYNES FIRE AUTH,,Public Bodies,,423679463,5000263949,,Retail Relief,HP20 1BD,"2,981.00",Yes
840,Communities & Local Government,DCLG,15/09/2014,Current (non AEF) Grants to Local Authorities,Localism,BUCKS & MILTON KEYNES FIRE AUTH,,Public Bodies,,423679463,5000263950,,Small Business Rates Relief on Second Properties,HP20 1BD,259.00,Yes
841,Communities & Local Government,DCLG,15/09/2014,Current (non AEF) Grants to Local Authorities,Localism,BUCKS & MILTON KEYNES FIRE AUTH,,Public Bodies,,423679463,5000264670,,Council Tax Freeze,HP20 1BD,"18,081.00",Yes
842,Communities & Local Government,DCLG,15/09/2014,Current (non AEF) Grants to Local Authorities,Localism,BURNLEY BC,,Large,,229413281,2100246083,,Transformation Challenge Award,BB11 1JA,"173,389.00",Yes
843,Communities & Local Government,DCLG,15/09/2014,Current (non AEF) Grants to Local Authorities,Localism,BURNLEY BC,,,,229413281,5000263392,,Empty New Build Relief,BB11 1JA,"2,696.00",Yes
844,Communities & Local Government,DCLG,15/09/2014,Current (non AEF) Grants to Local Authorities,Localism,BURNLEY BC,,,,229413281,5000263398,,Retail Relief,BB11 1JA,"17,157.00",Yes
845,Communities & Local Government,DCLG,15/09/2014,Current (non AEF) Grants to Local Authorities,Localism,BURNLEY BC,,,,229413281,5000263401,,Business Rates 2% Inflation Cap,BB11 1JA,"4,154.00",Yes
846,Communities & Local Government,DCLG,15/09/2014,Current (non AEF) Grants to Local Authorities,Localism,BURNLEY BC,,,,229413281,5000263404,,Small Business Rates Relief,BB11 1JA,"49,397.00",Yes
847,Communities & Local Government,DCLG,15/09/2014,Current (non AEF) Grants to Local Authorities,Localism,BURY MBC,,,,,5000263410,,Business Rates 2% Inflation Cap,BL9 0SW,"33,572.00",Yes
848,Communities & Local Government,DCLG,15/09/2014,Current (non AEF) Grants to Local Authorities,Localism,BURY MBC,,,,,5000263414,,Small Business Rates Relief,BL9 0SW,"107,578.00",Yes
849,Communities & Local Government,DCLG,15/09/2014,Current (non AEF) Grants to Local Authorities,Localism,BURY MBC,,,,,5000263417,,Reoccupation Relief,BL9 0SW,"10,909.00",Yes
850,Communities & Local Government,DCLG,15/09/2014,Current (non AEF) Grants to Local Authorities,Localism,BURY MBC,,,,,5000263421,,Retail Relief,BL9 0SW,"53,185.00",Yes
851,Communities & Local Government,DCLG,15/09/2014,Current (non AEF) Grants to Local Authorities,Localism,BURY MBC,,,,,5000264554,,Council Tax Freeze,BL9 0SW,"77,374.00",Yes
852,Communities & Local Government,DCLG,15/09/2014,Current (non AEF) Grants to Local Authorities,Localism,CALDERDALE MBC,,,,,5000263424,,Business Rates 2% Inflation Cap,HX1 1YP,"40,765.00",Yes
853,Communities & Local Government,DCLG,15/09/2014,Current (non AEF) Grants to Local Authorities,Localism,CALDERDALE MBC,,,,,5000263427,,Small Business Rates Relief,HX1 1YP,"152,670.00",Yes
854,Communities & Local Government,DCLG,15/09/2014,Current (non AEF) Grants to Local Authorities,Localism,CALDERDALE MBC,,,,,5000263430,,Retail Relief,HX1 1YP,"49,520.00",Yes
855,Communities & Local Government,DCLG,15/09/2014,Current (non AEF) Grants to Local Authorities,Localism,CALDERDALE MBC,,,,,5000264555,,Council Tax Freeze,HX1 1YP,"84,120.00",Yes
856,Communities & Local Government,DCLG,15/09/2014,Current (non AEF) Grants to Local Authorities,Localism,CAMBRIDGE CITY COUNCIL,,,,210357534,5000263433,,Business Rates 2% Inflation Cap,CB2 3NA,"6,412.00",Yes
857,Communities & Local Government,DCLG,15/09/2014,Current (non AEF) Grants to Local Authorities,Localism,CAMBRIDGE CITY COUNCIL,,,,210357534,5000263436,,Retail Relief,CB2 3NA,"31,531.00",Yes
858,Communities & Local Government,DCLG,15/09/2014,Current (non AEF) Grants to Local Authorities,Localism,CAMBRIDGE CITY COUNCIL,,,,210357534,5000263439,,Small Business Rates Relief,CB2 3NA,"25,919.00",Yes
859,Communities & Local Government,DCLG,15/09/2014,Current (non AEF) Grants to Local Authorities,Localism,CAMBRIDGE CITY COUNCIL,,,,210357534,5000263442,,Empty New Build Relief,CB2 3NA,"3,598.00",Yes
860,Communities & Local Government,DCLG,15/09/2014,Current (non AEF) Grants to Local Authorities,Localism,CAMBRIDGESHIRE COUNTY CNCL,,,,219047347,5000263445,,Small Business Rates Relief on Second Properties,CB3 0AP,455.00,Yes
861,Communities & Local Government,DCLG,15/09/2014,Current (non AEF) Grants to Local Authorities,Localism,CAMBRIDGESHIRE COUNTY CNCL,,,,219047347,5000263448,,Reoccupation Relief,CB3 0AP,569.00,Yes
862,Communities & Local Government,DCLG,15/09/2014,Current (non AEF) Grants to Local Authorities,Localism,CAMBRIDGESHIRE COUNTY CNCL,,,,219047347,5000263451,,Retail Relief,CB3 0AP,"18,373.00",Yes
863,Communities & Local Government,DCLG,15/09/2014,Current (non AEF) Grants to Local Authorities,Localism,CAMBRIDGESHIRE COUNTY CNCL,,,,219047347,5000263454,,Business Rates 2% Inflation Cap,CB3 0AP,"62,700.00",Yes
864,Communities & Local Government,DCLG,15/09/2014,Current (non AEF) Grants to Local Authorities,Localism,CAMBRIDGESHIRE COUNTY CNCL,,,,219047347,5000263457,,Small Business Rates Relief,CB3 0AP,"45,933.00",Yes
865,Communities & Local Government,DCLG,15/09/2014,Current (non AEF) Grants to Local Authorities,Localism,CAMBRIDGESHIRE COUNTY CNCL,,,,219047347,5000263460,,Empty New Build Relief,CB3 0AP,"2,174.00",Yes
866,Communities & Local Government,DCLG,15/09/2014,Current (non AEF) Grants to Local Authorities,Localism,CAMBS & PETERBOROUGH FIRE AUTHORITY,,,,235999737,5000263987,,Business Rates 2% Inflation Cap,PE29 2NA,"5,906.00",Yes
867,Communities & Local Government,DCLG,15/09/2014,Current (non AEF) Grants to Local Authorities,Localism,CAMBS & PETERBOROUGH FIRE AUTHORITY,,,,235999737,5000263988,,Small Business Rates Relief,PE29 2NA,"6,544.00",Yes
868,Communities & Local Government,DCLG,15/09/2014,Current (non AEF) Grants to Local Authorities,Localism,CAMBS & PETERBOROUGH FIRE AUTHORITY,,,,235999737,5000263991,,Retail Relief,PE29 2NA,"2,724.00",Yes
869,Communities & Local Government,DCLG,15/09/2014,Current (non AEF) Grants to Local Authorities,Localism,CAMBS & PETERBOROUGH FIRE AUTHORITY,,,,235999737,5000264674,,Council Tax Freeze,PE29 2NA,"18,455.00",Yes
870,Communities & Local Government,DCLG,15/09/2014,Current (non AEF) Grants to Local Authorities,Localism,CAMDEN LB,,,,211651836,5000263464,,Business Rates 2% Inflation Cap,WC1H 8NG,"92,509.00",Yes
871,Communities & Local Government,DCLG,15/09/2014,Current (non AEF) Grants to Local Authorities,Localism,CAMDEN LB,,,,211651836,5000263467,,Small Business Rates Relief,WC1H 8NG,"43,657.00",Yes
872,Communities & Local Government,DCLG,15/09/2014,Current (non AEF) Grants to Local Authorities,Localism,CAMDEN LB,,,,211651836,5000263470,,Reoccupation Relief,WC1H 8NG,"22,435.00",Yes
873,Communities & Local Government,DCLG,15/09/2014,Current (non AEF) Grants to Local Authorities,Localism,CAMDEN LB,,,,211651836,5000263473,,Retail Relief,WC1H 8NG,"69,126.00",Yes
874,Communities & Local Government,DCLG,15/09/2014,Current (non AEF) Grants to Local Authorities,Localism,CAMDEN LB,,,,211651836,5000264556,,Council Tax Freeze,WC1H 8NG,"103,127.00",Yes
875,Communities & Local Government,DCLG,15/09/2014,Current (non AEF) Grants to Local Authorities,Localism,CANNOCK CHASE DC,,,,215064770,5000263476,,Business Rates 2% Inflation Cap,WS11 1BG,"4,124.00",Yes
876,Communities & Local Government,DCLG,15/09/2014,Current (non AEF) Grants to Local Authorities,Localism,CANNOCK CHASE DC,,,,215064770,5000263479,,Small Business Rates Relief,WS11 1BG,"45,043.00",Yes
877,Communities & Local Government,DCLG,15/09/2014,Current (non AEF) Grants to Local Authorities,Localism,CANNOCK CHASE DC,,,,215064770,5000263482,,Retail Relief,WS11 1BG,"19,233.00",Yes
878,Communities & Local Government,DCLG,15/09/2014,Current (non AEF) Grants to Local Authorities,Localism,CANNOCK CHASE DC,,,,215064770,5000264557,,Council Tax Freeze,WS11 1BG,"6,115.00",Yes
879,Communities & Local Government,DCLG,15/09/2014,Current (non AEF) Grants to Local Authorities,Localism,CANTERBURY CITY CNCL,,,,,5000262374,,Business Rates 2% Inflation Cap,CT1 1YW,"4,740.00",Yes
880,Communities & Local Government,DCLG,15/09/2014,Current (non AEF) Grants to Local Authorities,Localism,CANTERBURY CITY CNCL,,,,,5000262377,,Small Business Rates Relief,CT1 1YW,"62,370.00",Yes
881,Communities & Local Government,DCLG,15/09/2014,Current (non AEF) Grants to Local Authorities,Localism,CANTERBURY CITY CNCL,,,,,5000262381,,Reoccupation Relief,CT1 1YW,"4,042.00",Yes
882,Communities & Local Government,DCLG,15/09/2014,Current (non AEF) Grants to Local Authorities,Localism,CANTERBURY CITY CNCL,,,,,5000262385,,Retail Relief,CT1 1YW,"36,039.00",Yes
883,Communities & Local Government,DCLG,15/09/2014,Current (non AEF) Grants to Local Authorities,Localism,CARLISLE CITY CNCL,,,,227471059,5000262393,,Business Rates 2% Inflation Cap,CA3 8QG,"3,760.00",Yes
884,Communities & Local Government,DCLG,15/09/2014,Current (non AEF) Grants to Local Authorities,Localism,CARLISLE CITY CNCL,,,,227471059,5000262397,,Small Business Rates Relief,CA3 8QG,"47,700.00",Yes
885,Communities & Local Government,DCLG,15/09/2014,Current (non AEF) Grants to Local Authorities,Localism,CARLISLE CITY CNCL,,,,227471059,5000262401,,Reoccupation Relief,CA3 8QG,"1,468.00",Yes
886,Communities & Local Government,DCLG,15/09/2014,Current (non AEF) Grants to Local Authorities,Localism,CARLISLE CITY CNCL,,,,227471059,5000262405,,Retail Relief,CA3 8QG,"25,192.00",Yes
887,Communities & Local Government,DCLG,15/09/2014,Current (non AEF) Grants to Local Authorities,Localism,CARLISLE CITY CNCL,,,,227471059,5000262409,,Small Business Rates Relief on Second Properties,CA3 8QG,606.00,Yes
888,Communities & Local Government,DCLG,15/09/2014,Current (non AEF) Grants to Local Authorities,Localism,CARLISLE CITY CNCL,,,,227471059,5000264448,,Council Tax Freeze,CA3 8QG,"6,888.00",Yes
889,Communities & Local Government,DCLG,15/09/2014,Current (non AEF) Grants to Local Authorities,Localism,CASTLE POINT BC,,Public Bodies,,228217931,5000263486,,Business Rates 2% Inflation Cap,SS7 1TF,"2,276.00",Yes
890,Communities & Local Government,DCLG,15/09/2014,Current (non AEF) Grants to Local Authorities,Localism,CASTLE POINT BC,,Public Bodies,,228217931,5000263489,,Small Business Rates Relief,SS7 1TF,"33,585.00",Yes
891,Communities & Local Government,DCLG,15/09/2014,Current (non AEF) Grants to Local Authorities,Localism,CASTLE POINT BC,,Public Bodies,,228217931,5000263492,,Empty New Build Relief,SS7 1TF,303.00,Yes
892,Communities & Local Government,DCLG,15/09/2014,Current (non AEF) Grants to Local Authorities,Localism,CASTLE POINT BC,,Public Bodies,,228217931,5000263494,,Reoccupation Relief,SS7 1TF,"1,587.00",Yes
893,Communities & Local Government,DCLG,15/09/2014,Current (non AEF) Grants to Local Authorities,Localism,CASTLE POINT BC,,Public Bodies,,228217931,5000263498,,Retail Relief,SS7 1TF,"17,362.00",Yes
894,Communities & Local Government,DCLG,15/09/2014,Current (non AEF) Grants to Local Authorities,Localism,CASTLE POINT BC,,Public Bodies,,228217931,5000263501,,Small Business Rates Relief on Second Properties,SS7 1TF,"1,368.00",Yes
895,Communities & Local Government,DCLG,15/09/2014,Current (non AEF) Grants to Local Authorities,Localism,CASTLE POINT BC,,Public Bodies,,228217931,5000264558,,Council Tax Freeze,SS7 1TF,"7,582.00",Yes
896,Communities & Local Government,DCLG,15/09/2014,Current (non AEF) Grants to Local Authorities,Localism,CENTRAL BEDFORDSHIRE COUNCIL,,,,232624882,5000262279,,Business Rates 2% Inflation Cap,SG17 5TQ,"30,451.00",Yes
897,Communities & Local Government,DCLG,15/09/2014,Current (non AEF) Grants to Local Authorities,Localism,CENTRAL BEDFORDSHIRE COUNCIL,,,,232624882,5000262282,,Small Business Rates Relief,SG17 5TQ,"107,121.00",Yes
898,Communities & Local Government,DCLG,15/09/2014,Current (non AEF) Grants to Local Authorities,Localism,CENTRAL BEDFORDSHIRE COUNCIL,,,,232624882,5000262285,,Reoccupation Relief,SG17 5TQ,"14,856.00",Yes
899,Communities & Local Government,DCLG,15/09/2014,Current (non AEF) Grants to Local Authorities,Localism,CENTRAL BEDFORDSHIRE COUNCIL,,,,232624882,5000262288,,Retail Relief,SG17 5TQ,"53,117.00",Yes
900,Communities & Local Government,DCLG,15/09/2014,Current (non AEF) Grants to Local Authorities,Localism,CENTRAL BEDFORDSHIRE COUNCIL,,,,232624882,5000264679,,Council Tax Freeze,SG17 5TQ,"129,775.00",Yes
901,Communities & Local Government,DCLG,15/09/2014,Current (non AEF) Grants to Local Authorities,Localism,CHARNWOOD BC,,,,,5000263504,,Business Rates 2% Inflation Cap,LE11 2TU,"2,647.00",Yes
902,Communities & Local Government,DCLG,15/09/2014,Current (non AEF) Grants to Local Authorities,Localism,CHARNWOOD BC,,,,,5000263507,,Retail Relief,LE11 2TU,"23,533.00",Yes
903,Communities & Local Government,DCLG,15/09/2014,Current (non AEF) Grants to Local Authorities,Localism,CHARNWOOD BC,,,,,5000263510,,Small Business Rates Relief,LE11 2TU,"59,596.00",Yes
904,Communities & Local Government,DCLG,15/09/2014,Current (non AEF) Grants to Local Authorities,Localism,CHARNWOOD BC,,,,,5000263513,,Reoccupation Relief,LE11 2TU,"1,650.00",Yes
905,Communities & Local Government,DCLG,15/09/2014,Current (non AEF) Grants to Local Authorities,Localism,CHARNWOOD BC,,,,,5000263516,,Small Business Rates Relief on Second Properties,LE11 2TU,404.00,Yes
906,Communities & Local Government,DCLG,15/09/2014,Current (non AEF) Grants to Local Authorities,Localism,CHARNWOOD BC,,,,,5000264559,,Council Tax Freeze,LE11 2TU,"7,026.00",Yes
907,Communities & Local Government,DCLG,15/09/2014,Current (non AEF) Grants to Local Authorities,Localism,CHELMSFORD BC,,,,,5000263519,,Reoccupation Relief,CM1 1JE,"6,063.00",Yes
908,Communities & Local Government,DCLG,15/09/2014,Current (non AEF) Grants to Local Authorities,Localism,CHELMSFORD BC,,,,,5000263522,,Retail Relief,CM1 1JE,"32,744.00",Yes
909,Communities & Local Government,DCLG,15/09/2014,Current (non AEF) Grants to Local Authorities,Localism,CHELMSFORD BC,,,,,5000263525,,Business Rates 2% Inflation Cap,CM1 1JE,"3,941.00",Yes
910,Communities & Local Government,DCLG,15/09/2014,Current (non AEF) Grants to Local Authorities,Localism,CHELMSFORD BC,,,,,5000263528,,Small Business Rates Relief,CM1 1JE,"47,560.00",Yes
911,Communities & Local Government,DCLG,15/09/2014,Current (non AEF) Grants to Local Authorities,Localism,CHELTENHAM BC,,,,,5000263531,,Reoccupation Relief,GL50 1PW,"3,032.00",Yes
912,Communities & Local Government,DCLG,15/09/2014,Current (non AEF) Grants to Local Authorities,Localism,CHELTENHAM BC,,,,,5000263534,,Business Rates 2% Inflation Cap,GL50 1PW,"3,252.00",Yes
913,Communities & Local Government,DCLG,15/09/2014,Current (non AEF) Grants to Local Authorities,Localism,CHELTENHAM BC,,,,,5000263536,,Small Business Rates Relief,GL50 1PW,"42,913.00",Yes
914,Communities & Local Government,DCLG,15/09/2014,Current (non AEF) Grants to Local Authorities,Localism,CHELTENHAM BC,,,,,5000263538,,Empty New Build Relief,GL50 1PW,"1,213.00",Yes
915,Communities & Local Government,DCLG,15/09/2014,Current (non AEF) Grants to Local Authorities,Localism,CHELTENHAM BC,,,,,5000263540,,Retail Relief,GL50 1PW,"30,318.00",Yes
916,Communities & Local Government,DCLG,15/09/2014,Current (non AEF) Grants to Local Authorities,Localism,CHELTENHAM BC,,,,,5000264560,,Council Tax Freeze,GL50 1PW,"8,121.00",Yes
917,Communities & Local Government,DCLG,15/09/2014,Current (non AEF) Grants to Local Authorities,Localism,CHERWELL DC,,,,,5000262413,,Business Rates 2% Inflation Cap,OX15 4AA,"5,299.00",Yes
918,Communities & Local Government,DCLG,15/09/2014,Current (non AEF) Grants to Local Authorities,Localism,CHERWELL DC,,,,,5000262417,,Small Business Rates Relief,OX15 4AA,"37,447.00",Yes
919,Communities & Local Government,DCLG,15/09/2014,Current (non AEF) Grants to Local Authorities,Localism,CHERWELL DC,,,,,5000262421,,Empty New Build Relief,OX15 4AA,"16,332.00",Yes
920,Communities & Local Government,DCLG,15/09/2014,Current (non AEF) Grants to Local Authorities,Localism,CHERWELL DC,,,,,5000262424,,Reoccupation Relief,OX15 4AA,"13,664.00",Yes
921,Communities & Local Government,DCLG,15/09/2014,Current (non AEF) Grants to Local Authorities,Localism,CHERWELL DC,,,,,5000262428,,Retail Relief,OX15 4AA,"17,261.00",Yes
922,Communities & Local Government,DCLG,15/09/2014,Current (non AEF) Grants to Local Authorities,Localism,CHERWELL DC,,,,,5000262432,,Small Business Rates Relief on Second Properties,OX15 4AA,"2,285.00",Yes
923,Communities & Local Government,DCLG,15/09/2014,Current (non AEF) Grants to Local Authorities,Localism,CHERWELL DC,,,,,5000264449,,Council Tax Freeze,OX15 4AA,"6,390.00",Yes
924,Communities & Local Government,DCLG,15/09/2014,Current (non AEF) Grants to Local Authorities,Localism,CHESHIRE EAST COUNCIL,,Large,,,5000262292,,Small Business Rates Relief,CW11 1HZ,"200,138.00",Yes
925,Communities & Local Government,DCLG,15/09/2014,Current (non AEF) Grants to Local Authorities,Localism,CHESHIRE EAST COUNCIL,,Large,,,5000262294,,Reoccupation Relief,CW11 1HZ,"7,724.00",Yes
926,Communities & Local Government,DCLG,15/09/2014,Current (non AEF) Grants to Local Authorities,Localism,CHESHIRE EAST COUNCIL,,Large,,,5000262297,,Retail Relief,CW11 1HZ,"161,057.00",Yes
927,Communities & Local Government,DCLG,15/09/2014,Current (non AEF) Grants to Local Authorities,Localism,CHESHIRE EAST COUNCIL,,Large,,,5000262301,,Business Rates 2% Inflation Cap,CW11 1HZ,"40,861.00",Yes
928,Communities & Local Government,DCLG,15/09/2014,Current (non AEF) Grants to Local Authorities,Localism,CHESHIRE EAST COUNCIL,,Large,,,5000264680,,Council Tax Freeze,CW11 1HZ,"180,689.00",Yes
929,Communities & Local Government,DCLG,15/09/2014,Current (non AEF) Grants to Local Authorities,Localism,CHESHIRE FIRE AUTHORITY,,,,424872737,5000263981,,Business Rates 2% Inflation Cap,CW7 2FQ,"8,973.00",Yes
930,Communities & Local Government,DCLG,15/09/2014,Current (non AEF) Grants to Local Authorities,Localism,CHESHIRE FIRE AUTHORITY,,,,424872737,5000263982,,Small Business Rates Relief,CW7 2FQ,"9,212.00",Yes
931,Communities & Local Government,DCLG,15/09/2014,Current (non AEF) Grants to Local Authorities,Localism,CHESHIRE FIRE AUTHORITY,,,,424872737,5000263984,,Reoccupation Relief,CW7 2FQ,572.00,Yes
932,Communities & Local Government,DCLG,15/09/2014,Current (non AEF) Grants to Local Authorities,Localism,CHESHIRE FIRE AUTHORITY,,,,424872737,5000263985,,Retail Relief,CW7 2FQ,"6,536.00",Yes
933,Communities & Local Government,DCLG,15/09/2014,Current (non AEF) Grants to Local Authorities,Localism,CHESHIRE FIRE AUTHORITY,,,,424872737,5000263986,,Small Business Rates Relief on Second Properties,CW7 2FQ,304.00,Yes
934,Communities & Local Government,DCLG,15/09/2014,Current (non AEF) Grants to Local Authorities,Localism,CHESHIRE WEST & CHESTER UA,,Large,,215584383,5000262305,,Business Rates 2% Inflation Cap,CH1 2NP,"51,581.00",Yes
935,Communities & Local Government,DCLG,15/09/2014,Current (non AEF) Grants to Local Authorities,Localism,CHESHIRE WEST & CHESTER UA,,Large,,215584383,5000262309,,Small Business Rates Relief,CH1 2NP,"145,271.00",Yes
936,Communities & Local Government,DCLG,15/09/2014,Current (non AEF) Grants to Local Authorities,Localism,CHESHIRE WEST & CHESTER UA,,Large,,215584383,5000262313,,Empty New Build Relief,CH1 2NP,990.00,Yes
937,Communities & Local Government,DCLG,15/09/2014,Current (non AEF) Grants to Local Authorities,Localism,CHESHIRE WEST & CHESTER UA,,Large,,215584383,5000262317,,Reoccupation Relief,CH1 2NP,"15,351.00",Yes
938,Communities & Local Government,DCLG,15/09/2014,Current (non AEF) Grants to Local Authorities,Localism,CHESHIRE WEST & CHESTER UA,,Large,,215584383,5000262321,,Retail Relief,CH1 2NP,"86,661.00",Yes
939,Communities & Local Government,DCLG,15/09/2014,Current (non AEF) Grants to Local Authorities,Localism,CHESHIRE WEST & CHESTER UA,,Large,,215584383,5000262325,,Small Business Rates Relief on Second Properties,CH1 2NP,990.00,Yes
940,Communities & Local Government,DCLG,15/09/2014,Current (non AEF) Grants to Local Authorities,Localism,CHESHIRE WEST & CHESTER UA,,Large,,215584383,5000264681,,Council Tax Freeze,CH1 2NP,"158,057.00",Yes
941,Communities & Local Government,DCLG,15/09/2014,Current (non AEF) Grants to Local Authorities,Localism,CHESTERFIELD BC,,,,232102301,5000263544,,Business Rates 2% Inflation Cap,S40 1LP,"3,860.00",Yes
942,Communities & Local Government,DCLG,15/09/2014,Current (non AEF) Grants to Local Authorities,Localism,CHESTERFIELD BC,,,,232102301,5000263546,,Small Business Rates Relief,S40 1LP,"51,215.00",Yes
943,Communities & Local Government,DCLG,15/09/2014,Current (non AEF) Grants to Local Authorities,Localism,CHESTERFIELD BC,,,,232102301,5000263548,,Reoccupation Relief,S40 1LP,"1,116.00",Yes
944,Communities & Local Government,DCLG,15/09/2014,Current (non AEF) Grants to Local Authorities,Localism,CHESTERFIELD BC,,,,232102301,5000263550,,Retail Relief,S40 1LP,"23,598.00",Yes
945,Communities & Local Government,DCLG,15/09/2014,Current (non AEF) Grants to Local Authorities,Localism,CHESTERFIELD BC,,,,232102301,5000264561,,Council Tax Freeze,S40 1LP,"4,790.00",Yes
946,Communities & Local Government,DCLG,15/09/2014,Current (non AEF) Grants to Local Authorities,Localism,CHICHESTER DC,,,,739800998,5000262435,,Small Business Rates Relief,PO19 1TY,"56,725.00",Yes
947,Communities & Local Government,DCLG,15/09/2014,Current (non AEF) Grants to Local Authorities,Localism,CHICHESTER DC,,,,739800998,5000262438,,Empty New Build Relief,PO19 1TY,"2,021.00",Yes
948,Communities & Local Government,DCLG,15/09/2014,Current (non AEF) Grants to Local Authorities,Localism,CHICHESTER DC,,,,739800998,5000262441,,Reoccupation Relief,PO19 1TY,"2,021.00",Yes
949,Communities & Local Government,DCLG,15/09/2014,Current (non AEF) Grants to Local Authorities,Localism,CHICHESTER DC,,,,739800998,5000262444,,Retail Relief,PO19 1TY,"26,276.00",Yes
950,Communities & Local Government,DCLG,15/09/2014,Current (non AEF) Grants to Local Authorities,Localism,CHICHESTER DC,,,,739800998,5000262447,,Business Rates 2% Inflation Cap,PO19 1TY,"2,340.00",Yes
951,Communities & Local Government,DCLG,15/09/2014,Current (non AEF) Grants to Local Authorities,Localism,CHICHESTER DC,,,,739800998,5000262450,,Small Business Rates Relief on Second Properties,PO19 1TY,"1,213.00",Yes
952,Communities & Local Government,DCLG,15/09/2014,Current (non AEF) Grants to Local Authorities,Localism,CHILTERN DC,,Large,,236183554,2100246114,,Transformation Challenge Award,HP6 5AW,"50,000.00",Yes
953,Communities & Local Government,DCLG,15/09/2014,Current (non AEF) Grants to Local Authorities,Localism,CHILTERN DC (HSG),,,,,5000262453,,Business Rates 2% Inflation Cap,HP6 5AW,"1,771.00",Yes
954,Communities & Local Government,DCLG,15/09/2014,Current (non AEF) Grants to Local Authorities,Localism,CHILTERN DC (HSG),,,,,5000262456,,Small Business Rates Relief,HP6 5AW,"27,147.00",Yes
955,Communities & Local Government,DCLG,15/09/2014,Current (non AEF) Grants to Local Authorities,Localism,CHILTERN DC (HSG),,,,,5000262459,,Retail Relief,HP6 5AW,"24,174.00",Yes
956,Communities & Local Government,DCLG,15/09/2014,Current (non AEF) Grants to Local Authorities,Localism,CHILTERN DC (HSG),,,,,5000264450,,Council Tax Freeze,HP6 5AW,"7,424.00",Yes
957,Communities & Local Government,DCLG,15/09/2014,Current (non AEF) Grants to Local Authorities,Localism,CHORLEY BOROUGH COUNCIL,,,,236415576,5000263552,,Small Business Rates Relief,PR7 1DP,"47,863.00",Yes
958,Communities & Local Government,DCLG,15/09/2014,Current (non AEF) Grants to Local Authorities,Localism,CHORLEY BOROUGH COUNCIL,,,,236415576,5000263553,,Reoccupation Relief,PR7 1DP,"1,479.00",Yes
959,Communities & Local Government,DCLG,15/09/2014,Current (non AEF) Grants to Local Authorities,Localism,CHORLEY BOROUGH COUNCIL,,,,236415576,5000263554,,Retail Relief,PR7 1DP,"19,848.00",Yes
960,Communities & Local Government,DCLG,15/09/2014,Current (non AEF) Grants to Local Authorities,Localism,CHORLEY BOROUGH COUNCIL,,,,236415576,5000263555,,Business Rates 2% Inflation Cap,PR7 1DP,"3,486.00",Yes
961,Communities & Local Government,DCLG,15/09/2014,Current (non AEF) Grants to Local Authorities,Localism,CHORLEY BOROUGH COUNCIL,,,,236415576,5000263556,,Empty New Build Relief,PR7 1DP,"2,021.00",Yes
962,Communities & Local Government,DCLG,15/09/2014,Current (non AEF) Grants to Local Authorities,Localism,CHORLEY BOROUGH COUNCIL,,,,236415576,5000263557,,Small Business Rates Relief on Second Properties,PR7 1DP,560.00,Yes
963,Communities & Local Government,DCLG,15/09/2014,Current (non AEF) Grants to Local Authorities,Localism,CHORLEY BOROUGH COUNCIL,,,,236415576,5000264562,,Council Tax Freeze,PR7 1DP,"6,614.00",Yes
964,Communities & Local Government,DCLG,15/09/2014,Current (non AEF) Grants to Local Authorities,Localism,CHRISTCHURCH BC (HSG),,,,227415213,5000262462,,Retail Relief,BH23 1AZ,"13,433.00",Yes
965,Communities & Local Government,DCLG,15/09/2014,Current (non AEF) Grants to Local Authorities,Localism,CHRISTCHURCH BC (HSG),,,,227415213,5000262465,,Business Rates 2% Inflation Cap,BH23 1AZ,653.00,Yes
966,Communities & Local Government,DCLG,15/09/2014,Current (non AEF) Grants to Local Authorities,Localism,CHRISTCHURCH BC (HSG),,,,227415213,5000262468,,Small Business Rates Relief,BH23 1AZ,"22,149.00",Yes
967,Communities & Local Government,DCLG,15/09/2014,Current (non AEF) Grants to Local Authorities,Localism,CHRISTCHURCH BOROUGH COUNCIL,,Large,,227415213,2100246076,,Transformation Challenge Award,BH23 1AZ,"160,000.00",Yes
968,Communities & Local Government,DCLG,15/09/2014,Current (non AEF) Grants to Local Authorities,Localism,CITY OF LINCOLN COUNCIL,,,,,5000262997,,Business Rates 2% Inflation Cap,LN1 1DB,"4,172.00",Yes
969,Communities & Local Government,DCLG,15/09/2014,Current (non AEF) Grants to Local Authorities,Localism,CITY OF LINCOLN COUNCIL,,,,,5000263000,,Small Business Rates Relief,LN1 1DB,"35,669.00",Yes
970,Communities & Local Government,DCLG,15/09/2014,Current (non AEF) Grants to Local Authorities,Localism,CITY OF LINCOLN COUNCIL,,,,,5000263003,,Empty New Build Relief,LN1 1DB,"3,638.00",Yes
971,Communities & Local Government,DCLG,15/09/2014,Current (non AEF) Grants to Local Authorities,Localism,CITY OF LINCOLN COUNCIL,,,,,5000263006,,Reoccupation Relief,LN1 1DB,"6,306.00",Yes
972,Communities & Local Government,DCLG,15/09/2014,Current (non AEF) Grants to Local Authorities,Localism,CITY OF LINCOLN COUNCIL,,,,,5000263008,,Retail Relief,LN1 1DB,"30,318.00",Yes
973,Communities & Local Government,DCLG,15/09/2014,Current (non AEF) Grants to Local Authorities,Localism,CITY OF LINCOLN COUNCIL,,,,,5000263011,,Small Business Rates Relief on Second Properties,LN1 1DB,404.00,Yes
974,Communities & Local Government,DCLG,15/09/2014,Current (non AEF) Grants to Local Authorities,Localism,CITY OF LONDON (HSG),,,,217471460,5000262475,,Business Rates 2% Inflation Cap,EC2P 2EJ,"28,995.00",Yes
975,Communities & Local Government,DCLG,15/09/2014,Current (non AEF) Grants to Local Authorities,Localism,CITY OF LONDON (HSG),,,,217471460,5000262478,,Small Business Rates Relief,EC2P 2EJ,"5,666.00",Yes
976,Communities & Local Government,DCLG,15/09/2014,Current (non AEF) Grants to Local Authorities,Localism,CITY OF LONDON (HSG),,,,217471460,5000262481,,Reoccupation Relief,EC2P 2EJ,"4,501.00",Yes
977,Communities & Local Government,DCLG,15/09/2014,Current (non AEF) Grants to Local Authorities,Localism,CITY OF LONDON (HSG),,,,217471460,5000262484,,Retail Relief,EC2P 2EJ,"18,616.00",Yes
978,Communities & Local Government,DCLG,15/09/2014,Current (non AEF) Grants to Local Authorities,Localism,CITY OF LONDON (HSG),,,,217471460,5000264451,,Council Tax Freeze,EC2P 2EJ,"5,155.00",Yes
979,Communities & Local Government,DCLG,15/09/2014,Current (non AEF) Grants to Local Authorities,Localism,CITY OF SUNDERLAND (HSG),,,,215599312,5000262487,,Business Rates 2% Inflation Cap,SR2 7DN,"81,611.00",Yes
980,Communities & Local Government,DCLG,15/09/2014,Current (non AEF) Grants to Local Authorities,Localism,CITY OF SUNDERLAND (HSG),,,,215599312,5000262490,,Small Business Rates Relief,SR2 7DN,"103,628.00",Yes
981,Communities & Local Government,DCLG,15/09/2014,Current (non AEF) Grants to Local Authorities,Localism,CITY OF SUNDERLAND (HSG),,,,215599312,5000262493,,Reoccupation Relief,SR2 7DN,"3,299.00",Yes
982,Communities & Local Government,DCLG,15/09/2014,Current (non AEF) Grants to Local Authorities,Localism,CITY OF SUNDERLAND (HSG),,,,215599312,5000262496,,Retail Relief,SR2 7DN,"36,149.00",Yes
983,Communities & Local Government,DCLG,15/09/2014,Current (non AEF) Grants to Local Authorities,Localism,CITY OF SUNDERLAND (HSG),,,,215599312,5000262499,,Small Business Rates Relief on Second Properties,SR2 7DN,"2,745.00",Yes
984,Communities & Local Government,DCLG,15/09/2014,Current (non AEF) Grants to Local Authorities,Localism,CITY OF SUNDERLAND (HSG),,,,215599312,5000264452,,Council Tax Freeze,SR2 7DN,"96,443.00",Yes
985,Communities & Local Government,DCLG,15/09/2014,Current (non AEF) Grants to Local Authorities,Localism,CITY OF WAKEFIELD MDC,,,,,5000263790,,Business Rates 2% Inflation Cap,WF1 2QW,"70,283.00",Yes
986,Communities & Local Government,DCLG,15/09/2014,Current (non AEF) Grants to Local Authorities,Localism,CITY OF WAKEFIELD MDC,,,,,5000263791,,Small Business Rates Relief,WF1 2QW,"183,225.00",Yes
987,Communities & Local Government,DCLG,15/09/2014,Current (non AEF) Grants to Local Authorities,Localism,CITY OF WAKEFIELD MDC,,,,,5000263792,,Retail Relief,WF1 2QW,"49,520.00",Yes
988,Communities & Local Government,DCLG,15/09/2014,Current (non AEF) Grants to Local Authorities,Localism,CLEVELAND FIRE AUTHORITY,,Medium,,424872778,5000263963,,Business Rates 2% Inflation Cap,TS25 5TB,"8,755.00",Yes
989,Communities & Local Government,DCLG,15/09/2014,Current (non AEF) Grants to Local Authorities,Localism,CLEVELAND FIRE AUTHORITY,,Medium,,424872778,5000263964,,Small Business Rates Relief,TS25 5TB,"4,620.00",Yes
990,Communities & Local Government,DCLG,15/09/2014,Current (non AEF) Grants to Local Authorities,Localism,CLEVELAND FIRE AUTHORITY,,Medium,,424872778,5000263966,,Reoccupation Relief,TS25 5TB,"1,689.00",Yes
991,Communities & Local Government,DCLG,15/09/2014,Current (non AEF) Grants to Local Authorities,Localism,CLEVELAND FIRE AUTHORITY,,Medium,,424872778,5000263967,,Retail Relief,TS25 5TB,"2,868.00",Yes
992,Communities & Local Government,DCLG,15/09/2014,Current (non AEF) Grants to Local Authorities,Localism,COLCHESTER BC,,,,,5000263558,,Business Rates 2% Inflation Cap,CO3 3WG,"4,953.00",Yes
993,Communities & Local Government,DCLG,15/09/2014,Current (non AEF) Grants to Local Authorities,Localism,COLCHESTER BC,,,,,5000263559,,Small Business Rates Relief,CO3 3WG,"53,163.00",Yes
994,Communities & Local Government,DCLG,15/09/2014,Current (non AEF) Grants to Local Authorities,Localism,COLCHESTER BC,,,,,5000263560,,Small Business Rates Relief on Second Properties,CO3 3WG,"4,042.00",Yes
995,Communities & Local Government,DCLG,15/09/2014,Current (non AEF) Grants to Local Authorities,Localism,COLCHESTER BC,,,,,5000263561,,Empty New Build Relief,CO3 3WG,"4,042.00",Yes
996,Communities & Local Government,DCLG,15/09/2014,Current (non AEF) Grants to Local Authorities,Localism,COLCHESTER BC,,,,,5000263562,,Reoccupation Relief,CO3 3WG,"10,406.00",Yes
997,Communities & Local Government,DCLG,15/09/2014,Current (non AEF) Grants to Local Authorities,Localism,COLCHESTER BC,,,,,5000263563,,Retail Relief,CO3 3WG,"33,389.00",Yes
